,Directorate,Supplier Name,Supplier Invoice No,Payment Date,Gross Invoice Value,Vat Amount,Vendor Id,Purpose of Expenditure,Description,Redact flag,Year,Period
1,Community and Housing,SOUTHPARK RESIDENTIAL HOME,1028705,27-Sep-23,3400,0,19,Older People Placements - East,321017              Nursing & Residential Care Homes,A,2023,6
2,Community and Housing,SOUTHPARK RESIDENTIAL HOME,1029061,27-Sep-23,3400,0,19,Older People Placements - East,321017              Nursing & Residential Care Homes,A,2023,6
3,"Children, Schools and Family",MORE HOUSE SCHOOL,30655,15-Sep-23,6547,0,345,Non-Delegated Statements,170000              Education,A,2023,6
4,"Children, Schools and Family",MORE HOUSE SCHOOL,30672,15-Sep-23,7188,0,345,Non-Delegated Statements,170000              Education,A,2023,6
5,"Children, Schools and Family",MORE HOUSE SCHOOL,30822,15-Sep-23,7188,0,345,Non-Delegated Statements,170000              Education,A,2023,6
6,"Children, Schools and Family",MORE HOUSE SCHOOL,30933,15-Sep-23,6547,0,345,Non-Delegated Statements,170000              Education,A,2023,6
7,"Children, Schools and Family",MORE HOUSE SCHOOL,30970,15-Sep-23,7188,0,345,Non-Delegated Statements,170000              Education,A,2023,6
8,"Children, Schools and Family",MORE HOUSE SCHOOL,31086,15-Sep-23,6337,0,345,Non-Delegated Statements,170000              Education,A,2023,6
9,"Children, Schools and Family",MORE HOUSE SCHOOL,31171,25-Sep-23,6337,0,345,Non-Delegated Statements,170000              Education,A,2023,6
10,"Children, Schools and Family",MORE HOUSE SCHOOL,30997,19-Sep-23,10329,0,345,SEN Residential (DSG),170000              Education,A,2023,6
11,Community and Housing,ST TERESA`S HOME FOR THE ELDERLY,1028640,27-Sep-23,3764.24,0,362,Older People Placements - East,321017              Nursing & Residential Care Homes,A,2023,6
12,Community and Housing,THE WHITE HOUSE NURSING HOME,1029037,27-Sep-23,3396,0,611,Older People Placements - East,321000              Social Community Care Supplies & Services - Adult,A,2023,6
13,"Children, Schools and Family",BLOSSOM HOUSE SCHOOL,9860,19-Sep-23,18850,0,777,Non-Delegated Statements,170000              Education,A,2023,6
14,"Children, Schools and Family",BLOSSOM HOUSE SCHOOL,9644,22-Sep-23,12967.5,0,777,Non-Delegated Statements,170000              Education,A,2023,6
15,"Children, Schools and Family",BLOSSOM HOUSE SCHOOL,9911,22-Sep-23,17587.5,0,777,Non-Delegated Statements,170000              Education,A,2023,6
16,Corporate Services,Quadient,840499105,25-Sep-23,6534.23,25,793,Post services,300000              Mail Services,A,2023,6
17,Corporate Services,Quadient,93053150,26-Sep-23,2216.89,369.48,793,Post services,300000              Mail Services,A,2023,6
18,Community and Housing,The Wimbledon Guild of Social Welfare,INV-16571,18-Sep-23,1000,0,802,PH - Elderly Care Pilot,190000              Facilities & Management Services,A,2023,6
19,Unassigned,PERSEID SCHOOL,SCHOOLS 2324/6 A,07-Sep-23,827637.69,0,983,Schools,170000              Education,A,2023,6
20,Community and Housing,MOUNT CARMEL HOSTEL,1027912,25-Sep-23,1398.57,0,1053,Older People Placements - East,321017              Nursing & Residential Care Homes,A,2023,6
21,Community and Housing,MOUNT CARMEL HOSTEL,1028680,27-Sep-23,3560,0,1053,Older People Placements - East,321017              Nursing & Residential Care Homes,A,2023,6
22,Community and Housing,SUTTON NURSING HOMES LTD,1028677,27-Sep-23,3381.16,0,1208,Older People Placements - East,321017              Nursing & Residential Care Homes,A,2023,6
23,Community and Housing,SUTTON NURSING HOMES LTD,1029021,27-Sep-23,3381.16,0,1208,Older People Placements - East,321017              Nursing & Residential Care Homes,A,2023,6
24,Corporate Services,L.B OF RICHMOND UPON THAMES,RC376792128M05E,06-Sep-23,7692,0,1353,SLLP Client Income,OLA,A,2023,6
25,Unassigned,L.B OF RICHMOND UPON THAMES,�S106/23/1118/,08-Sep-23,580,0,1353,Corporate Services,OLA,A,2023,6
26,Unassigned,MELROSE SPECIAL SCHOOL,SCHOOLS 2324/6 A,07-Sep-23,651804.3,0,1393,Schools,170000              Education,A,2023,6
27,Unassigned,WILLIAM MORRIS PRIMARY SCHOOL,SCHOOLS 2324/6 A,07-Sep-23,236559.27,0,1416,Schools,170000              Education,A,2023,6
28,Unassigned,ST THOMAS OF CANTERBURY PRIMARY,SCHOOLS 2324/6 A,07-Sep-23,333965.2,0,1418,Schools,170000              Education,A,2023,6
29,Unassigned,PRIORY C OF E MIDDLE SCHOOL,SCHOOLS 2324/6 A,07-Sep-23,153602.5,0,1420,Schools,170000              Education,A,2023,6
30,Unassigned,LIBERTY PRIMARY SCHOOL,SCHOOLS 2324/6 A,07-Sep-23,306457.09,0,1424,Schools,170000              Education,A,2023,6
31,Unassigned,HILLCROSS PRIMARY SCHOOL,SCHOOLS 2324/6 A,07-Sep-23,320317,0,1425,Schools,170000              Education,A,2023,6
32,Unassigned,CRANMER PRIMARY SCHOOL,SCHOOLS 2324/6 A,07-Sep-23,436122.55,0,1426,Schools,170000              Education,A,2023,6
33,Unassigned,WIMBLEDON COLLEGE SCHOOL,SCHOOLS 2324/6 A,07-Sep-23,1081783.93,0,1428,Schools,170000              Education,A,2023,6
34,Unassigned,URSULINE HIGH SCHOOL,SCHOOLS 2324/6 A,07-Sep-23,1122005.77,0,1429,Schools,170000              Education,A,2023,6
35,Unassigned,RUTLISH SCHOOL,SCHOOLS 2324/6 A,07-Sep-23,1210519.54,0,1431,Schools,170000              Education,A,2023,6
36,Unassigned,RICARDS LODGE SECONDARY SCHOOL,SCHOOLS 2324/6 A,07-Sep-23,1124513.71,0,1433,Schools,170000              Education,A,2023,6
37,Unassigned,WIMBLEDON PARK PRIMARY SCHOOL,SCHOOLS 2324/6 A,07-Sep-23,408306.65,0,1436,Schools,170000              Education,A,2023,6
38,Unassigned,ST TERESA'S R C PRIMARY SCHOOL,SCHOOLS 2324/6 A,07-Sep-23,334579.9,0,1438,Schools,170000              Education,A,2023,6
39,Unassigned,ST MARYS CATHOLIC PRIMARY SCHOOL,SCHOOLS 2324/6 A,07-Sep-23,302237,0,1439,Schools,170000              Education,A,2023,6
40,Unassigned,ST MARKS PRIMARY SCHOOL,SCHOOLS 2324/6 A,07-Sep-23,186208.66,0,1440,Schools,170000              Education,A,2023,6
41,Unassigned,ST JOHN FISHER RC PRIMARY SCH.,SCHOOLS 2324/6 A,07-Sep-23,294311.6,0,1441,Schools,170000              Education,A,2023,6
42,Unassigned,SINGLEGATE PRIMARY SCHOOL,SCHOOLS 2324/6 A,07-Sep-23,431514.03,0,1442,Schools,170000              Education,A,2023,6
43,Unassigned,SHERWOOD PRIMARY SCHOOL,SCHOOLS 2324/6 A,07-Sep-23,270618.78,0,1443,Schools,170000              Education,A,2023,6
44,Unassigned,POPLAR PRIMARY SCHOOL,SCHOOLS 2324/6 A,07-Sep-23,460810.07,0,1444,Schools,170000              Education,A,2023,6
45,Unassigned,PELHAM PRIMARY SCHOOL,SCHOOLS 2324/6 A,07-Sep-23,304739.18,0,1445,Schools,170000              Education,A,2023,6
46,Unassigned,MORDEN PRIMARY SCHOOL,SCHOOLS 2324/6 A,07-Sep-23,180529.14,0,1446,Schools,170000              Education,A,2023,6
47,Unassigned,MORDEN PRIMARY SCHOOL,REF 23LMPE000002,15-Sep-23,5300,0,1446,Corporate Services,170000              Education,A,2023,6
48,Unassigned,MERTON PARK PRIMARY SCHOOL,SCHOOLS 2324/6 A,07-Sep-23,166847.28,0,1447,Schools,170000              Education,A,2023,6
49,Unassigned,MERTON ABBEY PRIMARY SCHOOL,SCHOOLS 2324/6 A,07-Sep-23,179018.68,0,1448,Schools,170000              Education,A,2023,6
50,Unassigned,LONESOME PRIMARY SCHOOL,SCHOOLS 2324/6 A,07-Sep-23,281398.79,0,1450,Schools,170000              Education,A,2023,6
51,Unassigned,LINKS PRIMARY SCHOOL,SCHOOLS 2324/6 A,07-Sep-23,292445.92,0,1451,Schools,170000              Education,A,2023,6
52,"Children, Schools and Family",LINKS PRIMARY SCHOOL,HAFSUM-P3,29-Sep-23,3225,0,1451,Holiday Act Food Prog grntfnd,170000              Education,A,2023,6
53,Unassigned,JOSEPH HOOD PRIMARY SCHOOL,SCHOOLS 2324/6 A,07-Sep-23,288418.53,0,1452,Schools,170000              Education,A,2023,6
54,Unassigned,HOLY TRINITY C OF E PRIMARY SCHOOL,SCHOOLS 2324/6 A,07-Sep-23,297125.8,0,1453,Schools,170000              Education,A,2023,6
55,Unassigned,HOLLYMOUNT PRIMARY SCHOOL,SCHOOLS 2324/6 A,07-Sep-23,301079.32,0,1454,Schools,170000              Education,A,2023,6
56,Unassigned,HATFEILD PRIMARY SCHOOL,SCHOOLS 2324/6 A,07-Sep-23,367717.63,0,1455,Schools,170000              Education,A,2023,6
57,Unassigned,HASLEMERE PRIMARY SCHOOL,SCHOOLS 2324/6 A,07-Sep-23,305263.55,0,1456,Schools,170000              Education,A,2023,6
58,Unassigned,GARFIELD PRIMARY SCHOOL,SCHOOLS 2324/6 A,07-Sep-23,226525.21,0,1460,Schools,170000              Education,A,2023,6
59,"Children, Schools and Family",GARFIELD PRIMARY SCHOOL,161,21-Sep-23,1428.8,0,1460,School Improvement GeneralFund,170000              Education,A,2023,6
60,"Children, Schools and Family",GARFIELD PRIMARY SCHOOL,162,21-Sep-23,1428.8,0,1460,School Improvement GeneralFund,170000              Education,A,2023,6
61,"Children, Schools and Family",GARFIELD PRIMARY SCHOOL,163,21-Sep-23,1428.8,0,1460,School Improvement GeneralFund,170000              Education,A,2023,6
62,"Children, Schools and Family",GARFIELD PRIMARY SCHOOL,164,21-Sep-23,1428.8,0,1460,School Improvement GeneralFund,170000              Education,A,2023,6
63,"Children, Schools and Family",GARFIELD PRIMARY SCHOOL,165,21-Sep-23,1428.8,0,1460,School Improvement GeneralFund,170000              Education,A,2023,6
64,"Children, Schools and Family",GARFIELD PRIMARY SCHOOL,166,21-Sep-23,1428.8,0,1460,School Improvement GeneralFund,170000              Education,A,2023,6
65,"Children, Schools and Family",GARFIELD PRIMARY SCHOOL,169,21-Sep-23,1428.8,0,1460,School Improvement GeneralFund,170000              Education,A,2023,6
66,"Children, Schools and Family",GARFIELD PRIMARY SCHOOL,170,21-Sep-23,1428.8,0,1460,School Improvement GeneralFund,170000              Education,A,2023,6
67,Unassigned,BOND PRIMARY SCHOOL,SCHOOLS 2324/6 A,07-Sep-23,281509.74,0,1462,Schools,170000              Education,A,2023,6
68,Unassigned,BISHOP GILPIN C OF E PRIMARY,SCHOOLS 2324/6 A,07-Sep-23,305955.4,0,1463,Schools,170000              Education,A,2023,6
69,Unassigned,ABBOTSBURY PRIMARY SCHOOL,SCHOOLS 2324/6 A,07-Sep-23,308181.61,0,1467,Schools,170000              Education,A,2023,6
70,Unassigned,WIMBLEDON CHASE PRIMARY SCHOOL,SCHOOLS 2324/6 A,07-Sep-23,507468.51,0,1469,Schools,170000              Education,A,2023,6
71,Unassigned,GORRINGE PARK PRIMARY SCHOOL,SCHOOLS 2324/6 A,07-Sep-23,304896.5,0,1470,Schools,170000              Education,A,2023,6
72,Unassigned,RAYNES PARK SECONDARY SCHOOL,SCHOOLS 2324/6 A,07-Sep-23,1136377.76,0,1471,Schools,170000              Education,A,2023,6
73,Unassigned,SS PETER AND PAUL RC PRIMARY SCH,SCHOOLS 2324/6 A,07-Sep-23,234186.4,0,1472,Schools,170000              Education,A,2023,6
74,Unassigned,DUNDONALD PRIMARY SCHOOL,SCHOOLS 2324/6 A,07-Sep-23,300210.88,0,1473,Schools,170000              Education,A,2023,6
75,Community and Housing,MERTON MENCAP,4571,11-Sep-23,720,0,1519,Learning Disabilities Placemnt,200000              Financial Services,A,2023,6
76,Community and Housing,MERTON MENCAP,4576,11-Sep-23,720,0,1519,Learning Disabilities Placemnt,200000              Financial Services,A,2023,6
77,Community and Housing,MERTON MENCAP,4570,11-Sep-23,720,0,1519,Learning Disabilities Placemnt,200000              Financial Services,A,2023,6
78,Community and Housing,MERTON MENCAP,4579,12-Sep-23,720,0,1519,Learning Disabilities Placemnt,200000              Financial Services,A,2023,6
79,Community and Housing,MERTON MENCAP,4458,12-Sep-23,720,0,1519,Learning Disabilities Placemnt,200000              Financial Services,A,2023,6
80,Community and Housing,MERTON MENCAP,4565,12-Sep-23,640,0,1519,Learning Disabilities Placemnt,200000              Financial Services,A,2023,6
81,Community and Housing,MERTON MENCAP,4398,12-Sep-23,560,0,1519,Learning Disabilities Placemnt,200000              Financial Services,A,2023,6
82,Community and Housing,MERTON MENCAP,4563,12-Sep-23,640,0,1519,Learning Disabilities Placemnt,200000              Financial Services,A,2023,6
83,Community and Housing,MERTON MENCAP,4455,12-Sep-23,720,0,1519,Learning Disabilities Placemnt,200000              Financial Services,A,2023,6
84,Community and Housing,MERTON MENCAP,4399,12-Sep-23,560,0,1519,Learning Disabilities Placemnt,200000              Financial Services,A,2023,6
85,Community and Housing,MERTON MENCAP,4364,12-Sep-23,800,0,1519,Learning Disabilities Placemnt,200000              Financial Services,A,2023,6
86,"Children, Schools and Family",MERTON MENCAP,4585,02-Oct-23,25415,0,1519, Statementing-Transport,200000              Financial Services,A,2023,6
87,Unassigned,ALL SAINTS C OF E PRIMARY SCH,SCHOOLS 2324/6 A,07-Sep-23,265504.8,0,1680,Schools,170000              Education,A,2023,6
88,"Children, Schools and Family",REDACTED PERSONAL DATA,1018826,08-Sep-23,1017.88,0,1801,Placements Under 18,321100              Social Community Care Supplies & Services - Children,R,2023,6
89,"Children, Schools and Family",REDACTED PERSONAL DATA,1018831,08-Sep-23,548.09,0,1801,Placements Under 18,321100              Social Community Care Supplies & Services - Children,R,2023,6
90,Corporate Services,CIVICA UK LIMITED,C/BN283035,19-Sep-23,12136.67,2022.78,1873,Benefits Administration,270000              Information Communication Technology,A,2023,6
91,Corporate Services,CIVICA UK LIMITED,C/RB284915,05-Oct-23,9148.27,1524.71,1873,Benefits Administration,270000              Information Communication Technology,A,2023,6
92,Community and Housing,CIVICA UK LIMITED,C/BN282451,14-Sep-23,8433.6,1405.6,1873,Financial Assessment Team (FA),270000              Information Communication Technology,A,2023,6
93,Community and Housing,THE FRANCES TAYLOR FOUNDATION,1028732,27-Sep-23,3812.04,0,2011,Learning Disabilities Placemnt,321017              Nursing & Residential Care Homes,A,2023,6
94,Community and Housing,THE FRANCES TAYLOR FOUNDATION,1029040,27-Sep-23,8113.92,0,2011,Learning Disabilities Placemnt,321017              Nursing & Residential Care Homes,A,2023,6
95,"Children, Schools and Family",ST JOSEPHS SCHOOL,T0004484,07-Sep-23,42032.36,0,2017,Non-Delegated Statements,170000              Education,A,2023,6
96,"Children, Schools and Family",ST JOSEPHS SCHOOL,T0004485,07-Sep-23,41810.62,0,2017,Non-Delegated Statements,170000              Education,A,2023,6
97,Unassigned,SACRED HEART R C PRIMARY SCH.,SCHOOLS 2324/6 A,07-Sep-23,247430.5,0,2076,Schools,170000              Education,A,2023,6
98,Corporate Services,CANON UK LIMITED,2.3088E+12,26-Sep-23,1911.6,318.6,2181,Business Systems,340000              Stationery,A,2023,6
99,Corporate Services,CANON UK LIMITED,2.3088E+12,26-Sep-23,1911.6,318.6,2181,Business Systems,340000              Stationery,A,2023,6
100,Community and Housing,GENEVA ROAD LIMITED,310823JW,19-Sep-23,721.01,120.17,2198,Older People Placements - East,321000              Social Community Care Supplies & Services - Adult,A,2023,6
101,Unassigned,LONDON BOROUGH OF SUTTON,�CARGIRLSSCHOO,08-Sep-23,750,0,2313,Corporate Services,OLA,A,2023,6
102,Corporate Services,LONDON BOROUGH OF SUTTON,"""SLLPINCOMEM0523",08-Sep-23,5100,0,2313,SLLP Client Income,OLA,A,2023,6
103,"Children, Schools and Family",LONDON BOROUGH OF SUTTON,3190166036,21-Sep-23,33975,0,2313,Head - Help & Family Assessmnt,OLA,A,2023,6
104,Community and Housing,FREEWAYS TRUST LTD,1028635,27-Sep-23,3186.04,0,2474,Learning Disabilities Placemnt,321017              Nursing & Residential Care Homes,A,2023,6
105,Unassigned,WIMBLEDON AND PUTNEY COMMON,2.02309E+11,25-Sep-23,42294.8,0,10566,WPCC,PRECEPT,A,2023,6
106,Community and Housing,CLOYDA LTD,1022714,14-Sep-23,822.85,0,10762,Older People Placements - East,321017              Nursing & Residential Care Homes,A,2023,6
107,Community and Housing,CLOYDA LTD,1028913,27-Sep-23,4000,0,10762,Older People Placements - East,321017              Nursing & Residential Care Homes,A,2023,6
108,Community and Housing,CHEGWORTH N.H. (BAYSWIFT LTD),1028871,27-Sep-23,3056.4,0,11057,Learning Disabilities Placemnt,321000              Social Community Care Supplies & Services - Adult,A,2023,6
109,"Children, Schools and Family",REDACTED PERSONAL DATA,1015831,01-Sep-23,692.46,0,11130,Placements Under 18,321100              Social Community Care Supplies & Services - Children,R,2023,6
110,"Children, Schools and Family",REDACTED PERSONAL DATA,1018793,08-Sep-23,692.46,0,11130,Placements Under 18,321100              Social Community Care Supplies & Services - Children,R,2023,6
111,"Children, Schools and Family",REDACTED PERSONAL DATA,1023347,15-Sep-23,692.46,0,11130,Placements Under 18,321100              Social Community Care Supplies & Services - Children,R,2023,6
112,"Children, Schools and Family",REDACTED PERSONAL DATA,1027566,22-Sep-23,692.46,0,11130,Placements Under 18,321100              Social Community Care Supplies & Services - Children,R,2023,6
113,"Children, Schools and Family",REDACTED PERSONAL DATA,1031849,28-Sep-23,692.46,0,11130,Placements Under 18,321100              Social Community Care Supplies & Services - Children,R,2023,6
114,Community and Housing,ETHNIC MINORITY CENTRE,2,06-Sep-23,996,0,11472,PH - Elderly Care Pilot,200000              Financial Services,A,2023,6
115,Community and Housing,Queens Court,1028904,27-Sep-23,3220.32,0,12747,Older People Placements - East,321017              Nursing & Residential Care Homes,A,2023,6
116,Community and Housing,ASHCROFT CARE SERVICES,1028870,27-Sep-23,6116.88,0,13287,Learning Disabilities Placemnt,321017              Nursing & Residential Care Homes,A,2023,6
117,Community and Housing,SHARE COMMUNITY LTD,240957,29-Sep-23,600,0,13487,Learning Disabilities Placemnt,321017              Nursing & Residential Care Homes,A,2023,6
118,Community and Housing,SHARE COMMUNITY LTD,240959,29-Sep-23,840,0,13487,Learning Disabilities Placemnt,321017              Nursing & Residential Care Homes,A,2023,6
119,Community and Housing,SHARE COMMUNITY LTD,240964,29-Sep-23,560,0,13487,Learning Disabilities Placemnt,321017              Nursing & Residential Care Homes,A,2023,6
120,Community and Housing,SHARE COMMUNITY LTD,240967,29-Sep-23,1120,0,13487,Learning Disabilities Placemnt,321017              Nursing & Residential Care Homes,A,2023,6
121,Community and Housing,SHARE COMMUNITY LTD,240969,29-Sep-23,840,0,13487,Learning Disabilities Placemnt,321017              Nursing & Residential Care Homes,A,2023,6
122,Community and Housing,SHARE COMMUNITY LTD,240977,29-Sep-23,900,0,13487,Learning Disabilities Placemnt,321017              Nursing & Residential Care Homes,A,2023,6
123,Community and Housing,SHARE COMMUNITY LTD,240986,29-Sep-23,624,0,13487,Learning Disabilities Placemnt,321017              Nursing & Residential Care Homes,A,2023,6
124,Community and Housing,FITZROY SUPPORT,1028979,27-Sep-23,9010.16,0,13535,Learning Disabilities Placemnt,321017              Nursing & Residential Care Homes,A,2023,6
125,Community and Housing,CANTERBURY OAST TRUST LTD,1028646,27-Sep-23,2496.88,0,13566,Learning Disabilities Placemnt,321017              Nursing & Residential Care Homes,A,2023,6
126,Community and Housing,MACINTYRE,1028655,27-Sep-23,6259.88,0,13585,Learning Disabilities Placemnt,321017              Nursing & Residential Care Homes,A,2023,6
127,Community and Housing,MACINTYRE,1028842,27-Sep-23,6120.88,0,13585,Learning Disabilities Placemnt,321017              Nursing & Residential Care Homes,A,2023,6
128,Community and Housing,MACINTYRE,1028945,27-Sep-23,6120.88,0,13585,Older People Placements - East,321017              Nursing & Residential Care Homes,A,2023,6
129,Community and Housing,MACINTYRE,1028978,27-Sep-23,4825.24,0,13585,Learning Disabilities Placemnt,321017              Nursing & Residential Care Homes,A,2023,6
130,Community and Housing,KENT AUTISTIC TRUST,1028955,27-Sep-23,7494.72,0,13670,Learning Disabilities Placemnt,321017              Nursing & Residential Care Homes,A,2023,6
131,Community and Housing,WIMBLEDON TREE SURGEONS,INV-0774,26-Sep-23,708,118,14038,Merton Action Single Homeless,240000              Horticultural,A,2023,6
132,Community and Housing,UNITED RESPONSE,VSMR840055-BAA,01-Sep-23,4837.78,806.3,14616,Learning Disabilities Placemnt,321000              Social Community Care Supplies & Services - Adult,A,2023,6
133,Community and Housing,UNITED RESPONSE,VSMR840055-BO,01-Sep-23,4837.78,806.3,14616,Learning Disabilities Placemnt,321000              Social Community Care Supplies & Services - Adult,A,2023,6
134,Community and Housing,UNITED RESPONSE,VSMR840055-SAT,01-Sep-23,4837.78,806.3,14616,Learning Disabilities Placemnt,321000              Social Community Care Supplies & Services - Adult,A,2023,6
135,Community and Housing,UNITED RESPONSE,VSMR840055-SV,01-Sep-23,4837.78,806.3,14616,Learning Disabilities Placemnt,321000              Social Community Care Supplies & Services - Adult,A,2023,6
136,Community and Housing,UNITED RESPONSE,VSMR840055-RW,01-Sep-23,4837.78,806.3,14616,Learning Disabilities Placemnt,321000              Social Community Care Supplies & Services - Adult,A,2023,6
137,Community and Housing,UNITED RESPONSE,VSMR851610-BAA,01-Sep-23,4837.78,806.3,14616,Learning Disabilities Placemnt,321000              Social Community Care Supplies & Services - Adult,A,2023,6
138,Community and Housing,UNITED RESPONSE,VSMR851610-BO,01-Sep-23,4837.78,806.3,14616,Learning Disabilities Placemnt,321000              Social Community Care Supplies & Services - Adult,A,2023,6
139,Community and Housing,UNITED RESPONSE,VSMR851610-ST,01-Sep-23,4837.78,806.3,14616,Learning Disabilities Placemnt,321000              Social Community Care Supplies & Services - Adult,A,2023,6
140,Community and Housing,UNITED RESPONSE,VSMR851610-SV,01-Sep-23,4837.78,806.3,14616,Learning Disabilities Placemnt,321000              Social Community Care Supplies & Services - Adult,A,2023,6
141,Community and Housing,UNITED RESPONSE,VSMR-851610-RW,01-Sep-23,4837.78,806.3,14616,Learning Disabilities Placemnt,321000              Social Community Care Supplies & Services - Adult,A,2023,6
142,Community and Housing,UNITED RESPONSE,VSMR853996-BO,08-Sep-23,31493.95,5248.99,14616,Learning Disabilities Placemnt,321000              Social Community Care Supplies & Services - Adult,A,2023,6
143,Community and Housing,UNITED RESPONSE,VSMR853996-BA,08-Sep-23,31493.95,5248.99,14616,Learning Disabilities Placemnt,321000              Social Community Care Supplies & Services - Adult,A,2023,6
144,Community and Housing,UNITED RESPONSE,VSMR853996-ST,08-Sep-23,31493.95,5248.99,14616,Learning Disabilities Placemnt,321000              Social Community Care Supplies & Services - Adult,A,2023,6
145,Community and Housing,UNITED RESPONSE,VSMR853996-SV,08-Sep-23,31493.95,5248.99,14616,Learning Disabilities Placemnt,321000              Social Community Care Supplies & Services - Adult,A,2023,6
146,Community and Housing,UNITED RESPONSE,VSMR853996-RW,08-Sep-23,31493.95,5248.99,14616,Learning Disabilities Placemnt,321000              Social Community Care Supplies & Services - Adult,A,2023,6
147,Community and Housing,UNITED RESPONSE,VSMR855953RH,25-Sep-23,4486.08,747.68,14616,Learning Disabilities Placemnt,321000              Social Community Care Supplies & Services - Adult,A,2023,6
148,Community and Housing,UNITED RESPONSE,VSMR855953DH,25-Sep-23,4169.52,694.92,14616,Learning Disabilities Placemnt,321000              Social Community Care Supplies & Services - Adult,A,2023,6
149,Community and Housing,UNITED RESPONSE,VSMR855953HM,25-Sep-23,4960.9,826.82,14616,Learning Disabilities Placemnt,321000              Social Community Care Supplies & Services - Adult,A,2023,6
150,Community and Housing,UNITED RESPONSE,VSMR855953BS,25-Sep-23,4433.38,738.9,14616,Learning Disabilities Placemnt,321000              Social Community Care Supplies & Services - Adult,A,2023,6
151,Community and Housing,UNITED RESPONSE,VSMR855953CW,25-Sep-23,5171.9,861.98,14616,Learning Disabilities Placemnt,321000              Social Community Care Supplies & Services - Adult,A,2023,6
152,Community and Housing,UNITED RESPONSE,1027931,25-Sep-23,1108.8,184.8,14616,Learning Disabilities Placemnt,321000              Social Community Care Supplies & Services - Adult,A,2023,6
153,Community and Housing,UNITED RESPONSE,1028844,27-Sep-23,10348.8,1724.8,14616,Learning Disabilities Placemnt,321000              Social Community Care Supplies & Services - Adult,A,2023,6
154,Corporate Services,KINGSTON CORPORATION,M05LEGAL23/24',08-Sep-23,14250,0,21573,SLLP Client Income,180000              Environmental Services,A,2023,6
155,Corporate Services,KINGSTON CORPORATION,37600690,18-Sep-23,2939.7,209.45,21573,HR TRANSACTIONS,180000              Environmental Services,A,2023,6
156,Environment and Regeneration,KINGSTON CORPORATION,37610572,26-Sep-23,32280.23,0,21573,Garden Waste Service,180000              Environmental Services,A,2023,6
157,Environment and Regeneration,KINGSTON CORPORATION,37610564,26-Sep-23,7098.58,0,21573,Food Waste Service,180000              Environmental Services,A,2023,6
158,Community and Housing,TRINITY COURT NURSING HOME,1028700,27-Sep-23,2861.6,0,30306,Older People Placements - East,321017              Nursing & Residential Care Homes,A,2023,6
159,Community and Housing,TRINITY COURT NURSING HOME,1028843,27-Sep-23,2985.6,0,30306,Older People Placements - East,321017              Nursing & Residential Care Homes,A,2023,6
160,Community and Housing,TRINITY COURT NURSING HOME,1028876,27-Sep-23,3063.24,0,30306,Older People Placements - East,321017              Nursing & Residential Care Homes,A,2023,6
161,Community and Housing,TRINITY COURT NURSING HOME,1028891,27-Sep-23,3355.92,0,30306,Phys/Sens Placements - East,321017              Nursing & Residential Care Homes,A,2023,6
162,Community and Housing,TRINITY COURT NURSING HOME,1028954,27-Sep-23,2985.6,0,30306,Older People Placements - East,321017              Nursing & Residential Care Homes,A,2023,6
163,Community and Housing,TRINITY COURT NURSING HOME,1028962,27-Sep-23,2861.6,0,30306,Older People Placements - East,321017              Nursing & Residential Care Homes,A,2023,6
164,Community and Housing,TRINITY COURT NURSING HOME,1028971,27-Sep-23,3063.24,0,30306,Older People Placements - East,321017              Nursing & Residential Care Homes,A,2023,6
165,Community and Housing,TRINITY COURT NURSING HOME,1029033,27-Sep-23,2985.6,0,30306,Older People Placements - East,321017              Nursing & Residential Care Homes,A,2023,6
166,Community and Housing,TRINITY COURT NURSING HOME,1029066,27-Sep-23,2876.32,0,30306,Older People Placements - East,321017              Nursing & Residential Care Homes,A,2023,6
167,Community and Housing,TRINITY COURT NURSING HOME,1029068,27-Sep-23,3149.6,0,30306,Older People Placements - East,321017              Nursing & Residential Care Homes,A,2023,6
168,Community and Housing,TRINITY COURT NURSING HOME,1029070,27-Sep-23,2521.12,0,30306,Older People Placements - East,321017              Nursing & Residential Care Homes,A,2023,6
169,Community and Housing,HAYDON PARK LODGE,1028791,27-Sep-23,3485,0,31434,Learning Disabilities Placemnt,321017              Nursing & Residential Care Homes,A,2023,6
170,Community and Housing,HAYDON PARK LODGE,1028818,27-Sep-23,4591.44,0,31434,Learning Disabilities Placemnt,321017              Nursing & Residential Care Homes,A,2023,6
171,Community and Housing,HAYDON PARK LODGE,1028898,27-Sep-23,5070.76,0,31434,Learning Disabilities Placemnt,321017              Nursing & Residential Care Homes,A,2023,6
172,Community and Housing,HAYDON PARK LODGE,1028941,27-Sep-23,4420.08,0,31434,Learning Disabilities Placemnt,321017              Nursing & Residential Care Homes,A,2023,6
173,Community and Housing,HAYDON PARK LODGE,1028984,27-Sep-23,7000,0,31434,Learning Disabilities Placemnt,321017              Nursing & Residential Care Homes,A,2023,6
174,Community and Housing,Barchester Healthcare Wimbledon Beaumont,147029236,22-Sep-23,2773.28,0,33384,Phys/Sens Placements - East,321017              Nursing & Residential Care Homes,A,2023,6
175,Community and Housing,Barchester Healthcare Wimbledon Beaumont,147029451,22-Sep-23,2773.28,0,33384,Phys/Sens Placements - East,321017              Nursing & Residential Care Homes,A,2023,6
176,Community and Housing,Barchester Healthcare Wimbledon Beaumont,147029339,22-Sep-23,2773.28,0,33384,Phys/Sens Placements - East,321017              Nursing & Residential Care Homes,A,2023,6
177,Community and Housing,Barchester Healthcare Wimbledon Beaumont,147025353,26-Sep-23,2618.76,0,33384,Phys/Sens Placements - East,321017              Nursing & Residential Care Homes,A,2023,6
178,Community and Housing,Barchester Healthcare Wimbledon Beaumont,147027445,26-Sep-23,1964.07,0,33384,Phys/Sens Placements - East,321017              Nursing & Residential Care Homes,A,2023,6
179,Community and Housing,COMFORT CARE SERVICES (UK) LTD,SU0091/277,25-Sep-23,871.36,0,34932,Mental Health Placements,321000              Social Community Care Supplies & Services - Adult,A,2023,6
180,Community and Housing,COMFORT CARE SERVICES (UK) LTD,SU0266/1616,11-Sep-23,2380,0,34932,Mental Health Placements,321000              Social Community Care Supplies & Services - Adult,A,2023,6
181,Community and Housing,COMFORT CARE SERVICES (UK) LTD,SU0133/1168,11-Sep-23,2380,0,34932,Mental Health Placements,321000              Social Community Care Supplies & Services - Adult,A,2023,6
182,Community and Housing,COMFORT CARE SERVICES (UK) LTD,SU0184/1103,11-Sep-23,2380,0,34932,Mental Health Placements,321000              Social Community Care Supplies & Services - Adult,A,2023,6
183,Community and Housing,COMFORT CARE SERVICES (UK) LTD,SSU1051/1415-16,11-Sep-23,3295,0,34932,Mental Health Placements,321000              Social Community Care Supplies & Services - Adult,A,2023,6
184,Community and Housing,COMFORT CARE SERVICES (UK) LTD,SU0208/1671,11-Sep-23,2380,0,34932,Mental Health Placements,321000              Social Community Care Supplies & Services - Adult,A,2023,6
185,Community and Housing,COMFORT CARE SERVICES (UK) LTD,SU0201/1529,11-Sep-23,2380,0,34932,Mental Health Placements,321000              Social Community Care Supplies & Services - Adult,A,2023,6
186,Community and Housing,COMFORT CARE SERVICES (UK) LTD,SU0210/1169,11-Sep-23,2380,0,34932,Mental Health Placements,321000              Social Community Care Supplies & Services - Adult,A,2023,6
187,Community and Housing,COMFORT CARE SERVICES (UK) LTD,SU0294/1649,11-Sep-23,2380,0,34932,Mental Health Placements,321000              Social Community Care Supplies & Services - Adult,A,2023,6
188,Community and Housing,COMFORT CARE SERVICES (UK) LTD,SU1102/1670,11-Sep-23,2380,0,34932,Mental Health Placements,321000              Social Community Care Supplies & Services - Adult,A,2023,6
189,Community and Housing,COMFORT CARE SERVICES (UK) LTD,SU0298/1104,11-Sep-23,2380,0,34932,Mental Health Placements,321000              Social Community Care Supplies & Services - Adult,A,2023,6
190,Community and Housing,COMFORT CARE SERVICES (UK) LTD,SU0291/1170,18-Sep-23,2380,0,34932,Mental Health Placements,321000              Social Community Care Supplies & Services - Adult,A,2023,6
191,Community and Housing,COMFORT CARE SERVICES (UK) LTD,SU0146/1528,18-Sep-23,2380,0,34932,Mental Health Placements,321000              Social Community Care Supplies & Services - Adult,A,2023,6
192,Community and Housing,COMFORT CARE SERVICES (UK) LTD,SU1041/899,25-Sep-23,1579.5,0,34932,Mental Health Placements,321000              Social Community Care Supplies & Services - Adult,A,2023,6
193,"Children, Schools and Family",CASTLE KINDERGARTEN,P2 23 UPFRONTPAY,04-Sep-23,19880.64,0,35082,EARLY YEARS NURSERY GRANTS,170000              Education,A,2023,6
194,"Children, Schools and Family",CROWN KINDERGARTEN,P2 23 UPFRONTPAY,04-Sep-23,6244.56,0,35084,EARLY YEARS NURSERY GRANTS,170000              Education,A,2023,6
195,"Children, Schools and Family",JIGSAW DAY NURSERY,P2 23 UPFRONTPAY,04-Sep-23,26570.88,0,35097,EARLY YEARS NURSERY GRANTS,170000              Education,A,2023,6
196,"Children, Schools and Family",NURSERY ON THE GREEN,P2 23 UPFRONTPAY,04-Sep-23,18859.68,0,35101,EARLY YEARS NURSERY GRANTS,170000              Education,A,2023,6
197,"Children, Schools and Family",URSULINE PREPARATORY SCHOOL,P2 23 UPFRONTPAY,04-Sep-23,29438.64,0,35109,EARLY YEARS NURSERY GRANTS,170000              Education,A,2023,6
198,"Children, Schools and Family",WILLINGTON SCH.FOUNDATION LTD,P2 23 UPFRONTPAY,04-Sep-23,13432.18,0,35111,EARLY YEARS NURSERY GRANTS,170000              Education,A,2023,6
199,"Children, Schools and Family",BUSY BEES DAY NURSERY - MORDEN,P2 23 UPFRONTPAY,04-Sep-23,31689.84,0,35564,EARLY YEARS NURSERY GRANTS,170000              Education,A,2023,6
200,Unassigned,ST MATTHEW'S C OF E PRIMARY,SCHOOLS 2324/6 A,07-Sep-23,140872.72,0,36050,Schools,170000              Education,A,2023,6
201,Unassigned,I AND  J BUSHELL LTD,4891,26-Sep-23,9012,1502,42221,Mitcham Common Conservators,"390000              Works - Construction, Repair & Maintenance",A,2023,6
202,Community and Housing,ROYAL HOSP FOR NEURO-DISAB,1017272,25-Sep-23,35376.03,0,46286,Older People Placements - East,321000              Social Community Care Supplies & Services - Adult,A,2023,6
203,"Children, Schools and Family",SURREY COUNTY COUNCIL,20107504,22-Sep-23,8878,0,46682,Non-Delegated Statements,OLA,A,2023,6
204,"Children, Schools and Family",SURREY COUNTY COUNCIL,20107503,22-Sep-23,3379,0,46682,Non-Delegated Statements,OLA,A,2023,6
205,"Children, Schools and Family",SURREY COUNTY COUNCIL,20107505,22-Sep-23,2694,0,46682,Non-Delegated Statements,OLA,A,2023,6
206,"Children, Schools and Family",SURREY COUNTY COUNCIL,20107507,22-Sep-23,1988,0,46682,Non-Delegated Statements,OLA,A,2023,6
207,Corporate Services,MERTON CITIZEN ADVICE BUREAU,COST OF LIVING,28-Sep-23,50000,0,48029,Cost of Living Fund,200000              Financial Services,A,2023,6
208,"Children, Schools and Family",UNIVERSITY OF BIRMINGHAM,81377273,12-Sep-23,3540,0,48543,Sensory Team,170000              Education,A,2023,6
209,Community and Housing,REDACTED PERSONAL DATA,1020502,12-Sep-23,6021.4,0,50448,Older People Placements - East,DIRECT PAYMENTS,R,2023,6
210,Community and Housing,LINKAGE COMMUNITY TR.LONG-STAY,1028932,27-Sep-23,3340.08,0,52552,Learning Disabilities Placemnt,321017              Nursing & Residential Care Homes,A,2023,6
211,Environment and Regeneration,COMPLETE WEED CONTROL,LS7433,19-Sep-23,552,92,53122,Reactive Maintenance,240000              Horticultural,A,2023,6
212,Community and Housing,RUTLAND HOUSE CARE HOME,1028811,27-Sep-23,3156,0,53424,Older People Placements - East,321017              Nursing & Residential Care Homes,A,2023,6
213,Community and Housing,RUTLAND HOUSE CARE HOME,1028924,27-Sep-23,3200,0,53424,Older People Placements - East,321017              Nursing & Residential Care Homes,A,2023,6
214,"Children, Schools and Family",HASLEMERE HOUSE DAY NURSERY,P2 23 UPFRONTPAY,04-Sep-23,38718.96,0,55612,EARLY YEARS NURSERY GRANTS,170000              Education,A,2023,6
215,Community and Housing,PARK LODGE,1028780,27-Sep-23,2895.68,0,56878,Learning Disabilities Placemnt,321017              Nursing & Residential Care Homes,A,2023,6
216,Community and Housing,PARK LODGE,1028874,27-Sep-23,3026.8,0,56878,Learning Disabilities Placemnt,321017              Nursing & Residential Care Homes,A,2023,6
217,Unassigned,CRICKET GREEN SCHOOL,SCHOOLS 2324/6 A,07-Sep-23,693673.24,0,57057,Schools,170000              Education,A,2023,6
218,Environment and Regeneration,MERTON VOLUNTARY SERV COUNCIL,5237,19-Sep-23,5070,0,57560,Greenspaces Team (General),190000              Facilities & Management Services,A,2023,6
219,Corporate Services,JADE SECURITY SERVICE LTD,6227,22-Sep-23,2804.24,467.37,57563,Cash Collections,200000              Financial Services,A,2023,6
220,Corporate Services,JADE SECURITY SERVICE LTD,6006,03-Oct-23,2687.45,447.91,57563,Cash Collections,200000              Financial Services,A,2023,6
221,Community and Housing,WALSINGHAM,1028749,27-Sep-23,5943.28,0,58466,Learning Disabilities Placemnt,321017              Nursing & Residential Care Homes,A,2023,6
222,Community and Housing,WALSINGHAM,1028880,27-Sep-23,7292.52,0,58466,Learning Disabilities Placemnt,321017              Nursing & Residential Care Homes,A,2023,6
223,Community and Housing,WALSINGHAM,1028930,27-Sep-23,5942.76,0,58466,Learning Disabilities Placemnt,321017              Nursing & Residential Care Homes,A,2023,6
224,Community and Housing,WALSINGHAM,1028990,27-Sep-23,7991.72,0,58466,Learning Disabilities Placemnt,321017              Nursing & Residential Care Homes,A,2023,6
225,Community and Housing,CARE UK,1028630,27-Sep-23,3504.04,0,58851,Older People Placements - East,321017              Nursing & Residential Care Homes,A,2023,6
226,Community and Housing,CARE UK,1028634,27-Sep-23,4321.16,0,58851,Older People Placements - East,321017              Nursing & Residential Care Homes,A,2023,6
227,Community and Housing,CARE UK,1028683,27-Sep-23,4321.16,0,58851,Older People Placements - East,321017              Nursing & Residential Care Homes,A,2023,6
228,Community and Housing,CARE UK,1028704,27-Sep-23,4039.72,0,58851,Older People Placements - East,321017              Nursing & Residential Care Homes,A,2023,6
229,Community and Housing,CARE UK,1028725,27-Sep-23,4123,0,58851,Older People Placements - East,321017              Nursing & Residential Care Homes,A,2023,6
230,Community and Housing,CARE UK,1028728,27-Sep-23,4039.72,0,58851,Older People Placements - East,321017              Nursing & Residential Care Homes,A,2023,6
231,Community and Housing,CARE UK,1028879,27-Sep-23,4560,0,58851,Older People Placements - East,321017              Nursing & Residential Care Homes,A,2023,6
232,Community and Housing,CARE UK,1028928,27-Sep-23,4321.16,0,58851,Older People Placements - East,321017              Nursing & Residential Care Homes,A,2023,6
233,Community and Housing,CARE UK,1028940,27-Sep-23,3541.8,0,58851,Older People Placements - East,321017              Nursing & Residential Care Homes,A,2023,6
234,Community and Housing,CARE UK,1028964,27-Sep-23,4300.12,0,58851,Older People Placements - East,321017              Nursing & Residential Care Homes,A,2023,6
235,Community and Housing,CARE UK,1028977,27-Sep-23,4039.72,0,58851,Older People Placements - East,321017              Nursing & Residential Care Homes,A,2023,6
236,Community and Housing,CARE UK,1029015,27-Sep-23,4340,0,58851,Older People Placements - East,321017              Nursing & Residential Care Homes,A,2023,6
237,Community and Housing,CARE UK,1029019,27-Sep-23,3504.04,0,58851,Older People Placements - East,321017              Nursing & Residential Care Homes,A,2023,6
238,"Children, Schools and Family",ST MICHAEL'S FELLOWSHIP,C3101/2100,18-Sep-23,25234,0,59560,Placements Under 18,280000              Legal Services,A,2023,6
239,"Children, Schools and Family",ST MICHAEL'S FELLOWSHIP,C3104A/2100,18-Sep-23,13838,0,59560,Placements Under 18,280000              Legal Services,A,2023,6
240,"Children, Schools and Family",ST MICHAEL'S FELLOWSHIP,C3104B/2100,22-Sep-23,5362,0,59560,Placements Under 18,280000              Legal Services,A,2023,6
241,"Children, Schools and Family",ST MICHAEL'S FELLOWSHIP,C3092A/2100,26-Sep-23,25234,0,59560,Placements Under 18,280000              Legal Services,A,2023,6
242,Corporate Services,BRITISH TELECOMMUNICATIONS PLC,Q087 0Z,12-Sep-23,12659.36,2109.89,62082,IT-Telecomms,270000              Information Communication Technology,A,2023,6
243,Community and Housing,RUSHTON WORKWEAR LTD,54167,22-Sep-23,780,130,62131,Com Care Placement Contingency,140000              Clothing,A,2023,6
244,Community and Housing,RUSHTON WORKWEAR LTD,54218,28-Sep-23,3154.56,525.76,62131,Reablement,140000              Clothing,A,2023,6
245,Community and Housing,BARONS LODGE NURSING HOME,1017265,05-Sep-23,2846.71,0,62371,Older People Placements - East,321017              Nursing & Residential Care Homes,A,2023,6
246,Community and Housing,BARONS LODGE NURSING HOME,1022707,14-Sep-23,934.29,0,62371,Older People Placements - East,321017              Nursing & Residential Care Homes,A,2023,6
247,Community and Housing,BARONS LODGE NURSING HOME,1028696,27-Sep-23,1716,0,62371,Mental Health Placements,321017              Nursing & Residential Care Homes,A,2023,6
248,Community and Housing,BARONS LODGE NURSING HOME,1028789,27-Sep-23,4360,0,62371,Older People Placements - East,321017              Nursing & Residential Care Homes,A,2023,6
249,Community and Housing,BARONS LODGE NURSING HOME,1028802,27-Sep-23,3321.16,0,62371,Older People Placements - East,321017              Nursing & Residential Care Homes,A,2023,6
250,Community and Housing,BARONS LODGE NURSING HOME,1028829,27-Sep-23,3581.43,0,62371,Older People Placements - East,321017              Nursing & Residential Care Homes,A,2023,6
251,Community and Housing,BARONS LODGE NURSING HOME,1028893,27-Sep-23,3502,0,62371,Mental Health Placements,321017              Nursing & Residential Care Homes,A,2023,6
252,Community and Housing,BARONS LODGE NURSING HOME,1028900,27-Sep-23,4200,0,62371,Mental Health Placements,321017              Nursing & Residential Care Homes,A,2023,6
253,Community and Housing,BARONS LODGE NURSING HOME,1028966,27-Sep-23,4360,0,62371,Mental Health Placements,321017              Nursing & Residential Care Homes,A,2023,6
254,Community and Housing,BARONS LODGE NURSING HOME,1028972,27-Sep-23,4360,0,62371,Older People Placements - East,321017              Nursing & Residential Care Homes,A,2023,6
255,Community and Housing,BARONS LODGE NURSING HOME,1028973,27-Sep-23,3807.2,0,62371,Learning Disabilities Placemnt,321017              Nursing & Residential Care Homes,A,2023,6
256,Community and Housing,BARONS LODGE NURSING HOME,1028991,27-Sep-23,4800,0,62371,Older People Placements - East,321017              Nursing & Residential Care Homes,A,2023,6
257,Community and Housing,BARONS LODGE NURSING HOME,1029011,27-Sep-23,3502,0,62371,Older People Placements - East,321017              Nursing & Residential Care Homes,A,2023,6
258,Community and Housing,SANCTUARY CARE LTD,1028657,27-Sep-23,3117.52,0,63458,Learning Disabilities Placemnt,321017              Nursing & Residential Care Homes,A,2023,6
259,Community and Housing,THE REGARD PARTNERSHIP LTD,664000798,07-Sep-23,2577.92,0,63796,Mental Health Placements,321017              Nursing & Residential Care Homes,A,2023,6
260,Community and Housing,THE REGARD PARTNERSHIP LTD,1028645,27-Sep-23,6220.72,0,63796,Learning Disabilities Placemnt,321017              Nursing & Residential Care Homes,A,2023,6
261,Community and Housing,THE REGARD PARTNERSHIP LTD,1028747,27-Sep-23,6041.32,0,63796,Learning Disabilities Placemnt,321017              Nursing & Residential Care Homes,A,2023,6
262,Community and Housing,THE REGARD PARTNERSHIP LTD,1028763,27-Sep-23,9681.96,0,63796,Learning Disabilities Placemnt,321017              Nursing & Residential Care Homes,A,2023,6
263,Community and Housing,THE REGARD PARTNERSHIP LTD,1028777,27-Sep-23,5765,0,63796,Learning Disabilities Placemnt,321017              Nursing & Residential Care Homes,A,2023,6
264,Community and Housing,THE REGARD PARTNERSHIP LTD,1028883,27-Sep-23,6126.52,0,63796,Learning Disabilities Placemnt,321017              Nursing & Residential Care Homes,A,2023,6
265,Community and Housing,THE REGARD PARTNERSHIP LTD,1028992,27-Sep-23,4901.24,0,63796,Learning Disabilities Placemnt,321017              Nursing & Residential Care Homes,A,2023,6
266,"Children, Schools and Family",CAROUSEL DAY NURSERY,P2 23 UPFRONTPAY,04-Sep-23,16949.52,0,66990,EARLY YEARS NURSERY GRANTS,170000              Education,A,2023,6
267,"Children, Schools and Family",PLAYDAYS DAY NURSERY,P2 23 UPFRONTPAY,04-Sep-23,8920.8,0,66992,EARLY YEARS NURSERY GRANTS,170000              Education,A,2023,6
268,Community and Housing,NAS SERVICES LIMITED,ASU4398496,01-Sep-23,4546.8,757.8,68929,Mental Health Placements,321100              Social Community Care Supplies & Services - Children,A,2023,6
269,Community and Housing,TRANSPORT TRADING LIMITED [SE1 0AL],1ST QTR 22/23,11-Sep-23,1176694,0,71407,Concessionary Fares,360000              Passenger Transport,A,2023,6
270,"Children, Schools and Family",INTEGRATED SERVICES PROGRAMME,7316,05-Oct-23,14617.16,0,72728,Non-Delegated Statements,321100              Social Community Care Supplies & Services - Children,A,2023,6
271,Corporate Services,GALLERY 128,LBM0022,22-Sep-23,541.94,90.32,72941,Democracy Services,190000              Facilities & Management Services,A,2023,6
272,Corporate Services,NEC Software Solutions UK Limited,91476951,22-Sep-23,72300,12050,72946,Business Systems,190000              Facilities & Management Services,A,2023,6
273,"Children, Schools and Family",JANCETT CHILDCARE AND  JACE TRNG,P2 23 UPFRONTPAY,04-Sep-23,11681.04,0,75578,EARLY YEARS NURSERY GRANTS,260000              Human Resources,A,2023,6
274,Community and Housing,BRANDON TRUST,1017251,05-Sep-23,1292.25,0,76126,Learning Disabilities Placemnt,321017              Nursing & Residential Care Homes,A,2023,6
275,Community and Housing,BRANDON TRUST,1028652,27-Sep-23,4398.6,0,76126,Learning Disabilities Placemnt,321017              Nursing & Residential Care Homes,A,2023,6
276,"Children, Schools and Family",DICKY BIRDS PRE SCHOOL NURSERY,P2 23 UPFRONTPAY,04-Sep-23,23194.08,0,76508,EARLY YEARS NURSERY GRANTS,170000              Education,A,2023,6
277,Unassigned,LONDON BOROUGH OF SUTTON,BAILIFF AUG 2023,06-Sep-23,119541.18,0,76615,Corporate Services,OLA,A,2023,6
278,Unassigned,POST OFFICE LTD,MERTON23/24PO13,12-Sep-23,12496.8,0,77066,Adults Social Care,200000              Financial Services,A,2023,6
279,Unassigned,POST OFFICE LTD,MERTON 23/24PO14,20-Sep-23,10208.42,0,77066,Adults Social Care,200000              Financial Services,A,2023,6
280,Community and Housing,ABBEY HOUSE RESIDENTIAL HOMES,1028653,27-Sep-23,4774,0,78937,Older People Placements - East,321017              Nursing & Residential Care Homes,A,2023,6
281,Community and Housing,ABBEY HOUSE RESIDENTIAL HOMES,1028679,27-Sep-23,4774,0,78937,Older People Placements - East,321017              Nursing & Residential Care Homes,A,2023,6
282,Community and Housing,ABBEY HOUSE RESIDENTIAL HOMES,1028682,27-Sep-23,5520,0,78937,Mental Health Placements,321017              Nursing & Residential Care Homes,A,2023,6
283,Community and Housing,REDACTED PERSONAL DATA,1020298,12-Sep-23,6316.16,0,81639,Older People Placements - East,DIRECT PAYMENTS,R,2023,6
284,"Children, Schools and Family",DEE'S DAY NURSERY,P2 23 UPFRONTPAY,04-Sep-23,4460.4,0,82343,EARLY YEARS NURSERY GRANTS,170000              Education,A,2023,6
285,Corporate Services,IRON MOUNTAIN (UK) LTD,35000038,22-Sep-23,691.13,115.19,82409,IT-Telecomms,270000              Information Communication Technology,A,2023,6
286,Environment and Regeneration,S.GRUNDON (WASTE) LTD.,W158628,03-Oct-23,563.04,93.84,82593,Waste Disposal,180000              Environmental Services,A,2023,6
287,Environment and Regeneration,GREATER LONDON AUTHORITY,1800011868,18-Sep-23,5400,900,83050,Spatial Policy,PRECEPT,A,2023,6
288,Corporate Services,REDACTED PERSONAL DATA,112407,22-Sep-23,7800,1300,83383,SLLP - Disbursements,280000              Legal Services,R,2023,6
289,Corporate Services,REDACTED PERSONAL DATA,INVJD207,22-Sep-23,1020,170,83383,SLLP - Disbursements,280000              Legal Services,R,2023,6
290,Unassigned,MALMESBURY PRIMARY SCHOOL,SCHOOLS 2324/6 A,07-Sep-23,345477.86,0,83593,Schools,170000              Education,A,2023,6
291,"Children, Schools and Family",YOUNG EPILEPSY,INV11660,26-Sep-23,5403.01,0,84094,SEN Residential (DSG),170000              Education,A,2023,6
292,"Children, Schools and Family",YOUNG EPILEPSY,INV11661,26-Sep-23,5286.01,0,84094,SEN Residential (DSG),170000              Education,A,2023,6
293,"Children, Schools and Family",YOUNG EPILEPSY,INV11669,25-Sep-23,25263,0,84094,Non-Delegated Statements,170000              Education,A,2023,6
294,"Children, Schools and Family",YOUNG EPILEPSY,INV11668,25-Sep-23,21826,0,84094,Non-Delegated Statements,170000              Education,A,2023,6
295,"Children, Schools and Family",YOUNG EPILEPSY,INV11670,25-Sep-23,26308,0,84094,Non-Delegated Statements,170000              Education,A,2023,6
296,"Children, Schools and Family",YOUNG EPILEPSY,INV11671,25-Sep-23,26766,0,84094,Non-Delegated Statements,170000              Education,A,2023,6
297,"Children, Schools and Family",YOUNG EPILEPSY,INV11666,25-Sep-23,19642.66,0,84094,SEN Residential (DSG),170000              Education,A,2023,6
298,"Children, Schools and Family",YOUNG EPILEPSY,INV11667,25-Sep-23,19622.34,0,84094,SEN Residential (DSG),170000              Education,A,2023,6
299,Community and Housing,ALLSOP AND FRANCIS LTD,151798,04-Sep-23,660,110,85114,Meadowsweet Res Home,"390000              Works - Construction, Repair & Maintenance",A,2023,6
300,Environment and Regeneration,NEWSQUEST MEDIA GROUP LTD,43512414,27-Sep-23,621.5,103.58,85566,Development Control,190000              Facilities & Management Services,A,2023,6
301,Environment and Regeneration,NEWSQUEST MEDIA GROUP LTD,43515528,02-Oct-23,3388.39,564.73,85566,Tr Man & Accid Sch,190000              Facilities & Management Services,A,2023,6
302,Environment and Regeneration,NEWSQUEST MEDIA GROUP LTD,43514918,02-Oct-23,3065.69,510.95,85566,Footpath Crossings,190000              Facilities & Management Services,A,2023,6
303,"Children, Schools and Family",NEWSQUEST MEDIA GROUP LTD,43467364,22-Sep-23,1800,300,85566,Fostering Support,190000              Facilities & Management Services,A,2023,6
304,"Children, Schools and Family",NEWSQUEST MEDIA GROUP LTD,43248807,25-Sep-23,1800,300,85566,Fostering Recruit/Assessment,190000              Facilities & Management Services,A,2023,6
305,"Children, Schools and Family",CENTRE ACADEMY LONDON,MAU23-23,26-Sep-23,14300,0,88689,Non-Delegated Statements,170000              Education,A,2023,6
306,"Children, Schools and Family",CENTRE ACADEMY LONDON,LAAU2325,28-Sep-23,14300,0,88689,Non-Delegated Statements,170000              Education,A,2023,6
307,"Children, Schools and Family",CENTRE ACADEMY LONDON,LAAU2324,02-Oct-23,14300,0,88689,Non-Delegated Statements,170000              Education,A,2023,6
308,Community and Housing,SUPREME CARE SERVICES LIMITED,40042,07-Sep-23,1509.48,0,91840,Older People Placements - East,321000              Social Community Care Supplies & Services - Adult,A,2023,6
309,Community and Housing,SUPREME CARE SERVICES LIMITED,40041,07-Sep-23,1160.32,0,91840,Older People Placements - East,321000              Social Community Care Supplies & Services - Adult,A,2023,6
310,Community and Housing,SUPREME CARE SERVICES LIMITED,40036,07-Sep-23,1147.09,0,91840,Older People Placements - East,321000              Social Community Care Supplies & Services - Adult,A,2023,6
311,Community and Housing,SUPREME CARE SERVICES LIMITED,40037,08-Sep-23,3018.96,0,91840,Older People Placements - East,321000              Social Community Care Supplies & Services - Adult,A,2023,6
312,Community and Housing,SUPREME CARE SERVICES LIMITED,40035,08-Sep-23,3244.64,0,91840,Older People Placements - East,321000              Social Community Care Supplies & Services - Adult,A,2023,6
313,Community and Housing,SUPREME CARE SERVICES LIMITED,40012,08-Sep-23,2251.46,0,91840,Older People Placements - East,321000              Social Community Care Supplies & Services - Adult,A,2023,6
314,Community and Housing,SUPREME CARE SERVICES LIMITED,40039,15-Sep-23,1476.33,0,91840,Older People Placements - East,321000              Social Community Care Supplies & Services - Adult,A,2023,6
315,Community and Housing,SUPREME CARE SERVICES LIMITED,40059,19-Sep-23,3286.32,0,91840,Older People Placements - East,321000              Social Community Care Supplies & Services - Adult,A,2023,6
316,Community and Housing,SUPREME CARE SERVICES LIMITED,40060,19-Sep-23,2350.44,0,91840,Older People Placements - East,321000              Social Community Care Supplies & Services - Adult,A,2023,6
317,Community and Housing,SUPREME CARE SERVICES LIMITED,40061,19-Sep-23,3057.71,0,91840,Older People Placements - East,321000              Social Community Care Supplies & Services - Adult,A,2023,6
318,Community and Housing,SUPREME CARE SERVICES LIMITED,40065,19-Sep-23,1175.22,0,91840,Older People Placements - East,321000              Social Community Care Supplies & Services - Adult,A,2023,6
319,Community and Housing,SUPREME CARE SERVICES LIMITED,40063,20-Sep-23,1505.86,0,91840,Older People Placements - East,321000              Social Community Care Supplies & Services - Adult,A,2023,6
320,Community and Housing,Libraries Connected,3008,12-Sep-23,741.71,0,92250,Media Fund,200000              Financial Services,A,2023,6
321,Community and Housing,THE GARWOOD FOUNDATION,MW.DFSEP23,29-Sep-23,1062,0,92268,Older People Placements - East,321000              Social Community Care Supplies & Services - Adult,A,2023,6
322,Community and Housing,CARE MANAGEMENT GROUP,613000681,01-Sep-23,6353.48,0,93533,Learning Disabilities Placemnt,321017              Nursing & Residential Care Homes,A,2023,6
323,Community and Housing,CARE MANAGEMENT GROUP,397000760,01-Sep-23,4961.72,0,93533,Learning Disabilities Placemnt,321017              Nursing & Residential Care Homes,A,2023,6
324,Community and Housing,CARE MANAGEMENT GROUP,255001517,01-Sep-23,8725.64,0,93533,Learning Disabilities Placemnt,321017              Nursing & Residential Care Homes,A,2023,6
325,Community and Housing,CARE MANAGEMENT GROUP,613000652,07-Sep-23,6353.48,0,93533,Learning Disabilities Placemnt,321017              Nursing & Residential Care Homes,A,2023,6
326,Community and Housing,CARE MANAGEMENT GROUP,1022722,14-Sep-23,21193.71,0,93533,Learning Disabilities Placemnt,321017              Nursing & Residential Care Homes,A,2023,6
327,Community and Housing,CARE MANAGEMENT GROUP,255001514,26-Sep-23,8725.64,0,93533,Learning Disabilities Placemnt,321017              Nursing & Residential Care Homes,A,2023,6
328,Community and Housing,CARE MANAGEMENT GROUP,1028638,27-Sep-23,4593.88,0,93533,Mental Health Placements,321017              Nursing & Residential Care Homes,A,2023,6
329,Community and Housing,CARE MANAGEMENT GROUP,1028708,27-Sep-23,6279.2,0,93533,Learning Disabilities Placemnt,321017              Nursing & Residential Care Homes,A,2023,6
330,Community and Housing,CARE MANAGEMENT GROUP,1028816,27-Sep-23,5936.6,0,93533,Learning Disabilities Placemnt,321017              Nursing & Residential Care Homes,A,2023,6
331,Community and Housing,CARE MANAGEMENT GROUP,1028861,27-Sep-23,8733.64,0,93533,Phys/Sens Placements - East,321017              Nursing & Residential Care Homes,A,2023,6
332,Community and Housing,CARE MANAGEMENT GROUP,1028895,27-Sep-23,7712.12,0,93533,Learning Disabilities Placemnt,321017              Nursing & Residential Care Homes,A,2023,6
333,Community and Housing,CARE MANAGEMENT GROUP,1029028,27-Sep-23,11774.29,0,93533,Learning Disabilities Placemnt,321017              Nursing & Residential Care Homes,A,2023,6
334,"Children, Schools and Family",ST OLAVES NURSERY,P2 23 UPFRONTPAY,04-Sep-23,14081.76,0,94303,EARLY YEARS NURSERY GRANTS,170000              Education,A,2023,6
335,Community and Housing,A AND R CARE LTD,1017275,05-Sep-23,11550,0,94357,Older People Placements - East,321017              Nursing & Residential Care Homes,A,2023,6
336,Community and Housing,A AND R CARE LTD,1022715,14-Sep-23,2442.86,0,94357,Older People Placements - East,321017              Nursing & Residential Care Homes,A,2023,6
337,Community and Housing,A AND R CARE LTD,1027921,25-Sep-23,35924.5,0,94357,Mental Health Placements,321017              Nursing & Residential Care Homes,A,2023,6
338,Community and Housing,A AND R CARE LTD,1028637,27-Sep-23,4121.16,0,94357,Older People Placements - East,321017              Nursing & Residential Care Homes,A,2023,6
339,Community and Housing,A AND R CARE LTD,1028699,27-Sep-23,3300,0,94357,Older People Placements - East,321017              Nursing & Residential Care Homes,A,2023,6
340,Community and Housing,A AND R CARE LTD,1028765,27-Sep-23,4521.16,0,94357,Mental Health Placements,321017              Nursing & Residential Care Homes,A,2023,6
341,Community and Housing,A AND R CARE LTD,1028825,27-Sep-23,3763.24,0,94357,Older People Placements - East,321017              Nursing & Residential Care Homes,A,2023,6
342,Community and Housing,A AND R CARE LTD,1028956,27-Sep-23,3400,0,94357,Older People Placements - East,321017              Nursing & Residential Care Homes,A,2023,6
343,Community and Housing,A AND R CARE LTD,1028996,27-Sep-23,4800,0,94357,Older People Placements - East,321017              Nursing & Residential Care Homes,A,2023,6
344,Community and Housing,A AND R CARE LTD,1029057,27-Sep-23,3824.32,0,94357,Phys/Sens Placements - East,321017              Nursing & Residential Care Homes,A,2023,6
345,Community and Housing,A AND R CARE LTD,1029060,27-Sep-23,4200,0,94357,Older People Placements - East,321017              Nursing & Residential Care Homes,A,2023,6
346,Community and Housing,COMMONSIDE COMMUNITY DEV TRUST,10097,08-Sep-23,1000,0,95839,PH - Elderly Care Pilot,321000              Social Community Care Supplies & Services - Adult,A,2023,6
347,Community and Housing,COMMONSIDE COMMUNITY DEV TRUST,10095,27-Sep-23,3250,0,95839,"PH - Ready, Steady Cook",321000              Social Community Care Supplies & Services - Adult,A,2023,6
348,Community and Housing,COMMONSIDE COMMUNITY DEV TRUST,UKRAINE HAF,26-Sep-23,5150,0,95839,UKRAINE,321000              Social Community Care Supplies & Services - Adult,A,2023,6
349,Community and Housing,COMMONSIDE COMMUNITY DEV TRUST,UKRAINE SKILL UP,26-Sep-23,43660,0,95839,UKRAINE,321000              Social Community Care Supplies & Services - Adult,A,2023,6
350,"Children, Schools and Family",COMMONSIDE COMMUNITY DEV TRUST,HAFSUM-P3,29-Sep-23,1887.5,0,95839,Holiday Act Food Prog grntfnd,321000              Social Community Care Supplies & Services - Adult,A,2023,6
351,Corporate Services,COMMONSIDE COMMUNITY DEV TRUST,CIVIC PRIDE,28-Sep-23,6154.5,0,95839,VOLUNTARY SECTOR COORDINATION,321000              Social Community Care Supplies & Services - Adult,A,2023,6
352,Corporate Services,COMMONSIDE COMMUNITY DEV TRUST,CIVIC PRIDE FUND,28-Sep-23,13125.2,0,95839,VOLUNTARY SECTOR COORDINATION,321000              Social Community Care Supplies & Services - Adult,A,2023,6
353,Community and Housing,Aspens Charities Ltd,1028841,27-Sep-23,8909.92,0,96019,Learning Disabilities Placemnt,321017              Nursing & Residential Care Homes,A,2023,6
354,Corporate Services,HEIDELBERG GRAPHIC EQUIP. LTD,1869403710,25-Sep-23,1162.8,193.8,96535,Printing,190000              Facilities & Management Services,A,2023,6
355,Community and Housing,REDACTED PERSONAL DATA,1020163,12-Sep-23,5192,0,96859,Learning Disabilities Placemnt,DIRECT PAYMENTS,R,2023,6
356,Community and Housing,THE ABBEYFIELD SOCIETY,1028974,27-Sep-23,4000,0,97539,Older People Placements - East,321000              Social Community Care Supplies & Services - Adult,A,2023,6
357,Community and Housing,EL-SHADDAI,1023867,18-Sep-23,1141.52,0,97709,MH Housing Support Placements,321000              Social Community Care Supplies & Services - Adult,A,2023,6
358,Community and Housing,EL-SHADDAI,1023888,18-Sep-23,847.04,0,97709,Phys/Sens Placements - East,321000              Social Community Care Supplies & Services - Adult,A,2023,6
359,Community and Housing,EL-SHADDAI,1023891,18-Sep-23,1426.8,0,97709,Learning Disabilities Placemnt,321000              Social Community Care Supplies & Services - Adult,A,2023,6
360,Community and Housing,EL-SHADDAI,1023899,18-Sep-23,1141.52,0,97709,Learning Disabilities Placemnt,321000              Social Community Care Supplies & Services - Adult,A,2023,6
361,Community and Housing,Rosenmanor Ltd,1028835,27-Sep-23,2924.24,0,97808,Mental Health Placements,321017              Nursing & Residential Care Homes,A,2023,6
362,Community and Housing,MERTON COMMUNITY TRANSPORT,17303,12-Sep-23,1585.2,264.2,98164,Learning Disabilities Placemnt,360000              Passenger Transport,A,2023,6
363,Community and Housing,MERTON COMMUNITY TRANSPORT,17307,12-Sep-23,806.4,134.4,98164,Learning Disabilities Placemnt,360000              Passenger Transport,A,2023,6
364,Unassigned,BEECHOLME PRIMARY ACADEMY,SCHOOLS 2324/6 A,07-Sep-23,14889.5,0,98168,Schools,170000              Education,A,2023,6
365,"Children, Schools and Family",Evolve Housing + Support,3377,13-Sep-23,1054,0,98536,UASC LAC Under 18,321000              Social Community Care Supplies & Services - Adult,A,2023,6
366,"Children, Schools and Family",Evolve Housing + Support,3378,13-Sep-23,1282.92,0,98536,UASC Care Leavers Over 18,321000              Social Community Care Supplies & Services - Adult,A,2023,6
367,"Children, Schools and Family",Evolve Housing + Support,3379,13-Sep-23,1282.92,0,98536,UASC Care Leavers Over 18,321000              Social Community Care Supplies & Services - Adult,A,2023,6
368,"Children, Schools and Family",Evolve Housing + Support,3190A,15-Sep-23,8201.52,0,98536,Placements Over 18,321000              Social Community Care Supplies & Services - Adult,A,2023,6
369,Community and Housing,Evolve Housing + Support,3396,27-Sep-23,24985.25,0,98536,Supporting People (HRS),321000              Social Community Care Supplies & Services - Adult,A,2023,6
370,Community and Housing,Evolve Housing + Support,3395,27-Sep-23,22732.75,0,98536,Supporting People (HRS),321000              Social Community Care Supplies & Services - Adult,A,2023,6
371,Unassigned,WEST WIMBLEDON PRIMARY SCHOOL,SCHOOLS 2324/6 A,07-Sep-23,363489.86,0,101674,Schools,170000              Education,A,2023,6
372,Community and Housing,HILLDALE AND NORTHVIEW,1028795,27-Sep-23,2072.52,0,103592,Older People Placements - East,321000              Social Community Care Supplies & Services - Adult,A,2023,6
373,Community and Housing,ST GEORGES UNI HOSP NHS F'DN T,78798559,22-Sep-23,1000,0,104586,PH - Elderly Care Pilot,321000              Social Community Care Supplies & Services - Adult,A,2023,6
374,Community and Housing,BUPA CARE HOMES,1028658,27-Sep-23,3154.12,0,105027,Older People Placements - East,321017              Nursing & Residential Care Homes,A,2023,6
375,Community and Housing,BUPA CARE HOMES,1028669,27-Sep-23,3289.24,0,105027,Older People Placements - East,321017              Nursing & Residential Care Homes,A,2023,6
376,Community and Housing,BUPA CARE HOMES,1028684,27-Sep-23,3289.24,0,105027,Older People Placements - East,321017              Nursing & Residential Care Homes,A,2023,6
377,Community and Housing,BUPA CARE HOMES,1028697,27-Sep-23,3154.12,0,105027,Older People Placements - East,321017              Nursing & Residential Care Homes,A,2023,6
378,Community and Housing,BUPA CARE HOMES,1028753,27-Sep-23,3289.24,0,105027,Older People Placements - East,321017              Nursing & Residential Care Homes,A,2023,6
379,Community and Housing,BUPA CARE HOMES,1028766,27-Sep-23,3154.12,0,105027,Older People Placements - East,321017              Nursing & Residential Care Homes,A,2023,6
380,Community and Housing,BUPA CARE HOMES,1028798,27-Sep-23,3289.24,0,105027,Older People Placements - East,321017              Nursing & Residential Care Homes,A,2023,6
381,Community and Housing,BUPA CARE HOMES,1028857,27-Sep-23,3289.24,0,105027,Older People Placements - East,321017              Nursing & Residential Care Homes,A,2023,6
382,Community and Housing,BUPA CARE HOMES,1028884,27-Sep-23,3289.24,0,105027,Older People Placements - East,321017              Nursing & Residential Care Homes,A,2023,6
383,Community and Housing,BUPA CARE HOMES,1028887,27-Sep-23,3154.12,0,105027,Older People Placements - East,321017              Nursing & Residential Care Homes,A,2023,6
384,Community and Housing,BUPA CARE HOMES,1028894,27-Sep-23,3289.24,0,105027,Older People Placements - East,321017              Nursing & Residential Care Homes,A,2023,6
385,Community and Housing,BUPA CARE HOMES,1028927,27-Sep-23,3289.24,0,105027,Older People Placements - East,321017              Nursing & Residential Care Homes,A,2023,6
386,Community and Housing,BUPA CARE HOMES,1028936,27-Sep-23,4363.16,0,105027,Phys/Sens Placements - East,321017              Nursing & Residential Care Homes,A,2023,6
387,Community and Housing,BUPA CARE HOMES,1028944,27-Sep-23,3289.24,0,105027,Older People Placements - East,321017              Nursing & Residential Care Homes,A,2023,6
388,Community and Housing,BUPA CARE HOMES,1028950,27-Sep-23,3569.4,0,105027,Older People Placements - East,321017              Nursing & Residential Care Homes,A,2023,6
389,Community and Housing,BUPA CARE HOMES,1028967,27-Sep-23,3289.24,0,105027,Mental Health Placements,321017              Nursing & Residential Care Homes,A,2023,6
390,Community and Housing,BUPA CARE HOMES,1028983,27-Sep-23,3154.12,0,105027,Older People Placements - East,321017              Nursing & Residential Care Homes,A,2023,6
391,Community and Housing,BUPA CARE HOMES,1028985,27-Sep-23,3154.12,0,105027,Older People Placements - East,321017              Nursing & Residential Care Homes,A,2023,6
392,Community and Housing,BUPA CARE HOMES,1028988,27-Sep-23,1802.35,0,105027,Phys/Sens Placements - East,321017              Nursing & Residential Care Homes,A,2023,6
393,Community and Housing,BUPA CARE HOMES,1029010,27-Sep-23,3289.24,0,105027,Older People Placements - East,321017              Nursing & Residential Care Homes,A,2023,6
394,Community and Housing,BUPA CARE HOMES,1029016,27-Sep-23,3289.24,0,105027,Older People Placements - East,321017              Nursing & Residential Care Homes,A,2023,6
395,Community and Housing,BUPA CARE HOMES,1029020,27-Sep-23,3289.24,0,105027,Older People Placements - East,321017              Nursing & Residential Care Homes,A,2023,6
396,Community and Housing,BUPA CARE HOMES,1029041,27-Sep-23,3289.24,0,105027,Older People Placements - East,321017              Nursing & Residential Care Homes,A,2023,6
397,Community and Housing,BUPA CARE HOMES,1029056,27-Sep-23,3289.24,0,105027,Older People Placements - East,321017              Nursing & Residential Care Homes,A,2023,6
398,Community and Housing,BUPA CARE HOMES,1029077,27-Sep-23,3154.12,0,105027,Older People Placements - East,321017              Nursing & Residential Care Homes,A,2023,6
399,Community and Housing,REDACTED PERSONAL DATA,1020488,12-Sep-23,3286.2,0,105300,Learning Disabilities Placemnt,DIRECT PAYMENTS,R,2023,6
400,"Children, Schools and Family",NEWSCHOOLS (MERTON) LIMITED,NSM01074,25-Sep-23,3202579.87,533763.31,106428, PFI Unitary Charges,200000              Financial Services,A,2023,6
401,Capital,ASCENDIT LIFTS LTD,40573,06-Sep-23,17550,0,107196,Disabled Facilities Grant,"390000              Works - Construction, Repair & Maintenance",A,2023,6
402,Capital,ASCENDIT LIFTS LTD,40292,20-Sep-23,5396,0,107196,Disabled Facilities Grant,"390000              Works - Construction, Repair & Maintenance",A,2023,6
403,Unassigned,ENVIRONMENT AGENCY,2.02309E+11,25-Sep-23,45933.81,0,108067,Flood Defence,PRECEPT,A,2023,6
404,"Children, Schools and Family",The Eveline Day and Nursery Schools Ltd,P2 23 UPFRONTPAY,04-Sep-23,16057.44,0,108282,EARLY YEARS NURSERY GRANTS,170000              Education,A,2023,6
405,Community and Housing,REDACTED PERSONAL DATA,1023853,18-Sep-23,856.12,0,110403,MH Housing Support Placements,321000              Social Community Care Supplies & Services - Adult,R,2023,6
406,Community and Housing,REDACTED PERSONAL DATA,1023859,18-Sep-23,1141.48,0,110403,Learning Disabilities Placemnt,321000              Social Community Care Supplies & Services - Adult,R,2023,6
407,Community and Housing,REDACTED PERSONAL DATA,1023860,18-Sep-23,847.04,0,110403,MH Housing Support Placements,321000              Social Community Care Supplies & Services - Adult,R,2023,6
408,Community and Housing,REDACTED PERSONAL DATA,1023863,18-Sep-23,1386.12,0,110403,Mental Health Placements,321000              Social Community Care Supplies & Services - Adult,R,2023,6
409,Community and Housing,REDACTED PERSONAL DATA,1023869,18-Sep-23,847.04,0,110403,MH Housing Support Placements,321000              Social Community Care Supplies & Services - Adult,R,2023,6
410,Community and Housing,REDACTED PERSONAL DATA,1023870,18-Sep-23,1423.36,0,110403,Mental Health Placements,321000              Social Community Care Supplies & Services - Adult,R,2023,6
411,Community and Housing,REDACTED PERSONAL DATA,1023878,18-Sep-23,1141.52,0,110403,Phys/Sens Placements - East,321000              Social Community Care Supplies & Services - Adult,R,2023,6
412,Community and Housing,REDACTED PERSONAL DATA,1023881,18-Sep-23,1834.03,0,110403,Mental Health Placements,321000              Social Community Care Supplies & Services - Adult,R,2023,6
413,Community and Housing,REDACTED PERSONAL DATA,1023884,18-Sep-23,847.04,0,110403,MH Housing Support Placements,321000              Social Community Care Supplies & Services - Adult,R,2023,6
414,Community and Housing,REDACTED PERSONAL DATA,1023886,18-Sep-23,1371.41,0,110403,Mental Health Placements,321000              Social Community Care Supplies & Services - Adult,R,2023,6
415,Community and Housing,REDACTED PERSONAL DATA,1023895,18-Sep-23,847.04,0,110403,MH Housing Support Placements,321000              Social Community Care Supplies & Services - Adult,R,2023,6
416,Community and Housing,REDACTED PERSONAL DATA,1023898,18-Sep-23,564.72,0,110403,MH Housing Support Placements,321000              Social Community Care Supplies & Services - Adult,R,2023,6
417,Community and Housing,REDACTED PERSONAL DATA,1023911,18-Sep-23,1028.55,0,110403,Mental Health Placements,321000              Social Community Care Supplies & Services - Adult,R,2023,6
418,Community and Housing,REDACTED PERSONAL DATA,1023897,18-Sep-23,847.04,0,110406,Learning Disabilities Placemnt,321000              Social Community Care Supplies & Services - Adult,R,2023,6
419,"Children, Schools and Family",REDACTED PERSONAL DATA,1015808,01-Sep-23,514.26,0,111277,Placements Under 18,321100              Social Community Care Supplies & Services - Children,R,2023,6
420,"Children, Schools and Family",REDACTED PERSONAL DATA,1018774,08-Sep-23,514.26,0,111277,Placements Under 18,321100              Social Community Care Supplies & Services - Children,R,2023,6
421,"Children, Schools and Family",REDACTED PERSONAL DATA,1023328,15-Sep-23,514.26,0,111277,Placements Under 18,321100              Social Community Care Supplies & Services - Children,R,2023,6
422,"Children, Schools and Family",REDACTED PERSONAL DATA,1027547,22-Sep-23,514.26,0,111277,Placements Under 18,321100              Social Community Care Supplies & Services - Children,R,2023,6
423,"Children, Schools and Family",REDACTED PERSONAL DATA,1031831,28-Sep-23,514.26,0,111277,Placements Under 18,321100              Social Community Care Supplies & Services - Children,R,2023,6
424,Environment and Regeneration,ANDREW SCOTT ROBERTSON,15528LC,02-Oct-23,11677.2,1946.2,111834,Property Mgt & Review,150000              Consultancy,A,2023,6
425,Environment and Regeneration,CHARTERED INST.OF ENVIR.HEALTH,20/09/2023,29-Sep-23,960,160,112693,NOISE - RSP,200000              Financial Services,A,2023,6
426,Community and Housing,MEADBANK NURSING CENTRE,1029053,27-Sep-23,2995.28,0,113139,Older People Placements - East,321017              Nursing & Residential Care Homes,A,2023,6
427,Environment and Regeneration,JIGSAW4U,3187,25-Sep-23,1250,0,113501,MOPAC Projects,321100              Social Community Care Supplies & Services - Children,A,2023,6
428,"Children, Schools and Family",Dicky Birds Pre Sch. Nurseries Dundonald,P2 23 UPFRONTPAY,04-Sep-23,19090.51,0,114041,EARLY YEARS NURSERY GRANTS,170000              Education,A,2023,6
429,Unassigned,HMCTS,K01CR695,15-Sep-23,3000,0,114330,Corporate Services,280000              Legal Services,A,2023,6
430,Corporate Services,POST OFFICE LTD,1000/90065110,14-Sep-23,639.56,0,114362,Client Finance Affairs,200000              Financial Services,A,2023,6
431,Corporate Services,POST OFFICE LTD,1000/90064787,22-Sep-23,866.65,0,114362,Client Finance Affairs,200000              Financial Services,A,2023,6
432,Community and Housing,MIHOMECARE LIMITED,LIVE42-270377,29-Sep-23,5474,0,114370,Learning Disabilities Placemnt,321000              Social Community Care Supplies & Services - Adult,A,2023,6
433,Community and Housing,MIHOMECARE LIMITED,LIVE42-270376,29-Sep-23,5474,0,114370,Older People Placements - East,321000              Social Community Care Supplies & Services - Adult,A,2023,6
434,Community and Housing,MIHOMECARE LIMITED,LIVE1W-270128,26-Sep-23,1368.5,0,114370,Older People Placements - East,321000              Social Community Care Supplies & Services - Adult,A,2023,6
435,Community and Housing,REDACTED PERSONAL DATA,1023854,18-Sep-23,1141.52,0,114970,MH Housing Support Placements,321000              Social Community Care Supplies & Services - Adult,R,2023,6
436,Community and Housing,REDACTED PERSONAL DATA,1023864,18-Sep-23,847.04,0,114970,MH Housing Support Placements,321000              Social Community Care Supplies & Services - Adult,R,2023,6
437,Community and Housing,REDACTED PERSONAL DATA,1023866,18-Sep-23,1734.38,0,114970,Mental Health Placements,321000              Social Community Care Supplies & Services - Adult,R,2023,6
438,Community and Housing,REDACTED PERSONAL DATA,1023873,18-Sep-23,896.9,0,114970,Mental Health Placements,321000              Social Community Care Supplies & Services - Adult,R,2023,6
439,Community and Housing,REDACTED PERSONAL DATA,1023889,18-Sep-23,1141.52,0,114970,MH Housing Support Placements,321000              Social Community Care Supplies & Services - Adult,R,2023,6
440,Community and Housing,REDACTED PERSONAL DATA,1023894,18-Sep-23,665.53,0,114970,Mental Health Placements,321000              Social Community Care Supplies & Services - Adult,R,2023,6
441,Community and Housing,REDACTED PERSONAL DATA,1023903,18-Sep-23,1528.71,0,114970,Mental Health Placements,321000              Social Community Care Supplies & Services - Adult,R,2023,6
442,Community and Housing,REDACTED PERSONAL DATA,1023909,18-Sep-23,805.48,0,114970,MH Housing Support Placements,321000              Social Community Care Supplies & Services - Adult,R,2023,6
443,Community and Housing,ASTRA HOMES,GB/36/24,01-Sep-23,1978.12,0,114991,Mental Health Placements,321000              Social Community Care Supplies & Services - Adult,A,2023,6
444,Community and Housing,ASTRA HOMES,GB/36/25,01-Sep-23,1978.12,0,114991,Mental Health Placements,321000              Social Community Care Supplies & Services - Adult,A,2023,6
445,Community and Housing,ASTRA HOMES,GB/36/26,01-Sep-23,1978.12,0,114991,Mental Health Placements,321000              Social Community Care Supplies & Services - Adult,A,2023,6
446,Community and Housing,ASTRA HOMES,EC/36/24,01-Sep-23,2071.68,0,114991,Mental Health Placements,321000              Social Community Care Supplies & Services - Adult,A,2023,6
447,Community and Housing,ASTRA HOMES,EC/36/25,01-Sep-23,2071.68,0,114991,Mental Health Placements,321000              Social Community Care Supplies & Services - Adult,A,2023,6
448,Community and Housing,ASTRA HOMES,EC/36/26,01-Sep-23,2071.68,0,114991,Mental Health Placements,321000              Social Community Care Supplies & Services - Adult,A,2023,6
449,"Children, Schools and Family",The Eveline Day Nursery Grand Drive,P2 23 UPFRONTPAY,04-Sep-23,28843.92,0,116784,EARLY YEARS NURSERY GRANTS,170000              Education,A,2023,6
450,Community and Housing,GRANGE COTTAGE LIMITED,1028707,27-Sep-23,2680,0,117931,Older People Placements - East,321017              Nursing & Residential Care Homes,A,2023,6
451,Community and Housing,GRANGE COTTAGE LIMITED,1028769,27-Sep-23,3200,0,117931,Older People Placements - East,321017              Nursing & Residential Care Homes,A,2023,6
452,Community and Housing,GRANGE COTTAGE LIMITED,1028878,27-Sep-23,3600,0,117931,Older People Placements - East,321017              Nursing & Residential Care Homes,A,2023,6
453,Community and Housing,GRANGE COTTAGE LIMITED,1028970,27-Sep-23,2680,0,117931,Older People Placements - East,321017              Nursing & Residential Care Homes,A,2023,6
454,Community and Housing,REDACTED PERSONAL DATA,1023862,18-Sep-23,856.12,0,117970,MH Housing Support Placements,321000              Social Community Care Supplies & Services - Adult,R,2023,6
455,Community and Housing,REDACTED PERSONAL DATA,1023871,18-Sep-23,1141.52,0,117970,Mental Health Placements,321000              Social Community Care Supplies & Services - Adult,R,2023,6
456,Community and Housing,REDACTED PERSONAL DATA,1023887,18-Sep-23,1304.59,0,117970,Mental Health Placements,321000              Social Community Care Supplies & Services - Adult,R,2023,6
457,Community and Housing,L'ARCHE,1029001,27-Sep-23,3050.24,0,118483,Learning Disabilities Placemnt,321017              Nursing & Residential Care Homes,A,2023,6
458,Community and Housing,Alexander House c/o Keychange Charity,1028726,27-Sep-23,3100,0,119109,Older People Placements - East,321017              Nursing & Residential Care Homes,A,2023,6
459,Community and Housing,Alexander House c/o Keychange Charity,1028782,27-Sep-23,6600,0,119109,Older People Placements - East,321017              Nursing & Residential Care Homes,A,2023,6
460,Community and Housing,Alexander House c/o Keychange Charity,1028799,27-Sep-23,3220.32,0,119109,Older People Placements - East,321017              Nursing & Residential Care Homes,A,2023,6
461,Community and Housing,Alexander House c/o Keychange Charity,1028822,27-Sep-23,5600,0,119109,Older People Placements - East,321017              Nursing & Residential Care Homes,A,2023,6
462,Community and Housing,Alexander House c/o Keychange Charity,1029013,27-Sep-23,4000,0,119109,Older People Placements - East,321017              Nursing & Residential Care Homes,A,2023,6
463,Community and Housing,Alexander House c/o Keychange Charity,1029067,27-Sep-23,3840,0,119109,Older People Placements - East,321017              Nursing & Residential Care Homes,A,2023,6
464,"Children, Schools and Family",REDACTED PERSONAL DATA,P2 23 UPFRONTPAY,04-Sep-23,2118.48,0,119701,EARLY YEARS NURSERY GRANTS,200000              Financial Services,R,2023,6
465,"Children, Schools and Family",PLAYDAYS DAY NURSERY,P2 23 UPFRONTPAY,04-Sep-23,7136.64,0,121668,EARLY YEARS NURSERY GRANTS,170000              Education,A,2023,6
466,"Children, Schools and Family",REDACTED PERSONAL DATA,P2 23 UPFRONTPAY,04-Sep-23,992.88,0,122848,EARLY YEARS NURSERY GRANTS,200000              Financial Services,R,2023,6
467,Environment and Regeneration,KINGDOM SECURITY LTD,SER-00046120IMV,04-Sep-23,2474.99,412.51,123458,EDS2,260000              Human Resources,A,2023,6
468,Environment and Regeneration,KINGDOM SECURITY LTD,SER-000473971NV,22-Sep-23,12414.71,2069.06,123458,Vestry Hall,260000              Human Resources,A,2023,6
469,Environment and Regeneration,KINGDOM SECURITY LTD,SER-00047251INV,22-Sep-23,1952.24,325.37,123458,EDS2,260000              Human Resources,A,2023,6
470,Community and Housing,REDACTED PERSONAL DATA,1020226,12-Sep-23,1662.44,0,124097,Older People Placements - East,DIRECT PAYMENTS,R,2023,6
471,Community and Housing,UNITED RESPONSE,1017253,05-Sep-23,3878.5,646.42,125227,Learning Disabilities Placemnt,321000              Social Community Care Supplies & Services - Adult,A,2023,6
472,Community and Housing,UNITED RESPONSE,1017258,05-Sep-23,3878.5,646.42,125227,Learning Disabilities Placemnt,321000              Social Community Care Supplies & Services - Adult,A,2023,6
473,Community and Housing,UNITED RESPONSE,1017266,05-Sep-23,3878.5,646.42,125227,Learning Disabilities Placemnt,321000              Social Community Care Supplies & Services - Adult,A,2023,6
474,Community and Housing,UNITED RESPONSE,1017273,05-Sep-23,3878.5,646.42,125227,Learning Disabilities Placemnt,321000              Social Community Care Supplies & Services - Adult,A,2023,6
475,Community and Housing,UNITED RESPONSE,1028676,27-Sep-23,8251.44,1375.24,125227,Learning Disabilities Placemnt,321000              Social Community Care Supplies & Services - Adult,A,2023,6
476,Community and Housing,UNITED RESPONSE,1028736,27-Sep-23,8251.44,1375.24,125227,Learning Disabilities Placemnt,321000              Social Community Care Supplies & Services - Adult,A,2023,6
477,Community and Housing,UNITED RESPONSE,1028779,27-Sep-23,8251.44,1375.24,125227,Learning Disabilities Placemnt,321000              Social Community Care Supplies & Services - Adult,A,2023,6
478,Community and Housing,UNITED RESPONSE,1028831,27-Sep-23,8251.44,1375.24,125227,Learning Disabilities Placemnt,321000              Social Community Care Supplies & Services - Adult,A,2023,6
479,Community and Housing,UNITED RESPONSE,1028946,27-Sep-23,8251.44,1375.24,125227,Learning Disabilities Placemnt,321000              Social Community Care Supplies & Services - Adult,A,2023,6
480,Community and Housing,REDACTED PERSONAL DATA,1020211,12-Sep-23,1226.52,0,125642,Phys/Sens Placements - East,DIRECT PAYMENTS,R,2023,6
481,Community and Housing,REDACTED PERSONAL DATA,1020393,12-Sep-23,1039.36,0,126189,Older People Placements - East,DIRECT PAYMENTS,R,2023,6
482,Community and Housing,KELSTONE COURT NURSING HOME,1022705,14-Sep-23,724.29,0,126473,Older People Placements - East,321017              Nursing & Residential Care Homes,A,2023,6
483,Community and Housing,KELSTONE COURT NURSING HOME,1028784,27-Sep-23,2655.71,0,126473,Older People Placements - East,321017              Nursing & Residential Care Homes,A,2023,6
484,Community and Housing,REDACTED PERSONAL DATA,1020167,12-Sep-23,821.12,0,127266,Phys/Sens Placements - East,DIRECT PAYMENTS,R,2023,6
485,Environment and Regeneration,TRL LIMITED,11618577,15-Sep-23,4345.04,724.17,128700,Wandsworth Air Quality,180000              Environmental Services,A,2023,6
486,Environment and Regeneration,TRL LIMITED,11618764,28-Sep-23,630.28,105.05,128700,Environmental Health-Pollution,180000              Environmental Services,A,2023,6
487,Environment and Regeneration,TRL LIMITED,11618765,28-Sep-23,1285.2,214.2,128700,LBR - Pollution,180000              Environmental Services,A,2023,6
488,Environment and Regeneration,TRL LIMITED,11618766,28-Sep-23,4345.04,724.17,128700,Wandsworth Air Quality,180000              Environmental Services,A,2023,6
489,Community and Housing,BUPA CARE HOMES,1028675,27-Sep-23,6096.36,0,130491,Phys/Sens Placements - East,321017              Nursing & Residential Care Homes,A,2023,6
490,Community and Housing,BUPA CARE HOMES,1028790,27-Sep-23,6050.76,0,130491,Phys/Sens Placements - East,321017              Nursing & Residential Care Homes,A,2023,6
491,"Children, Schools and Family",OAKTREE PRE-SCHOOL NURSERY,P2 23 UPFRONTPAY,04-Sep-23,13381.2,0,131726,EARLY YEARS NURSERY GRANTS,170000              Education,A,2023,6
492,Corporate Services,DOMINO 4 LIMITED,D.44293,29-Sep-23,3279,546.5,132991,Marketing & Communication,190000              Facilities & Management Services                                                          Confirmed,A,2023,6
493,Environment and Regeneration,DOMINO 4 LIMITED,D.44305,26-Sep-23,994.5,165.75,132991,Borough of Sport,190000              Facilities & Management Services                                                          Confirmed,A,2023,6
494,Unassigned,Evans Cycles Limited,HO-PSI4488597,05-Sep-23,689.48,114.91,133082,Corporate Accountancy,260000              Human Resources,A,2023,6
495,Community and Housing,VOYAGE CARE LTD,1028756,27-Sep-23,6460.92,0,133700,Learning Disabilities Placemnt,321017              Nursing & Residential Care Homes,A,2023,6
496,Community and Housing,VOYAGE CARE LTD,1028866,27-Sep-23,7721.6,0,133700,Learning Disabilities Placemnt,321017              Nursing & Residential Care Homes,A,2023,6
497,Community and Housing,VOYAGE CARE LTD,1028943,27-Sep-23,7799.4,0,133700,Learning Disabilities Placemnt,321017              Nursing & Residential Care Homes,A,2023,6
498,Unassigned,RED KITE CONSERVATION SERVICES,RK1222,05-Sep-23,2064,344,134026,Mitcham Common Conservators,"390000              Works - Construction, Repair & Maintenance",A,2023,6
499,Corporate Services,VOCALINK,2.3999E+14,14-Sep-23,577.2,96.2,134117,Local Taxation Services,270000              Information Communication Technology,A,2023,6
500,Corporate Services,ASDA STORES LTD,COL GIFT CARDS,14-Sep-23,1706.25,0,134239,Benefits Administration,200000              Financial Services,A,2023,6
501,Community and Housing,HOMECARE SERVICES LTD,29231,04-Sep-23,5474,0,134594,Phys/Sens Placements - East,321100              Social Community Care Supplies & Services - Children,A,2023,6
502,Community and Housing,Sunrise Rehabilitation Centre,1028662,27-Sep-23,5213.88,0,135093,Learning Disabilities Placemnt,321017              Nursing & Residential Care Homes,A,2023,6
503,Community and Housing,Sunrise Rehabilitation Centre,1028695,27-Sep-23,5213.88,0,135093,Learning Disabilities Placemnt,321017              Nursing & Residential Care Homes,A,2023,6
504,Community and Housing,Sunrise Rehabilitation Centre,1028862,27-Sep-23,5161.52,0,135093,Learning Disabilities Placemnt,321017              Nursing & Residential Care Homes,A,2023,6
505,Community and Housing,Sunrise Rehabilitation Centre,1028987,27-Sep-23,5043.72,0,135093,Learning Disabilities Placemnt,321017              Nursing & Residential Care Homes,A,2023,6
506,Community and Housing,Sunrise Rehabilitation Centre,1028989,27-Sep-23,5174.6,0,135093,Learning Disabilities Placemnt,321017              Nursing & Residential Care Homes,A,2023,6
507,Community and Housing,Sunrise Rehabilitation Centre,1029009,27-Sep-23,5213.88,0,135093,Learning Disabilities Placemnt,321017              Nursing & Residential Care Homes,A,2023,6
508,Community and Housing,Sunrise Rehabilitation Centre,1029065,27-Sep-23,6102,0,135093,Learning Disabilities Placemnt,321017              Nursing & Residential Care Homes,A,2023,6
509,Community and Housing,Sunrise Rehabilitation Centre,1029082,27-Sep-23,4363.08,0,135093,Learning Disabilities Placemnt,321017              Nursing & Residential Care Homes,A,2023,6
510,Corporate Services,Lbox Communications (Beta Dist.South),338744,22-Sep-23,1187.84,197.97,135590,Printing,190000              Facilities & Management Services,A,2023,6
511,Corporate Services,Lbox Communications (Beta Dist.South),338743,22-Sep-23,1405.4,234.23,135590,Printing,190000              Facilities & Management Services,A,2023,6
512,Corporate Services,Lbox Communications (Beta Dist.South),338952,02-Oct-23,8887.56,1481.26,135590,Printing,190000              Facilities & Management Services,A,2023,6
513,Community and Housing,REDACTED PERSONAL DATA,1020350,12-Sep-23,1612.64,0,135784,Phys/Sens Placements - East,DIRECT PAYMENTS,R,2023,6
514,"Children, Schools and Family",Bright Horizons - Raynes Park,P2 23 UPFRONTPAY,04-Sep-23,13381.2,0,136040,EARLY YEARS NURSERY GRANTS,170000              Education,A,2023,6
515,Corporate Services,ROYAL MAIL GROUP LTD,9068285590,19-Sep-23,615.96,102.66,136104,Electoral Registration,300000              Mail Services,A,2023,6
516,Unassigned,ZURICH INSURANCE GROUP,QLA-01E223JULY23,20-Sep-23,50000,0,137315,Corporate Services,200000              Financial Services,A,2023,6
517,Unassigned,LB Wandsworth Pension Fund Account,INTERFUND200,05-Sep-23,3643.23,0,137418,London Borough of Merton,PENSIONS,A,2023,6
518,Community and Housing,REDACTED PERSONAL DATA,1020185,12-Sep-23,1320.76,0,139365,Phys/Sens Placements - East,DIRECT PAYMENTS,R,2023,6
519,"Children, Schools and Family",Building Blocks Childcare,P2 23 UPFRONTPAY,04-Sep-23,22004.64,0,139778,EARLY YEARS NURSERY GRANTS,170000              Education,A,2023,6
520,Community and Housing,REDACTED PERSONAL DATA,1020526,12-Sep-23,625.6,0,140662,Phys/Sens Placements - East,DIRECT PAYMENTS,R,2023,6
521,Community and Housing,REDACTED PERSONAL DATA,1020205,12-Sep-23,6224.36,0,140759,Phys/Sens Placements - East,DIRECT PAYMENTS,R,2023,6
522,Community and Housing,SURREY AND BORDERS PARTNERSHIP,1028821,27-Sep-23,11448.72,0,140911,Learning Disabilities Placemnt,321017              Nursing & Residential Care Homes,A,2023,6
523,Environment and Regeneration,KELTIC CLOTHING LTD,176346,19-Sep-23,4217.28,702.88,141131,Civil Enforcement Officers,140000              Clothing,A,2023,6
524,Community and Housing,GARWOOD FOUNDATION,1028702,27-Sep-23,2755.48,0,142358,Phys/Sens Placements - East,321017              Nursing & Residential Care Homes,A,2023,6
525,Community and Housing,GARWOOD FOUNDATION,1028808,27-Sep-23,2755.48,0,142358,Older People Placements - East,321017              Nursing & Residential Care Homes,A,2023,6
526,"Children, Schools and Family",CHUBB FIRE AND SECURITY LTD,10064491,29-Sep-23,1013.92,168.99,142411,Acacia IGC Building Management,"390000              Works - Construction, Repair & Maintenance",A,2023,6
527,"Children, Schools and Family",CHUBB FIRE AND SECURITY LTD,10036464,19-Sep-23,4582.51,763.75,142411,Acacia IGC Building Management,"390000              Works - Construction, Repair & Maintenance",A,2023,6
528,Community and Housing,EVERGREEN PARTNERSHIP,1028752,27-Sep-23,9675,0,142455,Learning Disabilities Placemnt,321017              Nursing & Residential Care Homes,A,2023,6
529,Community and Housing,EVERGREEN PARTNERSHIP,1028770,27-Sep-23,6579.2,0,142455,Learning Disabilities Placemnt,321017              Nursing & Residential Care Homes,A,2023,6
530,Community and Housing,REDACTED PERSONAL DATA,1023872,18-Sep-23,1141.52,0,143597,MH Housing Support Placements,321000              Social Community Care Supplies & Services - Adult,R,2023,6
531,Community and Housing,REDACTED PERSONAL DATA,1023875,18-Sep-23,1426.8,0,143597,LD Housing Support Placements,321000              Social Community Care Supplies & Services - Adult,R,2023,6
532,Community and Housing,REDACTED PERSONAL DATA,1023907,18-Sep-23,1586.6,0,143597,Learning Disabilities Placemnt,321000              Social Community Care Supplies & Services - Adult,R,2023,6
533,Community and Housing,NISBETS PLC,51394983PROFORMA,25-Sep-23,4796.37,0,143661,"PH - Ready, Steady Cook",110000              Catering,A,2023,6
534,Corporate Services,DATA DESIGN SERVICES LTD,INV-24690,22-Sep-23,1470,245,143791,PrintUnit-HighVolPhtcopying,270000              Information Communication Technology,A,2023,6
535,Community and Housing,REDACTED PERSONAL DATA,1020472,12-Sep-23,4047.6,0,144689,Learning Disabilities Placemnt,DIRECT PAYMENTS,R,2023,6
536,"Children, Schools and Family",DF20 LTD,4500-600,11-Sep-23,4963.2,827.2,144747,School Meals,110000              Catering,A,2023,6
537,Community and Housing,CRAEGMOOR FACILITIES - WINDSOR,1027927,25-Sep-23,3485.76,0,145152,Learning Disabilities Placemnt,321017              Nursing & Residential Care Homes,A,2023,6
538,Community and Housing,CRAEGMOOR FACILITIES - WINDSOR,1028803,27-Sep-23,7415.84,0,145152,Learning Disabilities Placemnt,321017              Nursing & Residential Care Homes,A,2023,6
539,Community and Housing,REDACTED PERSONAL DATA,1020284,12-Sep-23,5474,0,145882,Learning Disabilities Placemnt,DIRECT PAYMENTS,R,2023,6
540,Corporate Services,SW LONDON LAW CENTRES,CIVIC PRIDE,28-Sep-23,38120.67,0,146262,VOLUNTARY SECTOR COORDINATION,200000              Financial Services,A,2023,6
541,"Children, Schools and Family",ACORN NURSERY,P2 23 UPFRONTPAY,04-Sep-23,6945.12,0,147406,EARLY YEARS NURSERY GRANTS,200000              Financial Services,A,2023,6
542,"Children, Schools and Family",SPEECH CENTRE,110998,25-Sep-23,1165.2,194.2,147920,Student Sup/UniFees/PracTch,270000              Information Communication Technology,A,2023,6
543,Community and Housing,GENERATE,11146,01-Sep-23,2513.2,0,148332,Learning Disabilities Placemnt,321000              Social Community Care Supplies & Services - Adult,A,2023,6
544,Community and Housing,GENERATE,10992,01-Sep-23,2884,0,148332,Learning Disabilities Placemnt,321000              Social Community Care Supplies & Services - Adult,A,2023,6
545,Community and Housing,GENERATE,10848,01-Sep-23,2863.4,0,148332,Learning Disabilities Placemnt,321000              Social Community Care Supplies & Services - Adult,A,2023,6
546,Community and Housing,GENERATE,9834,01-Sep-23,2884,0,148332,Learning Disabilities Placemnt,321000              Social Community Care Supplies & Services - Adult,A,2023,6
547,Community and Housing,CHICHESTER HALL CARE HOME LTD,1029024,27-Sep-23,2637.2,0,148358,Older People Placements - East,321017              Nursing & Residential Care Homes,A,2023,6
548,"Children, Schools and Family",Dicky Birds Pre Sch. Nurseries Queens Rd,P2 23 UPFRONTPAY,04-Sep-23,20517.84,0,148567,EARLY YEARS NURSERY GRANTS,200000              Financial Services,A,2023,6
549,"Children, Schools and Family",MARIA MONTESSORI CHILDREN'S,P2 23 UPFRONTPAY,04-Sep-23,11928.38,0,148568,EARLY YEARS NURSERY GRANTS,200000              Financial Services,A,2023,6
550,"Children, Schools and Family",REDACTED PERSONAL DATA,P2 23 UPFRONTPAY,04-Sep-23,4104.24,0,149524,EARLY YEARS NURSERY GRANTS,321100              Social Community Care Supplies & Services - Children                                      Confirmed,R,2023,6
551,"Children, Schools and Family",DONHEAD SCHOOL,P2 23 UPFRONTPAY,04-Sep-23,14910.48,0,149760,EARLY YEARS NURSERY GRANTS,170000              Education,A,2023,6
552,"Children, Schools and Family",DONHEAD SCHOOL,OGIONWO23-3,02-Oct-23,1935,0,149760,Non-Delegated Statements,170000              Education,A,2023,6
553,"Children, Schools and Family",DONHEAD SCHOOL,ORTON23-3,02-Oct-23,2661,0,149760,Non-Delegated Statements,170000              Education,A,2023,6
554,"Children, Schools and Family",DONHEAD SCHOOL,MCBRIEN23-3,02-Oct-23,3387,0,149760,Non-Delegated Statements,170000              Education,A,2023,6
555,"Children, Schools and Family",DONHEAD SCHOOL,OLIVER23-3,02-Oct-23,2661,0,149760,Non-Delegated Statements,170000              Education,A,2023,6
556,Unassigned,Canterbury Campus,SCHOOLS 2324/6 A,07-Sep-23,384196.67,0,150054,Schools,170000              Education,A,2023,6
557,Unassigned,BARNETT WADDINGHAM LLP,T23/11483,25-Sep-23,5976,996,150927,Governance & Oversight Cost,PENSIONS,A,2023,6
558,Community and Housing,REDACTED PERSONAL DATA,1020227,12-Sep-23,3125.04,0,151002,Older People Placements - East,DIRECT PAYMENTS,R,2023,6
559,Community and Housing,AIMS CARE PARTNERSHIP,1028755,27-Sep-23,10560,0,151592,Learning Disabilities Placemnt,321017              Nursing & Residential Care Homes,A,2023,6
560,Community and Housing,AIMS CARE PARTNERSHIP,1028792,27-Sep-23,3114.72,0,151592,Learning Disabilities Placemnt,321017              Nursing & Residential Care Homes,A,2023,6
561,Community and Housing,REDACTED PERSONAL DATA,1020514,12-Sep-23,9153.2,0,152015,Older People Placements - East,321000              Social Community Care Supplies & Services - Adult,R,2023,6
562,Corporate Services,WANDSWORTH CORPORATION,WC376792128M05E,06-Sep-23,1047.38,0,152180,SLLP Client Income,OLA,A,2023,6
563,Corporate Services,WANDSWORTH CORPORATION,2101253871,27-Sep-23,19466.93,3244.49,152180,SLLP Client Income,OLA,A,2023,6
564,Community and Housing,REDACTED PERSONAL DATA,1020419,12-Sep-23,1173,0,152709,Older People Placements - East,DIRECT PAYMENTS,R,2023,6
565,Community and Housing,REDACTED PERSONAL DATA,1020289,12-Sep-23,2346,0,152990,Learning Disabilities Placemnt,DIRECT PAYMENTS,R,2023,6
566,Community and Housing,LYNTON HALL NURSING HOME,1028644,02-Oct-23,3102.04,0,153795,Older People Placements - East,321017              Nursing & Residential Care Homes,A,2023,6
567,Community and Housing,LYNTON HALL NURSING HOME,1028649,02-Oct-23,2988.48,0,153795,Older People Placements - East,321017              Nursing & Residential Care Homes,A,2023,6
568,Community and Housing,LYNTON HALL NURSING HOME,1028828,02-Oct-23,3249.6,0,153795,Older People Placements - East,321017              Nursing & Residential Care Homes,A,2023,6
569,"Children, Schools and Family",BEDELSFORD SCHOOL,D1104105097,19-Sep-23,156747.92,0,156132,Non-Delegated Statements,170000              Education,A,2023,6
570,Community and Housing,REDACTED PERSONAL DATA,1020414,12-Sep-23,586.52,0,156180,Mental Health Placements,DIRECT PAYMENTS,R,2023,6
571,Environment and Regeneration,SOLON SECURITY LTD,SI23009802,05-Oct-23,1785,297.5,159485,MOPAC Projects,190000              Facilities & Management Services,A,2023,6
572,Community and Housing,REDACTED PERSONAL DATA,1020347,12-Sep-23,1104.44,0,159542,Older People Placements - East,DIRECT PAYMENTS,R,2023,6
573,Community and Housing,REDACTED PERSONAL DATA,1020479,12-Sep-23,3950.24,0,160044,Phys/Sens Placements - East,DIRECT PAYMENTS,R,2023,6
574,"Children, Schools and Family",REDACTED PERSONAL DATA,1019499,11-Sep-23,1239,0,160147,Child Disabilities - Placement,CSF-DIRECT PAYMENTS,R,2023,6
575,"Children, Schools and Family",REDACTED PERSONAL DATA,1028415,26-Sep-23,524.16,0,160147,Child Disabilities - Placement,CSF-DIRECT PAYMENTS,R,2023,6
576,Community and Housing,REDACTED PERSONAL DATA,1020308,12-Sep-23,1422.48,0,160244,Phys/Sens Placements - East,DIRECT PAYMENTS,R,2023,6
577,Community and Housing,REDACTED PERSONAL DATA,1020258,12-Sep-23,742.92,0,160273,Learning Disabilities Placemnt,DIRECT PAYMENTS,R,2023,6
578,Community and Housing,REDACTED PERSONAL DATA,1020363,12-Sep-23,1087.44,0,160279,Phys/Sens Placements - East,DIRECT PAYMENTS,R,2023,6
579,"Children, Schools and Family",THE NATIONAL FOSTERING AGENCY,464903,22-Sep-23,5703.38,0,160464,Placements Under 18,321100              Social Community Care Supplies & Services - Children,A,2023,6
580,"Children, Schools and Family",THE NATIONAL FOSTERING AGENCY,464902,22-Sep-23,5703.38,0,160464,Placements Under 18,321100              Social Community Care Supplies & Services - Children,A,2023,6
581,"Children, Schools and Family",THE NATIONAL FOSTERING AGENCY,464904,22-Sep-23,6009.57,0,160464,Placements Under 18,321100              Social Community Care Supplies & Services - Children,A,2023,6
582,"Children, Schools and Family",THE NATIONAL FOSTERING AGENCY,464905,26-Sep-23,2131.2,0,160464,Placements Under 18,321100              Social Community Care Supplies & Services - Children,A,2023,6
583,Corporate Services,LEXON LTD,140962,27-Sep-23,2131.21,0,160704,Printing,190000              Facilities & Management Services,A,2023,6
584,"Children, Schools and Family",REDACTED PERSONAL DATA,1015772,01-Sep-23,548.09,0,161094,UASC LAC Under 18,321100              Social Community Care Supplies & Services - Children,R,2023,6
585,"Children, Schools and Family",REDACTED PERSONAL DATA,1015815,01-Sep-23,548.09,0,161094,UASC LAC Under 18,321100              Social Community Care Supplies & Services - Children,R,2023,6
586,"Children, Schools and Family",REDACTED PERSONAL DATA,1018736,08-Sep-23,548.09,0,161094,UASC LAC Under 18,321100              Social Community Care Supplies & Services - Children,R,2023,6
587,"Children, Schools and Family",REDACTED PERSONAL DATA,1018780,08-Sep-23,548.09,0,161094,UASC LAC Under 18,321100              Social Community Care Supplies & Services - Children,R,2023,6
588,"Children, Schools and Family",REDACTED PERSONAL DATA,1023290,15-Sep-23,548.09,0,161094,UASC LAC Under 18,321100              Social Community Care Supplies & Services - Children,R,2023,6
589,"Children, Schools and Family",REDACTED PERSONAL DATA,1023322,20-Sep-23,1030.47,0,161094,UASC Leavers Staying Put 18+,321100              Social Community Care Supplies & Services - Children,R,2023,6
590,"Children, Schools and Family",REDACTED PERSONAL DATA,1027507,22-Sep-23,548.09,0,161094,UASC LAC Under 18,321100              Social Community Care Supplies & Services - Children,R,2023,6
591,"Children, Schools and Family",REDACTED PERSONAL DATA,1031791,28-Sep-23,548.09,0,161094,UASC LAC Under 18,321100              Social Community Care Supplies & Services - Children,R,2023,6
592,Community and Housing,SHARED LIVES PLUS,INV-19935,08-Sep-23,585,65,161917,Housing Supply and Development,260000              Human Resources,A,2023,6
593,Corporate Services,WALLINGTON CARS AND COURIERS LTD,300194,22-Sep-23,1618.73,269.79,162637,Post services,300000              Mail Services,A,2023,6
594,Corporate Services,WALLINGTON CARS AND COURIERS LTD,301011,22-Sep-23,1195.31,198.22,162637,Post services,300000              Mail Services,A,2023,6
595,Community and Housing,REDACTED PERSONAL DATA,1020222,12-Sep-23,1737.28,0,163392,Learning Disabilities Placemnt,DIRECT PAYMENTS,R,2023,6
596,Capital,D N H PROPERTY MAINTENANCE,2346DNH,27-Sep-23,660,110,163395,Major Library Projects,"390000              Works - Construction, Repair & Maintenance",C,2023,6
597,Environment and Regeneration,D N H PROPERTY MAINTENANCE,20152482,04-Oct-23,696,116,163395,Greenspaces Team (General),"390000              Works - Construction, Repair & Maintenance",C,2023,6
598,Environment and Regeneration,D N H PROPERTY MAINTENANCE,2354DNH,04-Oct-23,840,140,163395,EDS2,"390000              Works - Construction, Repair & Maintenance",C,2023,6
599,Community and Housing,Tunstall Healthcare (UK) Limited,CD970026216,06-Sep-23,4463.5,743.92,163420,Mascot,190000              Facilities & Management Services,A,2023,6
600,Environment and Regeneration,Parks for London,037-24,25-Sep-23,4500,0,163427,Pks Rec Grds (Unloc),200000              Financial Services,A,2023,6
601,"Children, Schools and Family",REDACTED PERSONAL DATA,1015750,01-Sep-23,548.09,0,163471,UASC LAC Under 18,200000              Financial Services,R,2023,6
602,"Children, Schools and Family",REDACTED PERSONAL DATA,1015832,01-Sep-23,785.52,0,163471,Placements Under 18,200000              Financial Services,R,2023,6
603,"Children, Schools and Family",REDACTED PERSONAL DATA,1015840,01-Sep-23,692.46,0,163471,Placements Under 18,200000              Financial Services,R,2023,6
604,"Children, Schools and Family",REDACTED PERSONAL DATA,1018716,08-Sep-23,548.09,0,163471,UASC LAC Under 18,200000              Financial Services,R,2023,6
605,"Children, Schools and Family",REDACTED PERSONAL DATA,1018794,08-Sep-23,785.52,0,163471,Placements Under 18,200000              Financial Services,R,2023,6
606,"Children, Schools and Family",REDACTED PERSONAL DATA,1018802,08-Sep-23,692.46,0,163471,Placements Under 18,200000              Financial Services,R,2023,6
607,"Children, Schools and Family",REDACTED PERSONAL DATA,1023270,15-Sep-23,548.09,0,163471,UASC LAC Under 18,200000              Financial Services,R,2023,6
608,"Children, Schools and Family",REDACTED PERSONAL DATA,1023348,15-Sep-23,785.52,0,163471,Placements Under 18,200000              Financial Services,R,2023,6
609,"Children, Schools and Family",REDACTED PERSONAL DATA,1023356,15-Sep-23,692.46,0,163471,Placements Under 18,200000              Financial Services,R,2023,6
610,"Children, Schools and Family",REDACTED PERSONAL DATA,1027486,22-Sep-23,548.09,0,163471,UASC LAC Under 18,200000              Financial Services,R,2023,6
611,"Children, Schools and Family",REDACTED PERSONAL DATA,1027567,22-Sep-23,785.52,0,163471,Placements Under 18,200000              Financial Services,R,2023,6
612,"Children, Schools and Family",REDACTED PERSONAL DATA,1027575,22-Sep-23,692.46,0,163471,Placements Under 18,200000              Financial Services,R,2023,6
613,"Children, Schools and Family",REDACTED PERSONAL DATA,1031770,28-Sep-23,548.09,0,163471,UASC LAC Under 18,200000              Financial Services,R,2023,6
614,"Children, Schools and Family",REDACTED PERSONAL DATA,1031850,28-Sep-23,785.52,0,163471,Placements Under 18,200000              Financial Services,R,2023,6
615,"Children, Schools and Family",REDACTED PERSONAL DATA,1031858,28-Sep-23,692.46,0,163471,Placements Under 18,200000              Financial Services,R,2023,6
616,"Children, Schools and Family",LA PETITE FLEUR PRE-SCHOOL,P2 23 UPFRONTPAY,04-Sep-23,8495.76,0,163698,EARLY YEARS NURSERY GRANTS,200000              Financial Services,A,2023,6
617,Corporate Services,AEA (BOOKINGS),34654,03-Oct-23,891,148.5,163833,Electoral Registration,260000              Human Resources,A,2023,6
618,Community and Housing,Active Prospects,1028678,27-Sep-23,6103.76,0,163859,Learning Disabilities Placemnt,321017              Nursing & Residential Care Homes,A,2023,6
619,Community and Housing,REDACTED PERSONAL DATA,1020253,12-Sep-23,1281.72,0,163971,Older People Placements - East,DIRECT PAYMENTS,R,2023,6
620,"Children, Schools and Family",BUMBLE BEES'S DAY NURSERY-COCC,P2 23 UPFRONTPAY,04-Sep-23,26421.36,0,164240,EARLY YEARS NURSERY GRANTS,200000              Financial Services,A,2023,6
621,Community and Housing,ENTERPRISE CARE SUPPORT LTD - FC,20893,07-Sep-23,1636.92,0,164431,Mental Health Placements,321000              Social Community Care Supplies & Services - Adult,A,2023,6
622,Community and Housing,BUPA CARE SERVICES BACS RECEIP,1028875,27-Sep-23,8580.84,0,164629,Older People Placements - East,321017              Nursing & Residential Care Homes,A,2023,6
623,Community and Housing,REDACTED PERSONAL DATA,1020446,12-Sep-23,1564,0,164694,Older People Placements - East,DIRECT PAYMENTS,R,2023,6
624,Community and Housing,REDACTED PERSONAL DATA,1026970,25-Sep-23,1382.5,0,164694,Older People Placements - East,DIRECT PAYMENTS,R,2023,6
625,Corporate Services,REDACTED PERSONAL DATA,INV1065/GC57,21-Sep-23,1098,183,164950,SLLP - Disbursements,280000              Legal Services                                                                            Confirmed,R,2023,6
626,Unassigned,MARSTON GROUP,62872,22-Sep-23,2595.14,0,165202,Corporate Accountancy,200000              Financial Services,A,2023,6
627,Corporate Services,DX NETWORK SERVICES LTD,83897309,18-Sep-23,27044.6,4507.43,165316,Legal Shared Service,300000              Mail Services,A,2023,6
628,"Children, Schools and Family",CHILDREN OF COLOUR,8324,05-Sep-23,5336.87,0,165365,Placements Under 18,321100              Social Community Care Supplies & Services - Children,A,2023,6
629,Community and Housing,REDACTED PERSONAL DATA,1020468,12-Sep-23,1634.32,0,165602,Learning Disabilities Placemnt,DIRECT PAYMENTS,R,2023,6
630,Community and Housing,REDACTED PERSONAL DATA,1020427,12-Sep-23,7111.44,0,165619,Phys/Sens Placements - East,DIRECT PAYMENTS,R,2023,6
631,Community and Housing,BUPA CARE HOMES (ANS) LTD,1029043,27-Sep-23,4791.48,0,165704,Older People Placements - East,321017              Nursing & Residential Care Homes,A,2023,6
632,Corporate Services,Crown Lane Productions Ltd,INV-3671,21-Sep-23,2600,0,165739,Marketing & Communication,290000              Arts & Leisure Services,A,2023,6
633,Community and Housing,REDACTED PERSONAL DATA,1020506,12-Sep-23,1262.96,0,165786,Older People Placements - East,DIRECT PAYMENTS,R,2023,6
634,Community and Housing,REDACTED PERSONAL DATA,1020518,12-Sep-23,700.8,0,166085,Learning Disabilities Placemnt,DIRECT PAYMENTS,R,2023,6
635,Environment and Regeneration,COMPLETE ECOLOGY LTD,Sep-24,18-Sep-23,930,155,166208,Pks Rec Grds (Unloc),240000              Horticultural                                                                             Confirmed,A,2023,6
636,Environment and Regeneration,COMPLETE ECOLOGY LTD,Oct-24,18-Sep-23,540,90,166208,Parks & Recreation Grounds,240000              Horticultural                                                                             Confirmed,A,2023,6
637,"Children, Schools and Family",REDACTED PERSONAL DATA,P2 23 UPFRONTPAY,04-Sep-23,1985.76,0,166244,EARLY YEARS NURSERY GRANTS,200000              Financial Services,R,2023,6
638,Community and Housing,REDACTED PERSONAL DATA,1020240,12-Sep-23,1485.8,0,166547,Learning Disabilities Placemnt,DIRECT PAYMENTS,R,2023,6
639,"Children, Schools and Family",Abbott Toxicology Ltd,883587,29-Sep-23,567.6,94.6,166641,Family Supp SafeGuard - Place,280000              Legal Services,A,2023,6
640,"Children, Schools and Family",REDACTED PERSONAL DATA,1015756,01-Sep-23,1354.2,0,166742,Placements Under 18,321100              Social Community Care Supplies & Services - Children,R,2023,6
641,"Children, Schools and Family",REDACTED PERSONAL DATA,1018721,08-Sep-23,1354.2,0,166742,Placements Under 18,321100              Social Community Care Supplies & Services - Children,R,2023,6
642,"Children, Schools and Family",REDACTED PERSONAL DATA,1023275,15-Sep-23,1354.2,0,166742,Placements Under 18,321100              Social Community Care Supplies & Services - Children,R,2023,6
643,"Children, Schools and Family",REDACTED PERSONAL DATA,1027491,22-Sep-23,1354.2,0,166742,Placements Under 18,321100              Social Community Care Supplies & Services - Children,R,2023,6
644,"Children, Schools and Family",REDACTED PERSONAL DATA,1031776,28-Sep-23,1354.2,0,166742,Placements Under 18,321100              Social Community Care Supplies & Services - Children,R,2023,6
645,Environment and Regeneration,UNIQUE OFFICE SOLUTIONS LTD,112954,18-Sep-23,2430.91,405.15,166889,EDS2,210000              Furniture & Soft Furnishings,A,2023,6
646,Environment and Regeneration,UNIQUE OFFICE SOLUTIONS LTD,112953,21-Sep-23,9301.2,1550.2,166889,EDS2,210000              Furniture & Soft Furnishings,A,2023,6
647,Environment and Regeneration,UNIQUE OFFICE SOLUTIONS LTD,112969,22-Sep-23,2976,496,166889,EDS2,210000              Furniture & Soft Furnishings,A,2023,6
648,Environment and Regeneration,UNIQUE OFFICE SOLUTIONS LTD,112968,26-Sep-23,4387.24,731.21,166889,EDS2,210000              Furniture & Soft Furnishings,A,2023,6
649,Environment and Regeneration,UNIQUE OFFICE SOLUTIONS LTD,112988,22-Sep-23,3680.92,613.48,166889,EDS2,210000              Furniture & Soft Furnishings,A,2023,6
650,"Children, Schools and Family",WIMBLEDON DAY NURSERY,P2 23 UPFRONTPAY,04-Sep-23,21112.56,0,167298,EARLY YEARS NURSERY GRANTS,170000              Education,A,2023,6
651,"Children, Schools and Family",RAINBOW FOSTERING SERVICES LTD,RF3331,28-Sep-23,3742.13,0,167793,Placements Under 18,321100              Social Community Care Supplies & Services - Children,A,2023,6
652,Corporate Services,REDACTED PERSONAL DATA,INVHW295,29-Sep-23,1800,300,167963,SLLP - Disbursements,280000              Legal Services                                                                            Confirmed,R,2023,6
653,Corporate Services,REDACTED PERSONAL DATA,INVHW296,29-Sep-23,2100,350,167963,SLLP - Disbursements,280000              Legal Services                                                                            Confirmed,R,2023,6
654,"Children, Schools and Family",BURLINGTON HOUSE SCHOOL,6230950,18-Sep-23,13110,0,167981,Non-Delegated Statements,200000              Financial Services,A,2023,6
655,"Children, Schools and Family",BURLINGTON HOUSE SCHOOL,P230925,18-Sep-23,13456,0,167981,Non-Delegated Statements,200000              Financial Services,A,2023,6
656,Capital,CBS Adaptation Design,1794,06-Sep-23,1995.76,265.96,168147,Disabled Facilities Grant,200000              Financial Services,A,2023,6
657,Capital,CBS Adaptation Design,1804,06-Sep-23,2758.2,371.7,168147,Disabled Facilities Grant,200000              Financial Services,A,2023,6
658,Capital,CBS Adaptation Design,1796,11-Sep-23,950.33,107.89,168147,Disabled Facilities Grant,200000              Financial Services,A,2023,6
659,Capital,CBS Adaptation Design,1801,20-Sep-23,1701.83,195.64,168147,Disabled Facilities Grant,200000              Financial Services,A,2023,6
660,Capital,CBS Adaptation Design,1809,20-Sep-23,1214.33,202.39,168147,Disabled Facilities Grant,200000              Financial Services,A,2023,6
661,Capital,CBS Adaptation Design,1805,20-Sep-23,3556.69,505.28,168147,Disabled Facilities Grant,200000              Financial Services,A,2023,6
662,Capital,CBS Adaptation Design,1795,20-Sep-23,1090.3,114.88,168147,Disabled Facilities Grant,200000              Financial Services,A,2023,6
663,Community and Housing,CBS Adaptation Design,1786,22-Sep-23,1879.82,313.3,168147,Hsg. Env. Health (Enforcement),200000              Financial Services,A,2023,6
664,Capital,CBS Adaptation Design,1806,03-Oct-23,1071.25,128.54,168147,Disabled Facilities Grant,200000              Financial Services,A,2023,6
665,Capital,CBS Adaptation Design,1810,03-Oct-23,1785.53,209.59,168147,Disabled Facilities Grant,200000              Financial Services,A,2023,6
666,Corporate Services,LANGUAGE BANK,MTS-010923,22-Sep-23,912,152,168229,Translation Service,TRANSLATIONS,A,2023,6
667,Corporate Services,LANGUAGE BANK,MTS-230823,22-Sep-23,756,126,168229,Translation Service,TRANSLATIONS,A,2023,6
668,Corporate Services,LANGUAGE BANK,MTS-290823,22-Sep-23,738,123,168229,Translation Service,TRANSLATIONS,A,2023,6
669,Corporate Services,LANGUAGE BANK,MTS-060923,22-Sep-23,837,139.5,168229,Translation Service,TRANSLATIONS,A,2023,6
670,Corporate Services,LANGUAGE BANK,MTS-070923,26-Sep-23,981,163.5,168229,Translation Service,TRANSLATIONS,A,2023,6
671,Corporate Services,LANGUAGE BANK,MTS-110923,26-Sep-23,963,160.5,168229,Translation Service,TRANSLATIONS,A,2023,6
672,Community and Housing,REDACTED PERSONAL DATA,1020245,12-Sep-23,917.8,0,168403,Learning Disabilities Placemnt,DIRECT PAYMENTS,R,2023,6
673,"Children, Schools and Family",REDACTED PERSONAL DATA,P2 23 UPFRONTPAY,04-Sep-23,1985.76,0,168744,EARLY YEARS NURSERY GRANTS,200000              Financial Services,R,2023,6
674,"Children, Schools and Family",WILLOWS PRE SCHOOL,P2 23 UPFRONTPAY,04-Sep-23,19625.76,0,168752,EARLY YEARS NURSERY GRANTS,170000              Education,A,2023,6
675,Community and Housing,HOME CONNECTIONS LETTINGS LTD,INV-1588,27-Sep-23,18000,3000,168983,Housing Needs & Enablg-central,270000              Information Communication Technology,A,2023,6
676,Community and Housing,HOME CONNECTIONS LETTINGS LTD,INV-1615,20-Sep-23,1020,170,168983,Housing Needs & Enablg-central,270000              Information Communication Technology,A,2023,6
677,Capital,KC Services Group,43998,22-Sep-23,45600,7600,169420,Links,"390000              Works - Construction, Repair & Maintenance",A,2023,6
678,Corporate Services,KC Services Group,44002,25-Sep-23,655.2,109.2,169420,Leisure Buildings,"390000              Works - Construction, Repair & Maintenance",A,2023,6
679,"Children, Schools and Family",REDACTED PERSONAL DATA,P2 23 UPFRONTPAY,04-Sep-23,2251.2,0,169972,EARLY YEARS NURSERY GRANTS,321100              Social Community Care Supplies & Services - Children,R,2023,6
680,Corporate Services,JULIUS RUTHERFOORD AND CO LTD,INVS150734,08-Sep-23,2498.65,416.44,170092,PDC,130000              Cleaning & Janitorial,A,2023,6
681,"Children, Schools and Family",JULIUS RUTHERFOORD AND CO LTD,INVS151234,21-Sep-23,861.97,143.66,170092,Avenue CC Building Management,130000              Cleaning & Janitorial,A,2023,6
682,"Children, Schools and Family",JULIUS RUTHERFOORD AND CO LTD,INVS150959,21-Sep-23,1229.42,204.9,170092,Bond Road Building,130000              Cleaning & Janitorial,A,2023,6
683,"Children, Schools and Family",JULIUS RUTHERFOORD AND CO LTD,INVS150984,21-Sep-23,861.97,143.66,170092,Church Road Building,130000              Cleaning & Janitorial,A,2023,6
684,"Children, Schools and Family",JULIUS RUTHERFOORD AND CO LTD,INVS151096,21-Sep-23,862.03,143.67,170092,Ivy Garden CC Building,130000              Cleaning & Janitorial,A,2023,6
685,"Children, Schools and Family",JULIUS RUTHERFOORD AND CO LTD,INVS150931,21-Sep-23,861.97,143.66,170092,Lower Morden CC Building Mgt,130000              Cleaning & Janitorial,A,2023,6
686,"Children, Schools and Family",JULIUS RUTHERFOORD AND CO LTD,INVS151147,21-Sep-23,1298.96,216.49,170092,Newminster CC Building Mgt,130000              Cleaning & Janitorial,A,2023,6
687,Corporate Services,JULIUS RUTHERFOORD AND CO LTD,INVS151140,22-Sep-23,2498.65,416.44,170092,PDC,130000              Cleaning & Janitorial,A,2023,6
688,"Children, Schools and Family",JULIUS RUTHERFOORD AND CO LTD,INVS151184,26-Sep-23,25304.67,4217.45,170092, PFI Unitary Charges,130000              Cleaning & Janitorial,A,2023,6
689,"Children, Schools and Family",JULIUS RUTHERFOORD AND CO LTD,INVS151182,26-Sep-23,26940.04,4490.02,170092, PFI Unitary Charges,130000              Cleaning & Janitorial,A,2023,6
690,"Children, Schools and Family",JULIUS RUTHERFOORD AND CO LTD,INVS151187,26-Sep-23,962.06,160.34,170092, PFI Unitary Charges,130000              Cleaning & Janitorial,A,2023,6
691,"Children, Schools and Family",JULIUS RUTHERFOORD AND CO LTD,INVS151317,26-Sep-23,524.3,87.38,170092, PFI Unitary Charges,130000              Cleaning & Janitorial,A,2023,6
692,"Children, Schools and Family",JULIUS RUTHERFOORD AND CO LTD,INVS151185,26-Sep-23,1293.62,215.6,170092, PFI Unitary Charges,130000              Cleaning & Janitorial,A,2023,6
693,"Children, Schools and Family",JULIUS RUTHERFOORD AND CO LTD,INVS151186,26-Sep-23,29555.45,4925.92,170092, PFI Unitary Charges,130000              Cleaning & Janitorial,A,2023,6
694,"Children, Schools and Family",JULIUS RUTHERFOORD AND CO LTD,INVS151125,26-Sep-23,5994,999,170092, PFI Unitary Charges,130000              Cleaning & Janitorial,A,2023,6
695,"Children, Schools and Family",SENSATIONAL KIDS,INV-7037,15-Sep-23,800,0,170195,Non-Delegated Statements,321100              Social Community Care Supplies & Services - Children,A,2023,6
696,"Children, Schools and Family",SENSATIONAL KIDS,INV-7050,21-Sep-23,830,0,170195,Non-Delegated Statements,321100              Social Community Care Supplies & Services - Children,A,2023,6
697,Community and Housing,REDACTED PERSONAL DATA,1020195,12-Sep-23,547.4,0,170275,Phys/Sens Placements - East,DIRECT PAYMENTS,R,2023,6
698,Community and Housing,INDEPENDENCE HOMES LTD,CED00160/146,07-Sep-23,14213.36,0,170527,Learning Disabilities Placemnt,321017              Nursing & Residential Care Homes,A,2023,6
699,Community and Housing,INDEPENDENCE HOMES LTD,1028980,27-Sep-23,8610.44,0,170527,Learning Disabilities Placemnt,321017              Nursing & Residential Care Homes,A,2023,6
700,"Children, Schools and Family",GREATER LONDON FOSTERING LTD,INV-1262,19-Sep-23,3786.34,0,170596,Placements Under 18,321100              Social Community Care Supplies & Services - Children,A,2023,6
701,"Children, Schools and Family",GREATER LONDON FOSTERING LTD,INV-1247,19-Sep-23,3786.34,0,170596,Placements Under 18,321100              Social Community Care Supplies & Services - Children,A,2023,6
702,"Children, Schools and Family",GREATER LONDON FOSTERING LTD,INV-1285,19-Sep-23,3697.68,0,170596,Placements Under 18,321100              Social Community Care Supplies & Services - Children,A,2023,6
703,"Children, Schools and Family",GREATER LONDON FOSTERING LTD,INV-1284,19-Sep-23,3516.95,0,170596,Placements Under 18,321100              Social Community Care Supplies & Services - Children,A,2023,6
704,"Children, Schools and Family",GREATER LONDON FOSTERING LTD,INV-0828,15-Sep-23,1954.24,0,170596,Placements Under 18,321100              Social Community Care Supplies & Services - Children,A,2023,6
705,"Children, Schools and Family",GL ASSESSMENT,SINV00419224,04-Oct-23,509.38,84.9,170635,Behaviour Support,170000              Education,A,2023,6
706,Community and Housing,REDACTED PERSONAL DATA,1020441,12-Sep-23,2146.92,0,170878,Learning Disabilities Placemnt,DIRECT PAYMENTS,R,2023,6
707,Community and Housing,REDACTED PERSONAL DATA,1020519,12-Sep-23,1603.12,0,171056,Phys/Sens Placements - East,DIRECT PAYMENTS,R,2023,6
708,"Children, Schools and Family",Parallel Learning Trust,WVSI289,28-Sep-23,35281.01,0,171235,Non-Delegated Statements,170000              Education,A,2023,6
709,Community and Housing,ST GEORGES RES. CARE HOME,1029031,27-Sep-23,5285.48,0,171491,Learning Disabilities Placemnt,321017              Nursing & Residential Care Homes,A,2023,6
710,Community and Housing,ST GEORGES RES. CARE HOME,1029058,27-Sep-23,4366.24,0,171491,Learning Disabilities Placemnt,321017              Nursing & Residential Care Homes,A,2023,6
711,Environment and Regeneration,R AND A SOFTWARE (SYSTEMS) LTD,0019/18944,03-Oct-23,8797.2,1466.2,172056,Pks Rec Grds (Unloc),270000              Information Communication Technology,A,2023,6
712,Community and Housing,REDACTED PERSONAL DATA,1020390,12-Sep-23,698.2,0,172070,Learning Disabilities Placemnt,DIRECT PAYMENTS,R,2023,6
713,Community and Housing,NORBURY PROPERTY SERV LDN LTD,SI-9216,25-Sep-23,11346,0,172104,Bed & Breakfast - accomm,321000              Social Community Care Supplies & Services - Adult,A,2023,6
714,Community and Housing,EALING COUNCIL,17298222,11-Sep-23,26884.96,0,172129,Homelessness Prevention,OLA,A,2023,6
715,Community and Housing,EALING COUNCIL,1028665,27-Sep-23,2985.92,0,172129,Mental Health Placements,OLA,A,2023,6
716,Community and Housing,CARRICKS BROOK,1028686,27-Sep-23,6536.16,0,172297,Learning Disabilities Placemnt,321017              Nursing & Residential Care Homes,A,2023,6
717,Community and Housing,BROADHAM CARE LTD,1027919,25-Sep-23,2982.43,0,172298,Learning Disabilities Placemnt,321017              Nursing & Residential Care Homes,A,2023,6
718,Community and Housing,BROADHAM CARE LTD,1027943,25-Sep-23,3083.89,0,172298,Learning Disabilities Placemnt,321017              Nursing & Residential Care Homes,A,2023,6
719,Community and Housing,BROADHAM CARE LTD,1028742,27-Sep-23,8014.84,0,172298,Learning Disabilities Placemnt,321017              Nursing & Residential Care Homes,A,2023,6
720,Community and Housing,BROADHAM CARE LTD,1029014,27-Sep-23,8287.36,0,172298,Learning Disabilities Placemnt,321017              Nursing & Residential Care Homes,A,2023,6
721,Unassigned,KENNEDYS,012300600681M890,26-Sep-23,517.18,0,172486,Corporate Accountancy,280000              Legal Services,A,2023,6
722,Unassigned,KENNEDYS,012300594341M890,28-Sep-23,3000,0,172486,Corporate Services,280000              Legal Services,A,2023,6
723,"Children, Schools and Family",LINDEN LODGE SCHOOL,INV-1423,15-Sep-23,2277,0,172798,Non-Delegated Statements,170000              Education,A,2023,6
724,Community and Housing,REDACTED PERSONAL DATA,1020202,12-Sep-23,1403.74,0,172912,Learning Disabilities Placemnt,DIRECT PAYMENTS,R,2023,6
725,Community and Housing,REDACTED PERSONAL DATA,1020330,12-Sep-23,968.12,0,172914,Learning Disabilities Placemnt,DIRECT PAYMENTS,R,2023,6
726,Community and Housing,REDACTED PERSONAL DATA,1020410,12-Sep-23,599.04,0,172936,Phys/Sens Placements - East,DIRECT PAYMENTS,R,2023,6
727,Community and Housing,GUARDIAN NEWS AND MEDIA LTD,200-4060,18-Sep-23,3334.5,555.75,173136,Hsg. Env. Health (Enforcement),260000              Human Resources,A,2023,6
728,Community and Housing,GUARDIAN NEWS AND MEDIA LTD,1313292,28-Sep-23,2223,370.5,173136,Hsg. Env. Health (Enforcement),260000              Human Resources,A,2023,6
729,Community and Housing,HAVERING COURT NURSING HOME,1028647,27-Sep-23,4954.12,0,173297,Older People Placements - East,321017              Nursing & Residential Care Homes,A,2023,6
730,Community and Housing,REDACTED PERSONAL DATA,1020408,12-Sep-23,977.52,0,173308,Phys/Sens Placements - East,DIRECT PAYMENTS,R,2023,6
731,Community and Housing,SOUTH THAMES COLLEGE,5005966,27-Sep-23,1400,0,173357,AE Main Adult Learning,190000              Facilities & Management Services,A,2023,6
732,"Children, Schools and Family",REDACTED PERSONAL DATA,1019404,11-Sep-23,9248.04,0,173793,Child Disabilities - Placement,CSF-DIRECT PAYMENTS,R,2023,6
733,Community and Housing,REDACTED PERSONAL DATA,1020485,12-Sep-23,576.04,0,173807,Learning Disabilities Placemnt,DIRECT PAYMENTS,R,2023,6
734,Community and Housing,HARBOUR CARE (UK) LTD,1027940,25-Sep-23,3288.72,0,173947,Learning Disabilities Placemnt,321017              Nursing & Residential Care Homes,A,2023,6
735,Community and Housing,HARBOUR CARE (UK) LTD,1028957,27-Sep-23,6996.8,0,173947,Learning Disabilities Placemnt,321017              Nursing & Residential Care Homes,A,2023,6
736,Environment and Regeneration,LABC,215555,05-Sep-23,522,87,174074,Building Control,"390000              Works - Construction, Repair & Maintenance",A,2023,6
737,"Children, Schools and Family",REDACTED PERSONAL DATA,1019424,11-Sep-23,2200,0,174212, Statementing-Transport,CSF-DIRECT PAYMENTS,R,2023,6
738,Community and Housing,ASHINGTON HOUSE,1017257,05-Sep-23,2247.36,0,174259,Learning Disabilities Placemnt,321017              Nursing & Residential Care Homes,A,2023,6
739,Community and Housing,ASHINGTON HOUSE,1028706,27-Sep-23,4781.24,0,174259,Learning Disabilities Placemnt,321017              Nursing & Residential Care Homes,A,2023,6
740,Community and Housing,REDACTED PERSONAL DATA,1020239,12-Sep-23,811.2,0,174449,Phys/Sens Placements - East,DIRECT PAYMENTS,R,2023,6
741,"Children, Schools and Family",REDACTED PERSONAL DATA,1031812,28-Sep-23,563.29,0,174483,Placements Under 18,321100              Social Community Care Supplies & Services - Children,R,2023,6
742,Community and Housing,PRECIOUS HOMES LTD,VER002568,29-Sep-23,10087.11,0,174641,Learning Disabilities Placemnt,321017              Nursing & Residential Care Homes,A,2023,6
743,Community and Housing,SUPREME HOMES,30512,07-Sep-23,3280,0,174758,Mental Health Placements,321017              Nursing & Residential Care Homes,A,2023,6
744,Community and Housing,SUPREME HOMES,30479,11-Sep-23,3280,0,174758,Mental Health Placements,321017              Nursing & Residential Care Homes,A,2023,6
745,Community and Housing,ALPENBEST LIMITED,AEFS10092023,26-Sep-23,2350.44,0,174789,Older People Placements - East,321000              Social Community Care Supplies & Services - Adult,A,2023,6
746,Community and Housing,ALPENBEST LIMITED,PM10092023,26-Sep-23,517.88,0,174789,Older People Placements - East,321000              Social Community Care Supplies & Services - Adult,A,2023,6
747,Community and Housing,ALPENBEST LIMITED,AT10092023,26-Sep-23,2412.79,0,174789,Older People Placements - East,321000              Social Community Care Supplies & Services - Adult,A,2023,6
748,Community and Housing,ALPENBEST LIMITED,YS10092023,26-Sep-23,707.28,0,174789,Older People Placements - East,321000              Social Community Care Supplies & Services - Adult,A,2023,6
749,Community and Housing,SUTTON COURT CARE CENTRE,1028774,27-Sep-23,3723.24,0,174833,Older People Placements - East,321017              Nursing & Residential Care Homes,A,2023,6
750,Community and Housing,SUTTON COURT CARE CENTRE,1028850,27-Sep-23,3163.36,0,174833,Older People Placements - East,321017              Nursing & Residential Care Homes,A,2023,6
751,Community and Housing,SUTTON COURT CARE CENTRE,1028877,27-Sep-23,4049.6,0,174833,Phys/Sens Placements - East,321017              Nursing & Residential Care Homes,A,2023,6
752,Community and Housing,SUTTON COURT CARE CENTRE,1029034,27-Sep-23,4139.36,0,174833,Phys/Sens Placements - East,321017              Nursing & Residential Care Homes,A,2023,6
753,Community and Housing,REDACTED PERSONAL DATA,1020175,12-Sep-23,782,0,174975,Learning Disabilities Placemnt,DIRECT PAYMENTS,R,2023,6
754,Corporate Services,COSMIC EUROPE LIMTED,UK7309,15-Sep-23,676.8,112.8,175169,Translation Service,TRANSLATIONS,A,2023,6
755,Corporate Services,COSMIC EUROPE LIMTED,UK7310,15-Sep-23,1779.6,296.6,175169,Translation Service,TRANSLATIONS,A,2023,6
756,"Children, Schools and Family",GLOBAL MEDIATION LTD,INV-94739,22-Sep-23,2640,440,175270,Non-Delegated Statements,260000              Human Resources                                                                           Confirmed,A,2023,6
757,"Children, Schools and Family",SURREY FIRST AID TRAINING LTD,1007202302,26-Sep-23,954,159,175480,Children's Centres,170000              Education,A,2023,6
758,Community and Housing,KISIMUL SCHOOL,1028672,27-Sep-23,14008.68,0,175545,Learning Disabilities Placemnt,321017              Nursing & Residential Care Homes,A,2023,6
759,Community and Housing,KISIMUL SCHOOL,1028919,27-Sep-23,17689.84,0,175545,Learning Disabilities Placemnt,321017              Nursing & Residential Care Homes,A,2023,6
760,Community and Housing,REDACTED PERSONAL DATA,1020503,12-Sep-23,2189.6,0,175782,Phys/Sens Placements - East,DIRECT PAYMENTS,R,2023,6
761,Corporate Services,LAVAT CONSULTING LIMITED,INV-111307,13-Sep-23,1020,170,175816,Corporate Accountancy,260000              Human Resources,A,2023,6
762,Community and Housing,REDACTED PERSONAL DATA,1020349,12-Sep-23,1600.6,0,175960,Learning Disabilities Placemnt,DIRECT PAYMENTS,R,2023,6
763,Environment and Regeneration,M J MAPP LTD,127000/7554,07-Sep-23,7954.7,1325.78,176206,Parking - Car Parks,250000              Housing Management,A,2023,6
764,Community and Housing,REDACTED PERSONAL DATA,1020360,12-Sep-23,552.44,0,176619,Phys/Sens Placements - East,DIRECT PAYMENTS,R,2023,6
765,Community and Housing,REDACTED PERSONAL DATA,1020333,12-Sep-23,6410.36,0,176783,Phys/Sens Placements - East,DIRECT PAYMENTS,R,2023,6
766,"Children, Schools and Family",THE PRE-SCHOOL GROUP LTD,P2 23 UPFRONTPAY,04-Sep-23,35261.69,0,176785,EARLY YEARS NURSERY GRANTS,200000              Financial Services,A,2023,6
767,Corporate Services,SPRINGFIELD ADVICE AND LAW CENTRE,CIVIC PRIDE,28-Sep-23,31716.67,0,176852,VOLUNTARY SECTOR COORDINATION,200000              Financial Services,A,2023,6
768,Community and Housing,REDACTED PERSONAL DATA,1020447,12-Sep-23,1800.4,0,176868,Phys/Sens Placements - East,DIRECT PAYMENTS,R,2023,6
769,Corporate Services,LOGOTECH SYSTEMS,107967,04-Oct-23,3456.48,576.08,176925,Treasury Team,200000              Financial Services,A,2023,6
770,Community and Housing,SPRING LAKE CARE HOME LTD,1028819,27-Sep-23,11418,0,177067,Learning Disabilities Placemnt,321017              Nursing & Residential Care Homes,A,2023,6
771,Community and Housing,SPRING LAKE CARE HOME LTD,1029029,27-Sep-23,6468,0,177067,Learning Disabilities Placemnt,321017              Nursing & Residential Care Homes,A,2023,6
772,Community and Housing,REDACTED PERSONAL DATA,1020435,12-Sep-23,801.56,0,177115,Older People Placements - East,DIRECT PAYMENTS,R,2023,6
773,"Children, Schools and Family",HA TUTORS LTD,INV-14041,07-Sep-23,534.3,89.05,177219,Non-Delegated Statements,170000              Education,A,2023,6
774,Environment and Regeneration,PERMANENT FUTURES,24675,28-Sep-23,14652,2442,177323,Reg. Serv - Shared Mgnt Costs,260000              Human Resources                                                                           Confirmed,A,2023,6
775,Capital,UK POWER NETWORKS (OPERATIONS),92178914,25-Sep-23,3142.8,523.8,177333,Highways & Footways,180000              Environmental Services,A,2023,6
776,Capital,UK POWER NETWORKS (OPERATIONS),92178489,29-Sep-23,4663.2,777.2,177333,Highways & Footways,180000              Environmental Services,A,2023,6
777,"Children, Schools and Family",EXPERT IN MIND,41863,13-Sep-23,5166.6,861.1,177342,Family Supp SafeGuard - Place,280000              Legal Services                                                                            Confirmed,A,2023,6
778,Community and Housing,HYTYME B AND B,27036,01-Sep-23,3186,531,177425,Housing Strategy,321000              Social Community Care Supplies & Services - Adult,A,2023,6
779,Community and Housing,HYTYME B AND B,27100,07-Sep-23,12078,2013,177425,Bed & Breakfast - accomm,321000              Social Community Care Supplies & Services - Adult,A,2023,6
780,Community and Housing,HYTYME B AND B,27170,29-Sep-23,18506.4,3084.4,177425,Bed & Breakfast - accomm,321000              Social Community Care Supplies & Services - Adult,A,2023,6
781,Community and Housing,REDACTED PERSONAL DATA,1020243,12-Sep-23,856.72,0,177453,Phys/Sens Placements - East,DIRECT PAYMENTS,R,2023,6
782,Community and Housing,REDACTED PERSONAL DATA,1020233,12-Sep-23,724.72,0,177476,Learning Disabilities Placemnt,DIRECT PAYMENTS,R,2023,6
783,"Children, Schools and Family",BWT,10411798,22-Sep-23,584.02,97.34,177497,Bond Road Building,110000              Catering,A,2023,6
784,Community and Housing,REDACTED PERSONAL DATA,1020178,12-Sep-23,1444.8,0,177502,Phys/Sens Placements - East,DIRECT PAYMENTS,R,2023,6
785,"Children, Schools and Family",BUTTERFLIES CHILDCARE LIMITED,P2 23 UPFRONTPAY,04-Sep-23,17841.6,0,177504,EARLY YEARS NURSERY GRANTS,200000              Financial Services,A,2023,6
786,Corporate Services,HPI LIMITED,6160-001896908,18-Sep-23,657.89,109.65,177649,Local Taxation Bailiffs,200000              Financial Services,A,2023,6
787,Community and Housing,REDACTED PERSONAL DATA,1020249,12-Sep-23,703.8,0,177739,Phys/Sens Placements - East,DIRECT PAYMENTS,R,2023,6
788,Community and Housing,REDACTED PERSONAL DATA,1020261,12-Sep-23,821.12,0,177785,Phys/Sens Placements - East,DIRECT PAYMENTS,R,2023,6
789,"Children, Schools and Family",REDACTED PERSONAL DATA,P2 23 UPFRONTPAY,04-Sep-23,992.88,0,177813,EARLY YEARS NURSERY GRANTS,200000              Financial Services,R,2023,6
790,Community and Housing,WORKSHOP 305,AGAR169,12-Sep-23,570.65,0,177941,Learning Disabilities Placemnt,321000              Social Community Care Supplies & Services - Adult,A,2023,6
791,Community and Housing,WORKSHOP 305,IALA169,12-Sep-23,570.64,0,177941,Learning Disabilities Placemnt,321000              Social Community Care Supplies & Services - Adult,A,2023,6
792,Community and Housing,WORKSHOP 305,RAG169,12-Sep-23,855.96,0,177941,Learning Disabilities Placemnt,321000              Social Community Care Supplies & Services - Adult,A,2023,6
793,Community and Housing,WORKSHOP 305,SLAP169,12-Sep-23,570.6,0,177941,Learning Disabilities Placemnt,321000              Social Community Care Supplies & Services - Adult,A,2023,6
794,Community and Housing,WORKSHOP 305,WJON169,12-Sep-23,855.96,0,177941,Learning Disabilities Placemnt,321000              Social Community Care Supplies & Services - Adult,A,2023,6
795,Community and Housing,WORKSHOP 305,ASC0169,14-Sep-23,855.96,0,177941,Learning Disabilities Placemnt,321000              Social Community Care Supplies & Services - Adult,A,2023,6
796,Community and Housing,REDACTED PERSONAL DATA,1020296,12-Sep-23,1094.8,0,177999,Learning Disabilities Placemnt,DIRECT PAYMENTS,R,2023,6
797,Community and Housing,REDACTED PERSONAL DATA,1020235,12-Sep-23,1212.28,0,178412,Learning Disabilities Placemnt,DIRECT PAYMENTS,R,2023,6
798,Community and Housing,REDACTED PERSONAL DATA,1020416,12-Sep-23,5439,0,178412,Learning Disabilities Placemnt,DIRECT PAYMENTS,R,2023,6
799,"Children, Schools and Family",Little Hearts Pre School,P2 23 UPFRONTPAY,04-Sep-23,14357.28,0,178454,EARLY YEARS NURSERY GRANTS,200000              Financial Services,A,2023,6
800,Community and Housing,BRAMBLEDOWN CARE HOME,1028830,27-Sep-23,8081.96,0,178465,Phys/Sens Placements - East,321017              Nursing & Residential Care Homes,A,2023,6
801,Environment and Regeneration,THOMSON REUTERS,847496415,01-Sep-23,2720.64,0,178554,Development Control,260000              Human Resources,A,2023,6
802,Community and Housing,KEW HOUSE,1022720,14-Sep-23,5349.32,0,178621,Older People Placements - East,321017              Nursing & Residential Care Homes,A,2023,6
803,Community and Housing,KEW HOUSE,1028838,27-Sep-23,3289.24,0,178621,Older People Placements - East,321017              Nursing & Residential Care Homes,A,2023,6
804,Community and Housing,KEW HOUSE,1028916,27-Sep-23,5800,0,178621,Older People Placements - East,321017              Nursing & Residential Care Homes,A,2023,6
805,Community and Housing,KEW HOUSE,1028997,27-Sep-23,8321.16,0,178621,Older People Placements - East,321017              Nursing & Residential Care Homes,A,2023,6
806,Community and Housing,REDACTED PERSONAL DATA,1020428,12-Sep-23,4893.48,0,178802,Learning Disabilities Placemnt,DIRECT PAYMENTS,R,2023,6
807,Community and Housing,REDACTED PERSONAL DATA,1020365,12-Sep-23,2306.92,0,178874,Learning Disabilities Placemnt,DIRECT PAYMENTS,R,2023,6
808,"Children, Schools and Family",MODERN MONTESSORI INTL. LTD,P2 23 UPFRONTPAY,04-Sep-23,12531.12,0,178883,EARLY YEARS NURSERY GRANTS,200000              Financial Services,A,2023,6
809,Unassigned,PENNA PLC,677318,02-Oct-23,8772,1462,179007,Director Innovation and Change,190000              Facilities & Management Services,A,2023,6
810,Unassigned,PENNA PLC,677319,02-Oct-23,9649.2,1608.2,179007,Director Innovation and Change,190000              Facilities & Management Services,A,2023,6
811,Community and Housing,REDACTED PERSONAL DATA,1020531,12-Sep-23,1532.12,0,179049,Learning Disabilities Placemnt,DIRECT PAYMENTS,R,2023,6
812,"Children, Schools and Family",WILLOWS PRE-SCHOOL,P2 23 UPFRONTPAY,04-Sep-23,27654.48,0,179134,EARLY YEARS NURSERY GRANTS,170000              Education,A,2023,6
813,Community and Housing,REDACTED PERSONAL DATA,1020153,12-Sep-23,751,0,179142,Learning Disabilities Placemnt,DIRECT PAYMENTS,R,2023,6
814,Community and Housing,REDACTED PERSONAL DATA,1020387,12-Sep-23,2126.36,0,179332,Phys/Sens Placements - East,DIRECT PAYMENTS,R,2023,6
815,Community and Housing,REDACTED PERSONAL DATA,1020443,12-Sep-23,4177,0,179383,Learning Disabilities Placemnt,DIRECT PAYMENTS,R,2023,6
816,"Children, Schools and Family",REDACTED PERSONAL DATA,7YE,18-Sep-23,1113.67,0,179598,Placements Over 18,321000              Social Community Care Supplies & Services - Adult,R,2023,6
817,Community and Housing,ELYSIUM CARE PARTNERSHIPS LTD,1027932,25-Sep-23,3653.51,0,179734,Learning Disabilities Placemnt,321017              Nursing & Residential Care Homes,A,2023,6
818,Community and Housing,ELYSIUM CARE PARTNERSHIPS LTD,1028867,27-Sep-23,9818.32,0,179734,Learning Disabilities Placemnt,321017              Nursing & Residential Care Homes,A,2023,6
819,Community and Housing,ELYSIUM CARE PARTNERSHIPS LTD,1028885,27-Sep-23,3462.2,0,179734,Learning Disabilities Placemnt,321017              Nursing & Residential Care Homes,A,2023,6
820,Community and Housing,ELYSIUM CARE PARTNERSHIPS LTD,1029002,27-Sep-23,9821,0,179734,Learning Disabilities Placemnt,321017              Nursing & Residential Care Homes,A,2023,6
821,Community and Housing,WESTHOPE LTD,1028834,27-Sep-23,6350.78,1058.46,179748,Learning Disabilities Placemnt,321017              Nursing & Residential Care Homes,A,2023,6
822,Environment and Regeneration,BARKLANDS TREE SPECIALISTS,366,05-Oct-23,10507.5,1751.25,179780,Highways GM Contract,240000              Horticultural,A,2023,6
823,Community and Housing,SUNNINGDALE HOUSE CARE HOME,1028994,27-Sep-23,2575,0,179794,Learning Disabilities Placemnt,321017              Nursing & Residential Care Homes,A,2023,6
824,Community and Housing,SUNLIGHT HOUSE,1028775,27-Sep-23,7667.6,0,179813,Learning Disabilities Placemnt,321017              Nursing & Residential Care Homes,A,2023,6
825,Community and Housing,SUNLIGHT HOUSE,1028890,27-Sep-23,5140,0,179813,Learning Disabilities Placemnt,321017              Nursing & Residential Care Homes,A,2023,6
826,"Children, Schools and Family",COLLIERS WOOD VILLAGE DAY NUR.,P2 23 UPFRONTPAY,04-Sep-23,15207.36,0,179896,EARLY YEARS NURSERY GRANTS,200000              Financial Services,A,2023,6
827,"Children, Schools and Family",STORMSAVER LTD,6024216,06-Sep-23,869.29,144.88,179980, Youth Office Premises Cost,"390000              Works - Construction, Repair & Maintenance",A,2023,6
828,Community and Housing,BHAKTI SHYAMA CARE CENTRE,1027947,25-Sep-23,2442.86,0,179993,Older People Placements - East,321017              Nursing & Residential Care Homes,A,2023,6
829,Community and Housing,BHAKTI SHYAMA CARE CENTRE,1028809,27-Sep-23,3557.92,0,179993,Older People Placements - East,321017              Nursing & Residential Care Homes,A,2023,6
830,Community and Housing,BHAKTI SHYAMA CARE CENTRE,1029069,27-Sep-23,2985.6,0,179993,Older People Placements - East,321017              Nursing & Residential Care Homes,A,2023,6
831,Community and Housing,BHAKTI SHYAMA CARE CENTRE,1029073,27-Sep-23,3800,0,179993,Older People Placements - East,321017              Nursing & Residential Care Homes,A,2023,6
832,"Children, Schools and Family",REAMCARE LTD,LHRPAM092301,11-Sep-23,20105.67,0,180045,Placements Under 18,321100              Social Community Care Supplies & Services - Children Residential,A,2023,6
833,Community and Housing,REDACTED PERSONAL DATA,1020513,12-Sep-23,1290.88,0,180174,Older People Placements - East,DIRECT PAYMENTS,R,2023,6
834,Community and Housing,SUNRISE DAY CARE,DP4988,08-Sep-23,2214.72,0,180196,Older People Placements - East,321000              Social Community Care Supplies & Services - Adult,A,2023,6
835,Community and Housing,SUNRISE DAY CARE,DP002,15-Sep-23,677.2,0,180196,Older People Placements - East,321000              Social Community Care Supplies & Services - Adult,A,2023,6
836,Community and Housing,SUNRISE DAY CARE,DP001,15-Sep-23,711.1,0,180196,Older People Placements - East,321000              Social Community Care Supplies & Services - Adult,A,2023,6
837,Community and Housing,SUNRISE DAY CARE,DP003,20-Sep-23,1880.55,0,180196,Phys/Sens Placements - East,321000              Social Community Care Supplies & Services - Adult,A,2023,6
838,Community and Housing,SUNRISE DAY CARE,DP4987,20-Sep-23,1624.72,0,180196,Older People Placements - East,321000              Social Community Care Supplies & Services - Adult,A,2023,6
839,Community and Housing,SUNRISE DAY CARE,DP5009,29-Sep-23,1643.05,0,180196,Older People Placements - East,321000              Social Community Care Supplies & Services - Adult,A,2023,6
840,Community and Housing,REDACTED PERSONAL DATA,1020291,12-Sep-23,625.6,0,180242,Phys/Sens Placements - East,DIRECT PAYMENTS,R,2023,6
841,Community and Housing,REDACTED PERSONAL DATA,1020448,12-Sep-23,1446.72,0,180282,Phys/Sens Placements - East,DIRECT PAYMENTS,R,2023,6
842,Community and Housing,REDACTED PERSONAL DATA,1020180,12-Sep-23,3365.68,0,180285,Older People Placements - East,DIRECT PAYMENTS,R,2023,6
843,Community and Housing,SEVACARE,06.08.23/15,08-Sep-23,622.95,0,180307,Older People Placements - East,321000              Social Community Care Supplies & Services - Adult,A,2023,6
844,Community and Housing,SEVACARE,06.08.23/6,08-Sep-23,1272.75,0,180307,Older People Placements - East,321000              Social Community Care Supplies & Services - Adult,A,2023,6
845,Community and Housing,SEVACARE,06.08.23/14,08-Sep-23,741.19,0,180307,Older People Placements - East,321000              Social Community Care Supplies & Services - Adult,A,2023,6
846,Community and Housing,SEVACARE,06.08.23/3,08-Sep-23,2602.46,0,180307,Phys/Sens Placements - East,321000              Social Community Care Supplies & Services - Adult,A,2023,6
847,Community and Housing,SEVACARE,06.08.23/7,08-Sep-23,1129.02,0,180307,Older People Placements - East,321000              Social Community Care Supplies & Services - Adult,A,2023,6
848,Community and Housing,SEVACARE,06.08.23/5,08-Sep-23,754.44,0,180307,Older People Placements - East,321000              Social Community Care Supplies & Services - Adult,A,2023,6
849,Community and Housing,SEVACARE,78900-752403,11-Sep-23,1001.84,0,180307,Older People Placements - East,321000              Social Community Care Supplies & Services - Adult,A,2023,6
850,Community and Housing,SEVACARE,78900-791266,11-Sep-23,626.15,0,180307,Older People Placements - East,321000              Social Community Care Supplies & Services - Adult,A,2023,6
851,Community and Housing,SEVACARE,78900-869265,11-Sep-23,769.27,0,180307,Older People Placements - East,321000              Social Community Care Supplies & Services - Adult,A,2023,6
852,Community and Housing,SEVACARE,78900-994084,11-Sep-23,644.04,0,180307,Older People Placements - East,321000              Social Community Care Supplies & Services - Adult,A,2023,6
853,Community and Housing,SEVACARE,78900-982561,11-Sep-23,966.06,0,180307,Older People Placements - East,321000              Social Community Care Supplies & Services - Adult,A,2023,6
854,Community and Housing,SEVACARE,78900-79481,11-Sep-23,1896.34,0,180307,Older People Placements - East,321000              Social Community Care Supplies & Services - Adult,A,2023,6
855,Community and Housing,SEVACARE,78900-98888,11-Sep-23,1216.52,0,180307,Older People Placements - East,321000              Social Community Care Supplies & Services - Adult,A,2023,6
856,Community and Housing,SEVACARE,78900-533922,11-Sep-23,10018.4,0,180307,Older People Placements - East,321000              Social Community Care Supplies & Services - Adult,A,2023,6
857,Community and Housing,SEVACARE,78900-506355,11-Sep-23,930.28,0,180307,Phys/Sens Placements - East,321000              Social Community Care Supplies & Services - Adult,A,2023,6
858,Community and Housing,SEVACARE,78900-569458,11-Sep-23,1466.98,0,180307,Phys/Sens Placements - East,321000              Social Community Care Supplies & Services - Adult,A,2023,6
859,Community and Housing,SEVACARE,78900-41998,11-Sep-23,590.37,0,180307,Phys/Sens Placements - East,321000              Social Community Care Supplies & Services - Adult,A,2023,6
860,Community and Housing,SEVACARE,78900-72049,11-Sep-23,1144.96,0,180307,Learning Disabilities Placemnt,321000              Social Community Care Supplies & Services - Adult,A,2023,6
861,Community and Housing,SEVACARE,78900-52108,11-Sep-23,644.04,0,180307,Learning Disabilities Placemnt,321000              Social Community Care Supplies & Services - Adult,A,2023,6
862,Community and Housing,SEVACARE,78900-872605,11-Sep-23,661.93,0,180307,Older People Placements - East,321000              Social Community Care Supplies & Services - Adult,A,2023,6
863,Community and Housing,SEVACARE,78900-867847,11-Sep-23,1127.07,0,180307,Older People Placements - East,321000              Social Community Care Supplies & Services - Adult,A,2023,6
864,Community and Housing,SEVACARE,78900-565513,11-Sep-23,3059.19,0,180307,Phys/Sens Placements - East,321000              Social Community Care Supplies & Services - Adult,A,2023,6
865,Community and Housing,SEVACARE,78900-78739,11-Sep-23,715.6,0,180307,Learning Disabilities Placemnt,321000              Social Community Care Supplies & Services - Adult,A,2023,6
866,Community and Housing,SEVACARE,78900-74975,11-Sep-23,1842.67,0,180307,Older People Placements - East,321000              Social Community Care Supplies & Services - Adult,A,2023,6
867,Community and Housing,SEVACARE,78900-38267,11-Sep-23,1091.29,0,180307,Older People Placements - East,321000              Social Community Care Supplies & Services - Adult,A,2023,6
868,Community and Housing,SEVACARE,78900-68278,11-Sep-23,3041.3,0,180307,Learning Disabilities Placemnt,321000              Social Community Care Supplies & Services - Adult,A,2023,6
869,Community and Housing,SEVACARE,78900-72268,11-Sep-23,1395.42,0,180307,Learning Disabilities Placemnt,321000              Social Community Care Supplies & Services - Adult,A,2023,6
870,Community and Housing,SEVACARE,78900-654036,11-Sep-23,644.04,0,180307,Older People Placements - East,321000              Social Community Care Supplies & Services - Adult,A,2023,6
871,Community and Housing,SEVACARE,78900-614353,11-Sep-23,518.81,0,180307,Older People Placements - East,321000              Social Community Care Supplies & Services - Adult,A,2023,6
872,Community and Housing,SEVACARE,78900-871695,11-Sep-23,1019.73,0,180307,Older People Placements - East,321000              Social Community Care Supplies & Services - Adult,A,2023,6
873,Community and Housing,SEVACARE,78900-503697,11-Sep-23,894.5,0,180307,Older People Placements - East,321000              Social Community Care Supplies & Services - Adult,A,2023,6
874,Community and Housing,SEVACARE,78900-932264,11-Sep-23,518.81,0,180307,Older People Placements - East,321000              Social Community Care Supplies & Services - Adult,A,2023,6
875,Community and Housing,SEVACARE,78900-514140,11-Sep-23,2026.83,0,180307,Older People Placements - East,321000              Social Community Care Supplies & Services - Adult,A,2023,6
876,Community and Housing,SEVACARE,03.09.23/14,12-Sep-23,723.43,0,180307,Older People Placements - East,321000              Social Community Care Supplies & Services - Adult,A,2023,6
877,Community and Housing,SEVACARE,03.09.23/5,12-Sep-23,1261.7,0,180307,Older People Placements - East,321000              Social Community Care Supplies & Services - Adult,A,2023,6
878,Community and Housing,SEVACARE,03.09.23/13,12-Sep-23,917.12,0,180307,Older People Placements - East,321000              Social Community Care Supplies & Services - Adult,A,2023,6
879,Community and Housing,SEVACARE,03.09.23/2,12-Sep-23,2337.44,0,180307,Phys/Sens Placements - East,321000              Social Community Care Supplies & Services - Adult,A,2023,6
880,Community and Housing,SEVACARE,03.09.23/3,12-Sep-23,597.31,0,180307,Older People Placements - East,321000              Social Community Care Supplies & Services - Adult,A,2023,6
881,Community and Housing,SEVACARE,03.09.23/6,12-Sep-23,1239.59,0,180307,Older People Placements - East,321000              Social Community Care Supplies & Services - Adult,A,2023,6
882,Capital,NETWORK SOLUTIONS INC,LBM255,15-Sep-23,5244,874,180382,Major Library Projects,270000              Information Communication Technology,A,2023,6
883,Corporate Services,RESTORE PLC,1398747,18-Sep-23,694.58,115.76,180441,Legal Shared Service,190000              Facilities & Management Services,A,2023,6
884,"Children, Schools and Family",RESTORE PLC,1395797,19-Sep-23,1125.9,187.65,180441,Head of CSC & Youth Inclusion,190000              Facilities & Management Services,A,2023,6
885,"Children, Schools and Family",RESTORE PLC,1399552,25-Sep-23,610.74,101.79,180441,Fostering Recruit/Assessment,190000              Facilities & Management Services,A,2023,6
886,Community and Housing,REDACTED PERSONAL DATA,1020474,12-Sep-23,862.96,0,180447,Older People Placements - East,DIRECT PAYMENTS,R,2023,6
887,Community and Housing,REDACTED PERSONAL DATA,1020316,12-Sep-23,616.32,0,180478,Phys/Sens Placements - East,DIRECT PAYMENTS,R,2023,6
888,"Children, Schools and Family",REDACTED PERSONAL DATA,1015803,01-Sep-23,548.09,0,180579,UASC LAC Under 18,321100              Social Community Care Supplies & Services - Children,R,2023,6
889,"Children, Schools and Family",REDACTED PERSONAL DATA,1015833,01-Sep-23,548.09,0,180579,Placements Under 18,321100              Social Community Care Supplies & Services - Children,R,2023,6
890,"Children, Schools and Family",REDACTED PERSONAL DATA,1018769,08-Sep-23,548.09,0,180579,UASC LAC Under 18,321100              Social Community Care Supplies & Services - Children,R,2023,6
891,"Children, Schools and Family",REDACTED PERSONAL DATA,1018795,08-Sep-23,548.09,0,180579,Placements Under 18,321100              Social Community Care Supplies & Services - Children,R,2023,6
892,"Children, Schools and Family",REDACTED PERSONAL DATA,1023323,15-Sep-23,548.09,0,180579,UASC LAC Under 18,321100              Social Community Care Supplies & Services - Children,R,2023,6
893,"Children, Schools and Family",REDACTED PERSONAL DATA,1023349,15-Sep-23,548.09,0,180579,Placements Under 18,321100              Social Community Care Supplies & Services - Children,R,2023,6
894,"Children, Schools and Family",REDACTED PERSONAL DATA,1027542,22-Sep-23,548.09,0,180579,UASC LAC Under 18,321100              Social Community Care Supplies & Services - Children,R,2023,6
895,"Children, Schools and Family",REDACTED PERSONAL DATA,1027568,22-Sep-23,548.09,0,180579,Placements Under 18,321100              Social Community Care Supplies & Services - Children,R,2023,6
896,"Children, Schools and Family",REDACTED PERSONAL DATA,1031826,28-Sep-23,548.09,0,180579,UASC LAC Under 18,321100              Social Community Care Supplies & Services - Children,R,2023,6
897,"Children, Schools and Family",REDACTED PERSONAL DATA,1031851,28-Sep-23,548.09,0,180579,Placements Under 18,321100              Social Community Care Supplies & Services - Children,R,2023,6
898,Environment and Regeneration,HMCTS,ECBATCHESSEPT23,12-Sep-23,25000,0,180649,Operational Running Costs,350000              Street & Traffic Management,A,2023,6
899,Unassigned,LOVE WIMBLEDON LTD BUS.IMP.DIS,5147,18-Sep-23,51106.93,8517.82,180802,Corporate Services,200000              Financial Services,A,2023,6
900,Community and Housing,REDACTED PERSONAL DATA,1020173,12-Sep-23,938.4,0,180804,Learning Disabilities Placemnt,DIRECT PAYMENTS,R,2023,6
901,"Children, Schools and Family",FIVE RIVERS CHILD CARE,106165,22-Sep-23,6421.43,0,180823,Placements Under 18,360000              Passenger Transport                                                                       Confirmed,A,2023,6
902,Community and Housing,REDACTED PERSONAL DATA,1017310,05-Sep-23,2263.3,0,180835,Learning Disabilities Placemnt,DIRECT PAYMENTS,R,2023,6
903,Community and Housing,REDACTED PERSONAL DATA,1020266,12-Sep-23,2258.16,0,180866,Phys/Sens Placements - East,DIRECT PAYMENTS,R,2023,6
904,Community and Housing,REDACTED PERSONAL DATA,1020369,12-Sep-23,2187.44,0,180889,Older People Placements - East,DIRECT PAYMENTS,R,2023,6
905,Community and Housing,SENAD ECCLESBOURNE LODGE,1028660,27-Sep-23,9810.88,0,180904,Learning Disabilities Placemnt,321017              Nursing & Residential Care Homes,A,2023,6
906,Community and Housing,REDACTED PERSONAL DATA,1020473,12-Sep-23,1170.96,0,180999,Older People Placements - East,DIRECT PAYMENTS,R,2023,6
907,Environment and Regeneration,PREMIER MINICAB SER. UK LTD,71672,07-Sep-23,1680,280,181053,Passenger Transport,360000              Passenger Transport,A,2023,6
908,Environment and Regeneration,PREMIER MINICAB SER. UK LTD,126,25-Sep-23,1440,240,181053,Passenger Transport,360000              Passenger Transport,A,2023,6
909,Environment and Regeneration,PREMIER MINICAB SER. UK LTD,127,26-Sep-23,3480,580,181053,Passenger Transport,360000              Passenger Transport,A,2023,6
910,Community and Housing,REDACTED PERSONAL DATA,1020217,12-Sep-23,2883.08,0,181129,Older People Placements - East,DIRECT PAYMENTS,R,2023,6
911,Community and Housing,Community Equipment Services,9100000771,18-Sep-23,667.8,111.3,181238,Pooled Equipment,410000              Social Community Care Supplies & Services,A,2023,6
912,Community and Housing,REDACTED PERSONAL DATA,1020156,12-Sep-23,1720.4,0,181418,Older People Placements - East,DIRECT PAYMENTS,R,2023,6
913,"Children, Schools and Family",REDACTED PERSONAL DATA,10/2023DANIELLA,14-Sep-23,1154.92,0,181587,Placements Over 18,321000              Social Community Care Supplies & Services - Adult,R,2023,6
914,"Children, Schools and Family",Moor House School and College,INV11892,18-Sep-23,12090.67,0,181592,Non-Delegated Statements,170000              Education,A,2023,6
915,"Children, Schools and Family",Moor House School and College,INV11893,18-Sep-23,13134.67,0,181592,Non-Delegated Statements,170000              Education,A,2023,6
916,"Children, Schools and Family",Moor House School and College,INV11891,29-Sep-23,26355.67,0,181592,SEN Residential (DSG),170000              Education,A,2023,6
917,"Children, Schools and Family",Dicky Birds Nurseries Ltd - Pelham Road,P2 23 UPFRONTPAY,04-Sep-23,5586,0,181874,EARLY YEARS NURSERY GRANTS,200000              Financial Services,A,2023,6
918,"Children, Schools and Family",LOVE LANE DAY NURSERY,P2 23 UPFRONTPAY,04-Sep-23,18584.16,0,181933,EARLY YEARS NURSERY GRANTS,200000              Financial Services,A,2023,6
919,Unassigned,SHARPE PRITCHARD SOLICITORS,100003407,22-Sep-23,2184.7,0,182165,Corporate Accountancy,280000              Legal Services                                                                            Confirmed,A,2023,6
920,Corporate Services,REDACTED PERSONAL DATA,1786/JN,28-Sep-23,1050,175,182247,SLLP - Disbursements,280000              Legal Services                                                                            Confirmed,R,2023,6
921,Corporate Services,REDACTED PERSONAL DATA,1782/JN,28-Sep-23,1050,175,182247,SLLP - Disbursements,280000              Legal Services                                                                            Confirmed,R,2023,6
922,Corporate Services,ERNST AND YOUNG LLP,GB01G000461119,28-Sep-23,93415.2,15569.2,182340,Corporate Accountancy,200000              Financial Services,A,2023,6
923,Unassigned,ERNST AND YOUNG LLP,GB01G000461114,28-Sep-23,21714,3619,182340,Governance & Oversight Cost,200000              Financial Services,A,2023,6
924,Community and Housing,REDACTED PERSONAL DATA,1020160,12-Sep-23,5474,0,182348,Older People Placements - East,DIRECT PAYMENTS,R,2023,6
925,Capital,WEIR BUILDING SERVICES,1311,03-Oct-23,10175.69,0,182364,Disabled Facilities Grant,200000              Financial Services,A,2023,6
926,Corporate Services,BIRKIN CLEANING SERVICES LTD,31977,06-Sep-23,1134,189,182414,Corporate Contracts - FM,130000              Cleaning & Janitorial,A,2023,6
927,Community and Housing,REDACTED PERSONAL DATA,1020313,12-Sep-23,2952.04,0,182584,Phys/Sens Placements - East,DIRECT PAYMENTS,R,2023,6
928,"Children, Schools and Family",REDACTED PERSONAL DATA,1015764,01-Sep-23,548.09,0,182648,UASC LAC Under 18,321100              Social Community Care Supplies & Services - Children,R,2023,6
929,"Children, Schools and Family",REDACTED PERSONAL DATA,1015817,01-Sep-23,548.09,0,182648,UASC LAC Under 18,321100              Social Community Care Supplies & Services - Children,R,2023,6
930,"Children, Schools and Family",REDACTED PERSONAL DATA,1018728,08-Sep-23,548.09,0,182648,UASC LAC Under 18,321100              Social Community Care Supplies & Services - Children,R,2023,6
931,"Children, Schools and Family",REDACTED PERSONAL DATA,1018782,08-Sep-23,548.09,0,182648,UASC LAC Under 18,321100              Social Community Care Supplies & Services - Children,R,2023,6
932,"Children, Schools and Family",REDACTED PERSONAL DATA,1027499,22-Sep-23,548.09,0,182648,UASC LAC Under 18,321100              Social Community Care Supplies & Services - Children,R,2023,6
933,"Children, Schools and Family",REDACTED PERSONAL DATA,1031783,28-Sep-23,548.09,0,182648,UASC LAC Under 18,321100              Social Community Care Supplies & Services - Children,R,2023,6
934,"Children, Schools and Family",REDACTED PERSONAL DATA,1031838,28-Sep-23,548.09,0,182648,UASC LAC Under 18,321100              Social Community Care Supplies & Services - Children,R,2023,6
935,"Children, Schools and Family",KINGSWOOD DAYCARE NURSERY LTD,P2 23 UPFRONTPAY,04-Sep-23,28355.04,0,182740,EARLY YEARS NURSERY GRANTS,200000              Financial Services,A,2023,6
936,Community and Housing,REDACTED PERSONAL DATA,1020522,12-Sep-23,6347.8,0,182894,Learning Disabilities Placemnt,DIRECT PAYMENTS,R,2023,6
937,Corporate Services,PELLINGS LLP,SI9036474,19-Sep-23,1200,200,182945,SLLP - Disbursements,280000              Legal Services                                                                            Confirmed,A,2023,6
938,Corporate Services,PELLINGS LLP,SI9036522,25-Sep-23,1200,200,182945,SLLP - Disbursements,280000              Legal Services                                                                            Confirmed,A,2023,6
939,Corporate Services,PELLINGS LLP,SI9036523,25-Sep-23,1200,200,182945,SLLP - Disbursements,280000              Legal Services                                                                            Confirmed,A,2023,6
940,Corporate Services,PELLINGS LLP,SI9036388,18-Sep-23,1200,200,182945,SLLP - Disbursements,280000              Legal Services                                                                            Confirmed,A,2023,6
941,Corporate Services,PELLINGS LLP,SI9036496,20-Sep-23,1200,200,182945,SLLP - Disbursements,280000              Legal Services                                                                            Confirmed,A,2023,6
942,Community and Housing,REDACTED PERSONAL DATA,1020271,12-Sep-23,5057.2,0,183167,Older People Placements - East,DIRECT PAYMENTS,R,2023,6
943,Community and Housing,ST ANTONYS CARE HOME,1028722,27-Sep-23,4000,0,183206,Older People Placements - East,321017              Nursing & Residential Care Homes,A,2023,6
944,Community and Housing,ST ANTONYS CARE HOME,1028797,27-Sep-23,3840,0,183206,Older People Placements - East,321017              Nursing & Residential Care Homes,A,2023,6
945,Community and Housing,ST ANTONYS CARE HOME,1028824,27-Sep-23,3840,0,183206,Older People Placements - East,321017              Nursing & Residential Care Homes,A,2023,6
946,Community and Housing,ST ANTONYS CARE HOME,1028836,27-Sep-23,4200,0,183206,Mental Health Placements,321017              Nursing & Residential Care Homes,A,2023,6
947,Community and Housing,ST ANTONYS CARE HOME,1028889,27-Sep-23,4000,0,183206,Older People Placements - East,321017              Nursing & Residential Care Homes,A,2023,6
948,"Children, Schools and Family",REDACTED PERSONAL DATA,1019409,11-Sep-23,742.08,0,183241, Childrens Short Breaks,CSF-DIRECT PAYMENTS,R,2023,6
949,"Children, Schools and Family",Horizon Education (South London) Limited,SI-00000000112,18-Sep-23,21025.29,0,183299,Non-Delegated Statements,170000              Education,A,2023,6
950,"Children, Schools and Family",Horizon Education (South London) Limited,SI-C0000000242,18-Sep-23,19819.93,0,183299,Non-Delegated Statements,170000              Education,A,2023,6
951,"Children, Schools and Family",Horizon Education (South London) Limited,SI-C0000000247,18-Sep-23,21025.29,0,183299,Non-Delegated Statements,170000              Education,A,2023,6
952,"Children, Schools and Family",Horizon Education (South London) Limited,SI-C0000000278,18-Sep-23,21009.95,0,183299,Non-Delegated Statements,170000              Education,A,2023,6
953,"Children, Schools and Family",Horizon Education (South London) Limited,SI-C0000000279,18-Sep-23,21875.62,0,183299,Non-Delegated Statements,170000              Education,A,2023,6
954,"Children, Schools and Family",Horizon Education (South London) Limited,SI-C0000000286,18-Sep-23,21394.49,0,183299,Non-Delegated Statements,170000              Education,A,2023,6
955,"Children, Schools and Family",Horizon Education (South London) Limited,SI-C0000000293,18-Sep-23,30999.93,0,183299,Non-Delegated Statements,170000              Education,A,2023,6
956,"Children, Schools and Family",Horizon Education (South London) Limited,SI-C0000000294,18-Sep-23,21553.61,0,183299,Non-Delegated Statements,170000              Education,A,2023,6
957,"Children, Schools and Family",Horizon Education (South London) Limited,SI-C0000000296,18-Sep-23,22313.2,0,183299,Non-Delegated Statements,170000              Education,A,2023,6
958,"Children, Schools and Family",Horizon Education (South London) Limited,SI-C0000000304,18-Sep-23,19919.9,0,183299,Non-Delegated Statements,170000              Education,A,2023,6
959,"Children, Schools and Family",Horizon Education (South London) Limited,SI-C0000000319,18-Sep-23,22313.2,0,183299,Non-Delegated Statements,170000              Education,A,2023,6
960,"Children, Schools and Family",Horizon Education (South London) Limited,SI-0000000284,19-Sep-23,23522.59,0,183299,Non-Delegated Statements,170000              Education,A,2023,6
961,"Children, Schools and Family",Horizon Education (South London) Limited,SI-C0000000225,21-Sep-23,16938.13,0,183299,Non-Delegated Statements,170000              Education,A,2023,6
962,Environment and Regeneration,TA2,1103,02-Oct-23,2700,450,183379,Wandsworth Air Quality,190000              Facilities & Management Services,A,2023,6
963,Community and Housing,TA2,1100,03-Oct-23,1188,198,183379,PH - Health Places,190000              Facilities & Management Services,A,2023,6
964,Community and Housing,REDACTED PERSONAL DATA,1020275,12-Sep-23,1163.36,0,183460,Learning Disabilities Placemnt,DIRECT PAYMENTS,R,2023,6
965,Community and Housing,REDACTED PERSONAL DATA,1020321,12-Sep-23,1622.64,0,183464,Older People Placements - East,DIRECT PAYMENTS,R,2023,6
966,"Children, Schools and Family",WIMBLEDON DAY NURSERY 2,P2 23 UPFRONTPAY,04-Sep-23,10704.96,0,183490,EARLY YEARS NURSERY GRANTS,200000              Financial Services,A,2023,6
967,Community and Housing,CREST MANOR LTD,CM0826,05-Sep-23,6013.38,0,183548,Bed & Breakfast - accomm,250000              Housing Management,A,2023,6
968,Community and Housing,CREST MANOR LTD,CMO83O,29-Sep-23,5819.4,0,183548,Bed & Breakfast - accomm,250000              Housing Management,A,2023,6
969,"Children, Schools and Family",REDACTED PERSONAL DATA,1019436,11-Sep-23,1710,0,183558,Child Disabilities - Placement,CSF-DIRECT PAYMENTS,R,2023,6
970,Community and Housing,Kent House Care Home,1028938,27-Sep-23,2884,0,183560,Older People Placements - East,321017              Nursing & Residential Care Homes,A,2023,6
971,Community and Housing,REDACTED PERSONAL DATA,2237,13-Sep-23,1925,0,183599,Adult Safeguarding,321000              Social Community Care Supplies & Services - Adult                                         Confirmed,R,2023,6
972,Community and Housing,REDACTED PERSONAL DATA,2238,13-Sep-23,1225,0,183599,Adult Safeguarding,321000              Social Community Care Supplies & Services - Adult                                         Confirmed,R,2023,6
973,Environment and Regeneration,SCOTTISH POWER,421331963,28-Sep-23,2136.59,101.74,183660,Street Lighting,370000              Utilities,A,2023,6
974,Community and Housing,REDACTED PERSONAL DATA,1020241,12-Sep-23,664.72,0,183690,Older People Placements - East,DIRECT PAYMENTS,R,2023,6
975,Community and Housing,HOUNSLOW AND RICHM'D COMM H'CARE,82980735,08-Sep-23,16617.5,0,183949,PH - Prevention,310000              Healthcare,A,2023,6
976,"Children, Schools and Family",LEXTOX,301729,28-Sep-23,974.4,162.4,184053,Family Supp SafeGuard - Place,280000              Legal Services,A,2023,6
977,Corporate Services,LEXTOX,298990,21-Sep-23,708.6,118.1,184053,SLLP - Disbursements,280000              Legal Services,A,2023,6
978,Community and Housing,REDACTED PERSONAL DATA,1020371,12-Sep-23,3026.76,0,184175,Older People Placements - East,DIRECT PAYMENTS,R,2023,6
979,Community and Housing,REDACTED PERSONAL DATA,1020351,12-Sep-23,508.32,0,184315,Older People Placements - East,DIRECT PAYMENTS,R,2023,6
980,Community and Housing,CROWNWISE LTD,MP/167/116,11-Sep-23,1229.6,0,184360,Mental Health Placements,321000              Social Community Care Supplies & Services - Adult,A,2023,6
981,Community and Housing,CROWNWISE LTD,1028721,27-Sep-23,5907,0,184360,Mental Health Placements,321000              Social Community Care Supplies & Services - Adult,A,2023,6
982,Community and Housing,MARIAN HOUSE NURSING HOME,1028711,27-Sep-23,2834.56,0,184385,Older People Placements - East,321017              Nursing & Residential Care Homes,A,2023,6
983,"Children, Schools and Family",REDACTED PERSONAL DATA,1018829,08-Sep-23,582.17,0,184386,Placements Under 18,321100              Social Community Care Supplies & Services - Children,R,2023,6
984,"Children, Schools and Family",REDACTED PERSONAL DATA,1023383,15-Sep-23,582.17,0,184386,Placements Under 18,321100              Social Community Care Supplies & Services - Children,R,2023,6
985,"Children, Schools and Family",REDACTED PERSONAL DATA,1027600,22-Sep-23,682.17,0,184386,Placements Under 18,321100              Social Community Care Supplies & Services - Children,R,2023,6
986,"Children, Schools and Family",REDACTED PERSONAL DATA,1031883,28-Sep-23,582.17,0,184386,Placements Under 18,321100              Social Community Care Supplies & Services - Children,R,2023,6
987,Community and Housing,REDACTED PERSONAL DATA,1020391,12-Sep-23,4995,0,184580,Older People Placements - East,DIRECT PAYMENTS,R,2023,6
988,Unassigned,PENSION TOP-UP FUND (LBM),CAPITAL COST04,01-Sep-23,5731.7,0,184583,Super Fund - New Pension Regs,PENSIONS,A,2023,6
989,Unassigned,PENSION TOP-UP FUND (LBM),CAPITAL COST05,01-Sep-23,39118.94,0,184583,Super Fund - New Pension Regs,PENSIONS,A,2023,6
990,Unassigned,PENSION TOP-UP FUND (LBM),CAPITAL COST0000,01-Sep-23,25978.43,0,184583,Super Fund - New Pension Regs,PENSIONS,A,2023,6
991,Unassigned,PENSION TOP-UP FUND (LBM),CAPITAL COST0578,04-Sep-23,50274.76,0,184583,Super Fund - New Pension Regs,PENSIONS,A,2023,6
992,Unassigned,PENSION TOP-UP FUND (LBM),CAP COST PENSION,26-Sep-23,1198.64,0,184583,Super Fund - New Pension Regs,PENSIONS,A,2023,6
993,Community and Housing,REDACTED PERSONAL DATA,1020367,12-Sep-23,867.48,0,184608,Older People Placements - East,DIRECT PAYMENTS,R,2023,6
994,"Children, Schools and Family",FUNKY OWLS NURSERY,P2 23 UPFRONTPAY,04-Sep-23,17183.04,0,184637,EARLY YEARS NURSERY GRANTS,200000              Financial Services,A,2023,6
995,"Children, Schools and Family",Bright Horizons Family Solutions Ltd,P2 23 UPFRONTPAY,04-Sep-23,22193.92,0,184692,EARLY YEARS NURSERY GRANTS,170000              Education,A,2023,6
996,Community and Housing,SK HOUSING LTD,7094,05-Sep-23,38204.4,6367.4,184774,Bed & Breakfast - accomm,321000              Social Community Care Supplies & Services - Adult,A,2023,6
997,Community and Housing,SK HOUSING LTD,7160,02-Oct-23,36972,6162,184774,Bed & Breakfast - accomm,321000              Social Community Care Supplies & Services - Adult,A,2023,6
998,Community and Housing,CROHAM PLACE,1028654,27-Sep-23,2251.88,0,184807,Learning Disabilities Placemnt,321017              Nursing & Residential Care Homes,A,2023,6
999,Community and Housing,CROHAM PLACE,1028813,27-Sep-23,9400,0,184807,Mental Health Placements,321017              Nursing & Residential Care Homes,A,2023,6
1000,Community and Housing,CROHAM PLACE,1028814,27-Sep-23,9400,0,184807,Learning Disabilities Placemnt,321017              Nursing & Residential Care Homes,A,2023,6
1001,Community and Housing,CROHAM PLACE,1028849,27-Sep-23,9400,0,184807,Mental Health Placements,321017              Nursing & Residential Care Homes,A,2023,6
1002,Community and Housing,REDACTED PERSONAL DATA,1020505,12-Sep-23,977.04,0,184819,Older People Placements - East,DIRECT PAYMENTS,R,2023,6
1003,"Children, Schools and Family",HIGHER LEVEL CARE (HLC) LTD,15160,14-Sep-23,2435.67,0,184822,Placements Over 18,321100              Social Community Care Supplies & Services - Children Residential,A,2023,6
1004,"Children, Schools and Family",HIGHER LEVEL CARE (HLC) LTD,15161,14-Sep-23,3764.02,0,184822,UASC Care Leavers Over 18,321100              Social Community Care Supplies & Services - Children Residential,A,2023,6
1005,"Children, Schools and Family",HIGHER LEVEL CARE (HLC) LTD,15163,14-Sep-23,1992.99,0,184822,UASC Care Leavers Over 18,321100              Social Community Care Supplies & Services - Children Residential,A,2023,6
1006,"Children, Schools and Family",HIGHER LEVEL CARE (HLC) LTD,15164,14-Sep-23,3764.33,0,184822,UASC LAC Under 18,321100              Social Community Care Supplies & Services - Children Residential,A,2023,6
1007,Community and Housing,QUARTZ PROPERTIES,LBMGIPN23,08-Sep-23,3750,0,184919,Galpins Road Recovery (CAT),321000              Social Community Care Supplies & Services - Adult,A,2023,6
1008,Community and Housing,QUARTZ PROPERTIES,LBMACS,20-Sep-23,1240,0,184919,Housing Strategy,321000              Social Community Care Supplies & Services - Adult,A,2023,6
1009,Community and Housing,QUARTZ PROPERTIES,LBMAC4,20-Sep-23,1200,0,184919,Housing Strategy,321000              Social Community Care Supplies & Services - Adult,A,2023,6
1010,Community and Housing,QUARTZ PROPERTIES,LBMAC3,20-Sep-23,1240,0,184919,Housing Strategy,321000              Social Community Care Supplies & Services - Adult,A,2023,6
1011,Community and Housing,QUARTZ PROPERTIES,LBMAC2,20-Sep-23,1200,0,184919,Housing Strategy,321000              Social Community Care Supplies & Services - Adult,A,2023,6
1012,Community and Housing,REDACTED PERSONAL DATA,1020405,12-Sep-23,703.8,0,184950,Phys/Sens Placements - East,DIRECT PAYMENTS,R,2023,6
1013,Corporate Services,Thintech Group Ltd,INV-0979,01-Sep-23,22200,3700,184970,IT-Telecomms,270000              Information Communication Technology                                   5665194,A,2023,6
1014,Community and Housing,LONDON CARE LTD,7878/21,08-Sep-23,1174.48,0,185026,Older People Placements - East,321000              Social Community Care Supplies & Services - Adult,A,2023,6
1015,Community and Housing,LONDON CARE LTD,7878/4,08-Sep-23,1419.65,0,185026,Older People Placements - East,321000              Social Community Care Supplies & Services - Adult,A,2023,6
1016,Community and Housing,LONDON CARE LTD,7878/8,08-Sep-23,527.96,0,185026,Older People Placements - East,321000              Social Community Care Supplies & Services - Adult,A,2023,6
1017,Community and Housing,LONDON CARE LTD,7878/10,08-Sep-23,1073.63,0,185026,Older People Placements - East,321000              Social Community Care Supplies & Services - Adult,A,2023,6
1018,Community and Housing,LONDON CARE LTD,7878/7,08-Sep-23,583.13,0,185026,Older People Placements - East,321000              Social Community Care Supplies & Services - Adult,A,2023,6
1019,Community and Housing,LONDON CARE LTD,7878/11,08-Sep-23,2622.11,0,185026,Older People Placements - East,321000              Social Community Care Supplies & Services - Adult,A,2023,6
1020,Community and Housing,LONDON CARE LTD,7878/22,08-Sep-23,2238.66,0,185026,Older People Placements - East,321000              Social Community Care Supplies & Services - Adult,A,2023,6
1021,Community and Housing,LONDON CARE LTD,7878/14,08-Sep-23,880.01,0,185026,Older People Placements - East,321000              Social Community Care Supplies & Services - Adult,A,2023,6
1022,Community and Housing,LONDON CARE LTD,7878/13,08-Sep-23,1009.22,0,185026,Older People Placements - East,321000              Social Community Care Supplies & Services - Adult,A,2023,6
1023,Community and Housing,LONDON CARE LTD,7878/24,08-Sep-23,831.76,0,185026,Older People Placements - East,321000              Social Community Care Supplies & Services - Adult,A,2023,6
1024,Community and Housing,LONDON CARE LTD,7878/1,08-Sep-23,1031.54,0,185026,Older People Placements - East,321000              Social Community Care Supplies & Services - Adult,A,2023,6
1025,Community and Housing,LONDON CARE LTD,7878/18,08-Sep-23,1453.96,0,185026,Older People Placements - East,321000              Social Community Care Supplies & Services - Adult,A,2023,6
1026,Community and Housing,LONDON CARE LTD,7878/3,08-Sep-23,1167.35,0,185026,Older People Placements - East,321000              Social Community Care Supplies & Services - Adult,A,2023,6
1027,Community and Housing,LONDON CARE LTD,7878/28,08-Sep-23,2492.04,0,185026,Older People Placements - East,321000              Social Community Care Supplies & Services - Adult,A,2023,6
1028,Community and Housing,LONDON CARE LTD,7878/19,08-Sep-23,714.53,0,185026,Older People Placements - East,321000              Social Community Care Supplies & Services - Adult,A,2023,6
1029,Community and Housing,LONDON CARE LTD,7878/12,08-Sep-23,553.64,0,185026,Phys/Sens Placements - East,321000              Social Community Care Supplies & Services - Adult,A,2023,6
1030,Community and Housing,LONDON CARE LTD,7878/20,08-Sep-23,1130.6,0,185026,Older People Placements - East,321000              Social Community Care Supplies & Services - Adult,A,2023,6
1031,Community and Housing,LONDON CARE LTD,5232031/21,26-Sep-23,1172.55,0,185026,Older People Placements - East,321000              Social Community Care Supplies & Services - Adult,A,2023,6
1032,Community and Housing,LONDON CARE LTD,5232031/4,26-Sep-23,1405.76,0,185026,Older People Placements - East,321000              Social Community Care Supplies & Services - Adult,A,2023,6
1033,Community and Housing,LONDON CARE LTD,5232031/8,26-Sep-23,512.55,0,185026,Older People Placements - East,321000              Social Community Care Supplies & Services - Adult,A,2023,6
1034,Community and Housing,LONDON CARE LTD,5232031/7,26-Sep-23,567.29,0,185026,Older People Placements - East,321000              Social Community Care Supplies & Services - Adult,A,2023,6
1035,Community and Housing,LONDON CARE LTD,5232031/11,26-Sep-23,2246.97,0,185026,Older People Placements - East,321000              Social Community Care Supplies & Services - Adult,A,2023,6
1036,Community and Housing,LONDON CARE LTD,5232031/22,26-Sep-23,2162.03,0,185026,Older People Placements - East,321000              Social Community Care Supplies & Services - Adult,A,2023,6
1037,Community and Housing,LONDON CARE LTD,5232031/14,26-Sep-23,930.2,0,185026,Older People Placements - East,321000              Social Community Care Supplies & Services - Adult,A,2023,6
1038,Community and Housing,LONDON CARE LTD,5232031/13,26-Sep-23,996.07,0,185026,Older People Placements - East,321000              Social Community Care Supplies & Services - Adult,A,2023,6
1039,Community and Housing,LONDON CARE LTD,5232031/24,26-Sep-23,831.13,0,185026,Older People Placements - East,321000              Social Community Care Supplies & Services - Adult,A,2023,6
1040,Community and Housing,LONDON CARE LTD,5232031/1,26-Sep-23,1054.04,0,185026,Older People Placements - East,321000              Social Community Care Supplies & Services - Adult,A,2023,6
1041,Community and Housing,LONDON CARE LTD,5232031/18,26-Sep-23,1434.32,0,185026,Older People Placements - East,321000              Social Community Care Supplies & Services - Adult,A,2023,6
1042,Community and Housing,LONDON CARE LTD,5232031/3,26-Sep-23,1547.65,0,185026,Older People Placements - East,321000              Social Community Care Supplies & Services - Adult,A,2023,6
1043,Community and Housing,LONDON CARE LTD,5232031/28,26-Sep-23,2452.62,0,185026,Older People Placements - East,321000              Social Community Care Supplies & Services - Adult,A,2023,6
1044,Community and Housing,LONDON CARE LTD,5232031/19,26-Sep-23,713.25,0,185026,Older People Placements - East,321000              Social Community Care Supplies & Services - Adult,A,2023,6
1045,Community and Housing,LONDON CARE LTD,5232031/12,26-Sep-23,560.94,0,185026,Phys/Sens Placements - East,321000              Social Community Care Supplies & Services - Adult,A,2023,6
1046,Community and Housing,LONDON CARE LTD,5232031/20,26-Sep-23,1171.44,0,185026,Older People Placements - East,321000              Social Community Care Supplies & Services - Adult,A,2023,6
1047,Community and Housing,LONDON CARE LTD,5232031/10,26-Sep-23,831.75,0,185026,Older People Placements - East,321000              Social Community Care Supplies & Services - Adult,A,2023,6
1048,Community and Housing,CHELSEA AND WESTMINSTER HOSPITAL,N0055223,22-Sep-23,17383.05,0,185106,PH - Sexual Health,310000              Healthcare,A,2023,6
1049,Community and Housing,CHELSEA AND WESTMINSTER HOSPITAL,N0055599,22-Sep-23,14184.37,0,185106,PH - Sexual Health,310000              Healthcare,A,2023,6
1050,Community and Housing,CHELSEA AND WESTMINSTER HOSPITAL,N0055631,22-Sep-23,17383.05,0,185106,PH - Sexual Health,310000              Healthcare,A,2023,6
1051,Community and Housing,CHELSEA AND WESTMINSTER HOSPITAL,N0054574,26-Sep-23,17383.05,0,185106,PH - Sexual Health,310000              Healthcare,A,2023,6
1052,Environment and Regeneration,L AND M CURTAINS AND BLINDS,5434,25-Sep-23,4020,670,185117,EDS2,190000              Facilities & Management Services,A,2023,6
1053,Environment and Regeneration,L AND M CURTAINS AND BLINDS,5435,25-Sep-23,7176,1196,185117,EDS2,190000              Facilities & Management Services,A,2023,6
1054,"Children, Schools and Family",TURNEY SCHOOL,1346,07-Sep-23,23534,0,185206,Non-Delegated Statements,170000              Education,A,2023,6
1055,Community and Housing,REDACTED PERSONAL DATA,1020376,12-Sep-23,1257.56,0,185250,Older People Placements - East,DIRECT PAYMENTS,R,2023,6
1056,Community and Housing,ROOMS AND  STUDIOS MANAGEMENT,1284,04-Sep-23,138471.35,23078.56,185280,Bed & Breakfast - accomm,321000              Social Community Care Supplies & Services - Adult,A,2023,6
1057,Community and Housing,ROOMS AND  STUDIOS MANAGEMENT,1285,05-Sep-23,3780,630,185280,Bed & Breakfast - accomm,321000              Social Community Care Supplies & Services - Adult,A,2023,6
1058,Community and Housing,ROOMS AND  STUDIOS MANAGEMENT,1289,03-Oct-23,138471.35,23078.56,185280,Bed & Breakfast - accomm,321000              Social Community Care Supplies & Services - Adult,A,2023,6
1059,Community and Housing,ROOMS AND  STUDIOS MANAGEMENT,1290,29-Sep-23,4812,802,185280,Bed & Breakfast - accomm,321000              Social Community Care Supplies & Services - Adult,A,2023,6
1060,Community and Housing,REDACTED PERSONAL DATA,1020189,12-Sep-23,1605.44,0,185353,Mental Health Placements,DIRECT PAYMENTS,R,2023,6
1061,Corporate Services,INFORM CPI LTD,AL66275,25-Sep-23,990,165,185356,Local Taxation Services,270000              Information Communication Technology,A,2023,6
1062,Community and Housing,WISDOM SUPPORT SERVICES LTD,1245A,07-Sep-23,4652.2,0,185366,Mental Health Placements,321000              Social Community Care Supplies & Services - Adult,A,2023,6
1063,Community and Housing,WISDOM SUPPORT SERVICES LTD,12543,02-Oct-23,4652.2,0,185366,Mental Health Placements,321000              Social Community Care Supplies & Services - Adult,A,2023,6
1064,Community and Housing,WISDOM SUPPORT SERVICES LTD,12546,02-Oct-23,1313.92,0,185366,Learning Disabilities Placemnt,321000              Social Community Care Supplies & Services - Adult,A,2023,6
1065,Community and Housing,WISDOM SUPPORT SERVICES LTD,12547,02-Oct-23,2261.58,0,185366,Older People Placements - East,321000              Social Community Care Supplies & Services - Adult,A,2023,6
1066,Community and Housing,WISDOM SUPPORT SERVICES LTD,12558,05-Oct-23,6366,0,185366,Mental Health Placements,321000              Social Community Care Supplies & Services - Adult,A,2023,6
1067,Community and Housing,WISDOM SUPPORT SERVICES LTD,12545,02-Oct-23,4500.99,0,185366,Learning Disabilities Placemnt,321000              Social Community Care Supplies & Services - Adult,A,2023,6
1068,"Children, Schools and Family",Dicky Birds Nurseries - Pepys Road,P2 23 UPFRONTPAY,04-Sep-23,8028.72,0,185387,EARLY YEARS NURSERY GRANTS,200000              Financial Services,A,2023,6
1069,Community and Housing,THORNBECK COLLEGE,1028776,27-Sep-23,10320.52,0,185470,Learning Disabilities Placemnt,321100              Social Community Care Supplies & Services - Children,A,2023,6
1070,Corporate Services,REDACTED PERSONAL DATA,INVCMW124,22-Sep-23,1140,190,185514,SLLP - Disbursements,280000              Legal Services                                                                            Confirmed,R,2023,6
1071,Community and Housing,REDACTED PERSONAL DATA,1020476,12-Sep-23,1563,0,185533,Older People Placements - East,DIRECT PAYMENTS,R,2023,6
1072,Community and Housing,REDACTED PERSONAL DATA,1020214,12-Sep-23,782,0,185557,Learning Disabilities Placemnt,DIRECT PAYMENTS,R,2023,6
1073,Corporate Services,REDACTED PERSONAL DATA,1726,04-Oct-23,1140,190,185649,SLLP - Disbursements,280000              Legal Services,R,2023,6
1074,Community and Housing,REDACTED PERSONAL DATA,1020459,12-Sep-23,1271.6,0,185653,Older People Placements - East,DIRECT PAYMENTS,R,2023,6
1075,Community and Housing,VIBRANCE,1031492,28-Sep-23,3248.95,0,185664,Learning Disabilities Placemnt,321000              Social Community Care Supplies & Services - Adult,A,2023,6
1076,Community and Housing,VIBRANCE,1031493,28-Sep-23,721.99,0,185664,Learning Disabilities Placemnt,321000              Social Community Care Supplies & Services - Adult,A,2023,6
1077,Community and Housing,VIBRANCE,1031495,28-Sep-23,1564.31,0,185664,Learning Disabilities Placemnt,321000              Social Community Care Supplies & Services - Adult,A,2023,6
1078,Community and Housing,VIBRANCE,1031498,28-Sep-23,1203.31,0,185664,Learning Disabilities Placemnt,321000              Social Community Care Supplies & Services - Adult,A,2023,6
1079,Community and Housing,VIBRANCE,1031504,28-Sep-23,1082.98,0,185664,Learning Disabilities Placemnt,321000              Social Community Care Supplies & Services - Adult,A,2023,6
1080,Community and Housing,VIBRANCE,1031506,28-Sep-23,5174.21,0,185664,Older People Placements - East,321000              Social Community Care Supplies & Services - Adult,A,2023,6
1081,Community and Housing,VIBRANCE,1031507,28-Sep-23,1203.31,0,185664,Learning Disabilities Placemnt,321000              Social Community Care Supplies & Services - Adult,A,2023,6
1082,Community and Housing,VIBRANCE,1031508,28-Sep-23,3248.95,0,185664,Learning Disabilities Placemnt,321000              Social Community Care Supplies & Services - Adult,A,2023,6
1083,Community and Housing,VIBRANCE,1031515,28-Sep-23,1323.65,0,185664,Learning Disabilities Placemnt,321000              Social Community Care Supplies & Services - Adult,A,2023,6
1084,Community and Housing,VIBRANCE,1031540,28-Sep-23,721.99,0,185664,Learning Disabilities Placemnt,321000              Social Community Care Supplies & Services - Adult,A,2023,6
1085,Community and Housing,VIBRANCE,1031543,28-Sep-23,1684.63,0,185664,Learning Disabilities Placemnt,321000              Social Community Care Supplies & Services - Adult,A,2023,6
1086,Community and Housing,VIBRANCE,1031545,28-Sep-23,1925.31,0,185664,Learning Disabilities Placemnt,321000              Social Community Care Supplies & Services - Adult,A,2023,6
1087,Community and Housing,VIBRANCE,1031547,28-Sep-23,3248.95,0,185664,Learning Disabilities Placemnt,321000              Social Community Care Supplies & Services - Adult,A,2023,6
1088,Community and Housing,VIBRANCE,1031560,28-Sep-23,3008.29,0,185664,Learning Disabilities Placemnt,321000              Social Community Care Supplies & Services - Adult,A,2023,6
1089,Community and Housing,VIBRANCE,1031561,28-Sep-23,7219.8,0,185664,Older People Placements - East,321000              Social Community Care Supplies & Services - Adult,A,2023,6
1090,Community and Housing,VIBRANCE,1031692,28-Sep-23,1203.31,0,185664,Learning Disabilities Placemnt,321000              Social Community Care Supplies & Services - Adult,A,2023,6
1091,Community and Housing,VIBRANCE,1031694,28-Sep-23,3248.95,0,185664,Learning Disabilities Placemnt,321000              Social Community Care Supplies & Services - Adult,A,2023,6
1092,Community and Housing,VIBRANCE,1031696,28-Sep-23,1684.64,0,185664,Learning Disabilities Placemnt,321000              Social Community Care Supplies & Services - Adult,A,2023,6
1093,Community and Housing,VIBRANCE,1031697,28-Sep-23,3248.95,0,185664,Learning Disabilities Placemnt,321000              Social Community Care Supplies & Services - Adult,A,2023,6
1094,Community and Housing,VIBRANCE,1031699,28-Sep-23,842.31,0,185664,Learning Disabilities Placemnt,321000              Social Community Care Supplies & Services - Adult,A,2023,6
1095,Community and Housing,VIBRANCE,1031700,28-Sep-23,6738.5,0,185664,Older People Placements - East,321000              Social Community Care Supplies & Services - Adult,A,2023,6
1096,Community and Housing,VIBRANCE,1031702,28-Sep-23,1203.32,0,185664,Learning Disabilities Placemnt,321000              Social Community Care Supplies & Services - Adult,A,2023,6
1097,Corporate Services,ENERGY ASSETS LIMITED,AM30180557,15-Sep-23,960.58,160.1,185666,Energy Budgets,370000              Utilities,A,2023,6
1098,Community and Housing,REDACTED PERSONAL DATA,1020401,12-Sep-23,615.48,0,185709,Learning Disabilities Placemnt,DIRECT PAYMENTS,R,2023,6
1099,Unassigned,BENEDICT PRIMARY ACADEMY,SCHOOLS 2324/6 A,07-Sep-23,9315.7,0,185720,Schools,170000              Education,A,2023,6
1100,Community and Housing,M K ACCOMMODATION,MK5791,27-Sep-23,2015,0,185816,Housing Strategy,321000              Social Community Care Supplies & Services - Adult,A,2023,6
1101,Community and Housing,RENT CONNECT LLP,RC-LBM102,28-Sep-23,4960,0,185915,Bed & Breakfast - accomm,321000              Social Community Care Supplies & Services - Adult,A,2023,6
1102,"Children, Schools and Family",GOSTO FINO PORTUGAL PATISSERIE,CC085539,04-Oct-23,542.7,90.45,185935, Youth Service,110000              Catering,A,2023,6
1103,Community and Housing,E HOMES AND SHELTERS,EHSL1698,27-Sep-23,37117.1,0,185995,Bed & Breakfast - accomm,321000              Social Community Care Supplies & Services - Adult,A,2023,6
1104,"Children, Schools and Family",REDACTED PERSONAL DATA,1019375,11-Sep-23,977.88,0,186027,Child Disabilities - Placement,CSF-DIRECT PAYMENTS,R,2023,6
1105,Corporate Services,REDACTED PERSONAL DATA,929,04-Oct-23,2760,460,186039,SLLP - Disbursements,280000              Legal Services                                                                            Confirmed,R,2023,6
1106,Corporate Services,REDACTED PERSONAL DATA,930,04-Oct-23,1440,240,186039,SLLP - Disbursements,280000              Legal Services                                                                            Confirmed,R,2023,6
1107,Community and Housing,REDACTED PERSONAL DATA,1020478,12-Sep-23,1690.36,0,186071,Older People Placements - East,DIRECT PAYMENTS,R,2023,6
1108,"Children, Schools and Family",REDACTED PERSONAL DATA,1015784,01-Sep-23,521.63,0,186169,Placements Under 18,321100              Social Community Care Supplies & Services - Children,R,2023,6
1109,Environment and Regeneration,LA (Local Authority) Support Ltd,SER-00046775INV,22-Sep-23,3039.96,506.66,186193,Waste Enforcement,180000              Environmental Services,A,2023,6
1110,Environment and Regeneration,LA (Local Authority) Support Ltd,SER-00046889INV,22-Sep-23,5033.7,838.95,186193,PARK OPERATIONS,180000              Environmental Services,A,2023,6
1111,Environment and Regeneration,LA (Local Authority) Support Ltd,5ER-00046674INV,26-Sep-23,26244,4374,186193,Waste Enforcement,180000              Environmental Services,A,2023,6
1112,Corporate Services,Partner Abuse Interventions Ltd,2399,07-Sep-23,2540.69,423.45,186250,SLLP - Disbursements,280000              Legal Services                                                                            Confirmed,A,2023,6
1113,Corporate Services,Partner Abuse Interventions Ltd,2422,29-Sep-23,954.72,159.12,186250,SLLP - Disbursements,280000              Legal Services                                                                            Confirmed,A,2023,6
1114,"Children, Schools and Family",REDACTED PERSONAL DATA,1019247,11-Sep-23,556.56,0,186280, Childrens Short Breaks,CSF-DIRECT PAYMENTS,R,2023,6
1115,"Children, Schools and Family",CAREOLINE,21163,07-Sep-23,646.99,0,186615,Family Supp SafeGuard - Place,321100              Social Community Care Supplies & Services - Children,A,2023,6
1116,"Children, Schools and Family",CAREOLINE,21120,07-Sep-23,646.99,0,186615,Family Supp SafeGuard - Place,321100              Social Community Care Supplies & Services - Children,A,2023,6
1117,"Children, Schools and Family",CAREOLINE,21130,07-Sep-23,646.99,0,186615,Family Supp SafeGuard - Place,321100              Social Community Care Supplies & Services - Children,A,2023,6
1118,"Children, Schools and Family",CAREOLINE,21327,22-Sep-23,691,0,186615,Placements Under 18,321100              Social Community Care Supplies & Services - Children,A,2023,6
1119,"Children, Schools and Family",CAREOLINE,21246,26-Sep-23,1369.5,0,186615,Placements Under 18,321100              Social Community Care Supplies & Services - Children,A,2023,6
1120,"Children, Schools and Family",CAREOLINE,21265,26-Sep-23,1369.5,0,186615,Placements Under 18,321100              Social Community Care Supplies & Services - Children,A,2023,6
1121,"Children, Schools and Family",CAREOLINE,21295,26-Sep-23,1369.5,0,186615,Placements Under 18,321100              Social Community Care Supplies & Services - Children,A,2023,6
1122,Community and Housing,REDACTED PERSONAL DATA,RNWL 52 DEER PK,14-Sep-23,2400,0,186649,Homelessness Prevention,250000              Housing Management,R,2023,6
1123,"Children, Schools and Family",COMPASS FOSTERING LONDON LTD,35758,13-Sep-23,3702.33,0,186716,UASC LAC Under 18,321100              Social Community Care Supplies & Services - Children,A,2023,6
1124,"Children, Schools and Family",COMPASS FOSTERING LONDON LTD,35172/35827,26-Sep-23,5250.35,0,186716,Placements Under 18,321100              Social Community Care Supplies & Services - Children,A,2023,6
1125,"Children, Schools and Family",COMPASS FOSTERING LONDON LTD,35350/35826,26-Sep-23,6381.9,0,186716,Placements Under 18,321100              Social Community Care Supplies & Services - Children,A,2023,6
1126,"Children, Schools and Family",COMPASS FOSTERING LONDON LTD,35557,26-Sep-23,6594.63,0,186716,Placements Under 18,321100              Social Community Care Supplies & Services - Children,A,2023,6
1127,"Children, Schools and Family",COMPASS FOSTERING LONDON LTD,35757,26-Sep-23,6594.63,0,186716,Placements Under 18,321100              Social Community Care Supplies & Services - Children,A,2023,6
1128,"Children, Schools and Family",COMPASS FOSTERING LONDON LTD,35961 / 36015,26-Sep-23,6381.9,0,186716,Placements Under 18,321100              Social Community Care Supplies & Services - Children,A,2023,6
1129,Community and Housing,SUPREME HOMES LTD,30422A,07-Sep-23,6240,0,186763,Mental Health Placements,321100              Social Community Care Supplies & Services - Children,A,2023,6
1130,Community and Housing,SUPREME HOMES LTD,30391B,07-Sep-23,6448,0,186763,Mental Health Placements,321100              Social Community Care Supplies & Services - Children,A,2023,6
1131,Community and Housing,SUPREME HOMES LTD,30359C,07-Sep-23,1040,0,186763,Mental Health Placements,321100              Social Community Care Supplies & Services - Children,A,2023,6
1132,Community and Housing,SUPREME HOMES LTD,30483,27-Sep-23,6448,0,186763,Mental Health Placements,321100              Social Community Care Supplies & Services - Children,A,2023,6
1133,Community and Housing,SUPREME HOMES LTD,1028897,27-Sep-23,1956.8,0,186763,Mental Health Placements,321100              Social Community Care Supplies & Services - Children,A,2023,6
1134,Community and Housing,REDACTED PERSONAL DATA,1020438,12-Sep-23,1642.2,0,186789,Phys/Sens Placements - East,DIRECT PAYMENTS,R,2023,6
1135,"Children, Schools and Family",YOUNG LONDON TODAY,INV-26518,13-Sep-23,4207.01,0,186890,Placements Over 18,321100              Social Community Care Supplies & Services - Children,A,2023,6
1136,"Children, Schools and Family",YOUNG LONDON TODAY,INV-26520,13-Sep-23,4207.01,0,186890,Placements Under 18,321100              Social Community Care Supplies & Services - Children,A,2023,6
1137,"Children, Schools and Family",YOUNG LONDON TODAY,INV-26523,13-Sep-23,4435.38,0,186890,UASC Care Leavers Over 18,321100              Social Community Care Supplies & Services - Children,A,2023,6
1138,Community and Housing,BLUEBIRD CARE,15562,19-Sep-23,939.48,0,186946,Older People Placements - East,321000              Social Community Care Supplies & Services - Adult,A,2023,6
1139,Community and Housing,BLUEBIRD CARE,15567,19-Sep-23,867.58,0,186946,Older People Placements - East,321000              Social Community Care Supplies & Services - Adult,A,2023,6
1140,Capital,COSMUR CONSTRUCTION (LDN) LTD,SL010117,25-Sep-23,19599.71,3266.62,187025,Civic Centre,"390000              Works - Construction, Repair & Maintenance",C,2023,6
1141,"Children, Schools and Family",KIDDIES KOTTAGE NURSERY,P2 23 UPFRONTPAY,04-Sep-23,12339.6,0,187138,EARLY YEARS NURSERY GRANTS,200000              Financial Services,A,2023,6
1142,"Children, Schools and Family",KIDDIES KOTTAGE NURSERY,2023-222,18-Sep-23,780,0,187138,PupilPremium- Virtual School,200000              Financial Services,A,2023,6
1143,Community and Housing,CAREMARK (MERTON),8667,26-Sep-23,515.42,0,187170,Older People Placements - East,321000              Social Community Care Supplies & Services - Adult,A,2023,6
1144,Community and Housing,CAREMARK (MERTON),8640,26-Sep-23,811.16,0,187170,Older People Placements - East,321000              Social Community Care Supplies & Services - Adult,A,2023,6
1145,Community and Housing,CAREMARK (MERTON),8701,26-Sep-23,880.74,0,187170,Older People Placements - East,321000              Social Community Care Supplies & Services - Adult,A,2023,6
1146,Community and Housing,CAREMARK (MERTON),8671,26-Sep-23,852.82,0,187170,Older People Placements - East,321000              Social Community Care Supplies & Services - Adult,A,2023,6
1147,Community and Housing,CAREMARK (MERTON),8697,26-Sep-23,515.42,0,187170,Older People Placements - East,321000              Social Community Care Supplies & Services - Adult,A,2023,6
1148,Community and Housing,GUY'S AND ST THOMAS' NHS FND'TN,3341761,22-Sep-23,12637.29,0,187184,PH - Sexual Health,310000              Healthcare,A,2023,6
1149,Community and Housing,GUY'S AND ST THOMAS' NHS FND'TN,3342627,22-Sep-23,8921.85,0,187184,PH - Sexual Health,310000              Healthcare,A,2023,6
1150,Corporate Services,INSIGHT DIRECT (UK) LTD,2100684978,06-Sep-23,60547.81,10091.3,187252,I&T- Revenuisation Projects,270000              Information Communication Technology,A,2023,6
1151,Corporate Services,INSIGHT DIRECT (UK) LTD,2100699819,22-Sep-23,1447.5,241.25,187252,I&T- Revenuisation Projects,270000              Information Communication Technology,A,2023,6
1152,Community and Housing,REDACTED PERSONAL DATA,MER/83,18-Sep-23,780,130,187268,Com Care Placement Contingency,321000              Social Community Care Supplies & Services - Adult                                         Confirmed,R,2023,6
1153,"Children, Schools and Family",REDACTED PERSONAL DATA,P2 23 UPFRONTPAY,04-Sep-23,3971.52,0,187301,EARLY YEARS NURSERY GRANTS,200000              Financial Services,R,2023,6
1154,Unassigned,HARRIS PRIMARY ACADEMY MERTON,SCHOOLS 2324/6 A,07-Sep-23,77508.7,0,187329,Schools,170000              Education,A,2023,6
1155,"Children, Schools and Family",REDACTED PERSONAL DATA,1019393,11-Sep-23,938.4,0,187336,Child Disabilities - Placement,CSF-DIRECT PAYMENTS,R,2023,6
1156,"Children, Schools and Family",REDACTED PERSONAL DATA,104,21-Sep-23,1000,0,187350, Education Psychology,260000              Human Resources,R,2023,6
1157,"Children, Schools and Family",REDACTED PERSONAL DATA,105,04-Oct-23,2000,0,187350, Education Psychology,260000              Human Resources,R,2023,6
1158,"Children, Schools and Family",THE LONDON ACORN SCHOOL,P2 23 UPFRONTPAY,04-Sep-23,6881.76,0,187387,EARLY YEARS NURSERY GRANTS,170000              Education,A,2023,6
1159,Community and Housing,REDACTED PERSONAL DATA,1020412,12-Sep-23,972.84,0,187457,Learning Disabilities Placemnt,DIRECT PAYMENTS,R,2023,6
1160,Community and Housing,BARTS HEALTH NHS TRUST,498497,25-Sep-23,858,0,187591,PH - Sexual Health,310000              Healthcare,A,2023,6
1161,Community and Housing,BARTS HEALTH NHS TRUST,498533,25-Sep-23,858,0,187591,PH - Sexual Health,310000              Healthcare,A,2023,6
1162,Community and Housing,BARTS HEALTH NHS TRUST,498522,26-Sep-23,858,0,187591,PH - Sexual Health,310000              Healthcare,A,2023,6
1163,Community and Housing,REDACTED PERSONAL DATA,1020209,12-Sep-23,913.88,0,187597,Phys/Sens Placements - East,DIRECT PAYMENTS,R,2023,6
1164,"Children, Schools and Family",BANANA MOON DAY NURSERY,P2 23 UPFRONTPAY,04-Sep-23,11830.56,0,187670,EARLY YEARS NURSERY GRANTS,200000              Financial Services,A,2023,6
1165,"Children, Schools and Family",BUMPSA-DAISIES NURSERY,P2 23 UPFRONTPAY,04-Sep-23,24403.68,0,187672,EARLY YEARS NURSERY GRANTS,200000              Financial Services,A,2023,6
1166,Community and Housing,REDACTED PERSONAL DATA,1020386,12-Sep-23,5474,0,187729,Older People Placements - East,DIRECT PAYMENTS,R,2023,6
1167,Community and Housing,REDACTED PERSONAL DATA,1026964,25-Sep-23,1068.96,0,187729,Older People Placements - East,DIRECT PAYMENTS,R,2023,6
1168,Community and Housing,REDACTED PERSONAL DATA,1020424,12-Sep-23,684.24,0,187842,Phys/Sens Placements - East,DIRECT PAYMENTS,R,2023,6
1169,Community and Housing,HOMERTON UNI HOSP NHS FND'N TR,61315931,22-Sep-23,819.23,0,187856,PH - Sexual Health,310000              Healthcare,A,2023,6
